Workbook

Sheet Version history
B1: AER opex model
B2: Version history
B4: AER opex model version history
C6: Version | D6: Description of changes
C7: 1.4 | D7: Dollar basis automatically set to last month of previous control period on opex forecast sheet ('Calc|Opex forecast'!F8)
D8: CPI values updated with the latest ABS values
D9: CPI index corrected on the rate of change sheet ('Input|Rate of change'!21:21)
C10: 1.5 | D10: Row label corrected. Change from 'Total opex' to 'Total opex, categories forecast specifically' ('Input|Reported opex'!C29)
D11: Conditional formatting corrected ('Input|Rate of change'!T36:T43,'Input|Rate of change'!T49:T56)
D12: Formula corrected to pick up correct cells with the output weights ('Calc|Opex forecast'!J61:S61)
C13: 1.6 | D13: Minor bug fixes
B19: End

Sheet Index
B1: AER opex model
B2: Index
B4: Model index
C6: Sheet Name | D6: Sheet Description
C7: Input | General | D7: Inputs NSP name, regulatory years for the prior and forecast regulatory control period etc.
C8: Input | Inflation | D8: Inputs inflation data.
C9: Input | Reported opex | D9: Inputs the reported operating expenditure (opex) from the prior regulatory control period.
C10: Input | Rate of change | D10: Inputs the cost escalation weights, cost escalation forecast, and inflation actuals and forecast
C11: Input | Step changes | D11: Inputs the operating expenditure (opex) data, including historical opex by category, one-off costs, step changes, demand forecasts, carbon costs, self insurance, network growth, and partial factor productivity
C12: Input | Dx Tx split | D12: Inputs the split of total opex between distribution and transmission services.
C13: Calc | Opex Forecast | D13: Calculates the opex forecast
C14: Output | Models | D14: Outputs the forecasts needed as a post tax revenue model inputs
C15: Output | Decision tables | D15: Outputs the tables used in the AER's draft and final decisions.
C16: Output | Decomposition | D16: Compares the key drivers of the NSPs' proposal and the AER's decision
C17: Lookup | Tables | D17: Includes the lookup tables used within this opex model.
C18: Check | List | D18: Shows checks on the calculations within the model
B20: End

Sheet Input|General
B1: =Index!$B$1 -> AER opex model | J1: Back to Index | L1: Key: | M1: Input | N1: External Link | O1: Internal Link | R1: Worksheet check: | S1: =IF(COUNTA($S$5:$S$15)=COUNTIF($S5:$S16,"OK"),"OK","Check") -> OK | U1: Overall Check: | V1: ='Check|List'!$S$1 -> Check
B2: =Index!$C$7 -> Input | General
B4: Input | General inputs
C6: Inputs | D6: Source | G6: Value
C7: NSP name | D7: NSP | G7: Evoenergy | S7: =IF(COUNTBLANK($G7),"Check","Ok") -> Ok
C8: Decision stage | D8: AER | G8: draft | S8: =IF(COUNTBLANK($G8),"Check","Ok") -> Ok
C9: Year ending | D9: NSP | G9: 2000-06-01 | S9: =IF(COUNTBLANK($G9),"Check","Ok") -> Ok
C10: Previous regulatory control period, first year | D10: NSP | G10: 2015 | S10: =IF(COUNTBLANK($G10),"Check","Ok") -> Ok
C11: Forecast base year | D11: NSP | G11: 2018 | S11: Ok
C12: Previous regulatory control period, last year | D12: NSP | G12: 2019 | S12: Ok
C13: Forecast regulatory control period, first year | D13: NSP | G13: 2020 | S13: Ok
C14: Forecast regulatory control period, last year | D14: NSP | G14: 2024 | S14: Ok
B16: End

Sheet Input|Inflation
B1: =Index!$B$1 -> AER opex model | K1: Back to Index | M1: Key: | N1: Input | O1: External Link | P1: Internal Link | S1: Worksheet check: | T1: =IF(COUNTA($T$5:$T$65)=COUNTIF($T5:$T66,"OK"),"OK","Check") -> OK | V1: Overall Check: | W1: ='Check|List'!$S$1 -> Check
B2: =Index!$C$7 -> Input | General
B4: Input | General inputs
D6: Index value, new base | E6: Percentage Change from Corresponding Quarter of Previous Year | F6: Index value, new base | G6: Percentage Change from Corresponding Quarter of Previous Year
C7: Source | D7: ABS | E7: Calculated | F7: ABS | G7: Calculated
C8: Unit | D8: index | E8: Percent | F8: index | G8: Percent
C9: 2007-03-31 | D9: 155.6 | T9: =IF(C9>EOMONTH(DATE('Input|General'!$G$12,MONTH('Input|General'!$G$9),1),0),"Ok",IF(ISBLANK($D9),"Check","Ok")) -> Ok
C10: 2007-06-30 | D10: 157.5 | T10: =IF(C10>EOMONTH(DATE('Input|General'!$G$12,MONTH('Input|General'!$G$9),1),0),"Ok",IF(ISBLANK($D10),"Check","Ok")) -> Ok
C11: 2007-09-30 | D11: 158.6 | T11: =IF(C11>EOMONTH(DATE('Input|General'!$G$12,MONTH('Input|General'!$G$9),1),0),"Ok",IF(ISBLANK($D11),"Check","Ok")) -> Ok
C12: 2007-12-31 | D12: 160.1 | T12: =IF(C12>EOMONTH(DATE('Input|General'!$G$12,MONTH('Input|General'!$G$9),1),0),"Ok",IF(ISBLANK($D12),"Check","Ok")) -> Ok
C13: 2008-03-31 | D13: 162.2 | E13: =D13/D9-1 -> 0.04241645244 | T13: =IF(C13>EOMONTH(DATE('Input|General'!$G$12,MONTH('Input|General'!$G$9),1),0),"Ok",IF(ISBLANK($D13),"Check","Ok")) -> Ok
C14: 2008-06-30 | D14: 164.6 | E14: =D14/D10-1 -> 0.04507936508 | T14: =IF(C14>EOMONTH(DATE('Input|General'!$G$12,MONTH('Input|General'!$G$9),1),0),"Ok",IF(ISBLANK($D14),"Check","Ok")) -> Ok
C15: 2008-09-30 | D15: 166.5 | E15: 0.04981084489 | T15: =IF(C15>EOMONTH(DATE('Input|General'!$G$12,MONTH('Input|General'!$G$9),1),0),"Ok",IF(ISBLANK($D15),"Check","Ok")) -> Ok
C16: 2008-12-31 | D16: 166 | E16: 0.03685196752 | T16: =IF(C16>EOMONTH(DATE('Input|General'!$G$12,MONTH('Input|General'!$G$9),1),0),"Ok",IF(ISBLANK($D16),"Check","Ok")) -> Ok
C17: 2009-03-31 | D17: 166.2 | E17: 0.02466091245 | T17: =IF(C17>EOMONTH(DATE('Input|General'!$G$12,MONTH('Input|General'!$G$9),1),0),"Ok",IF(ISBLANK($D17),"Check","Ok")) -> Ok
C18: 2009-06-30 | D18: 167 | E18: 0.01458080194 | T18: =IF(C18>EOMONTH(DATE('Input|General'!$G$12,MONTH('Input|General'!$G$9),1),0),"Ok",IF(ISBLANK($D18),"Check","Ok")) -> Ok
C19: 2009-09-30 | D19: 168.6 | E19: 0.01261261261 | T19: =IF(C19>EOMONTH(DATE('Input|General'!$G$12,MONTH('Input|General'!$G$9),1),0),"Ok",IF(ISBLANK($D19),"Check","Ok")) -> Ok
C20: 2009-12-31 | D20: 169.5 | E20: 0.02108433735 | T20: =IF(C20>EOMONTH(DATE('Input|General'!$G$12,MONTH('Input|General'!$G$9),1),0),"Ok",IF(ISBLANK($D20),"Check","Ok")) -> Ok
C21: 2010-03-31 | D21: 171 | E21: 0.02888086643 | F21: 95.2 | T21: =IF(C21>EOMONTH(DATE('Input|General'!$G$12,MONTH('Input|General'!$G$9),1),0),"Ok",IF(ISBLANK($F21),"Check","Ok")) -> Ok
C22: 2010-06-30 | D22: 172.1 | E22: 0.03053892216 | F22: 95.8 | T22: =IF(C22>EOMONTH(DATE('Input|General'!$G$12,MONTH('Input|General'!$G$9),1),0),"Ok",IF(ISBLANK($F22),"Check","Ok")) -> Ok
C23: 2010-09-30 | D23: 173.3 | E23: 0.02787663108 | F23: 96.5 | T23: =IF(C23>EOMONTH(DATE('Input|General'!$G$12,MONTH('Input|General'!$G$9),1),0),"Ok",IF(ISBLANK($F23),"Check","Ok")) -> Ok
C24: 2010-12-31 | D24: 174 | E24: 0.02654867257 | F24: 96.9 | T24: =IF(C24>EOMONTH(DATE('Input|General'!$G$12,MONTH('Input|General'!$G$9),1),0),"Ok",IF(ISBLANK($F24),"Check","Ok")) -> Ok
C25: 2011-03-31 | D25: 176.7 | E25: 0.03333333333 | F25: 98.3 | G25: =IF(ISBLANK(F25),"",F25/F21-1) -> 0.03256302521 | T25: =IF(C25>EOMONTH(DATE('Input|General'!$G$12,MONTH('Input|General'!$G$9),1),0),"Ok",IF(ISBLANK($F25),"Check","Ok")) -> Ok
C26: 2011-06-30 | D26: 178.3 | E26: 0.03602556653 | F26: 99.2 | G26: =IF(ISBLANK(F26),"",F26/F22-1) -> 0.03549060543 | T26: =IF(C26>EOMONTH(DATE('Input|General'!$G$12,MONTH('Input|General'!$G$9),1),0),"Ok",IF(ISBLANK($F26),"Check","Ok")) -> Ok
C27: 2011-09-30 | D27: 179.4 | E27: 0.03519907675 | F27: 99.8 | G27: 0.03419689119 | T27: =IF(C27>EOMONTH(DATE('Input|General'!$G$12,MONTH('Input|General'!$G$9),1),0),"Ok",IF(ISBLANK($F27),"Check","Ok")) -> Ok
C28: 2011-12-31 | D28: 179.4 | E28: 0.03103448276 | F28: 99.8 | G28: 0.02992776058 | T28: =IF(C28>EOMONTH(DATE('Input|General'!$G$12,MONTH('Input|General'!$G$9),1),0),"Ok",IF(ISBLANK($F28),"Check","Ok")) -> Ok
C29: 2012-03-31 | D29: 179.5 | E29: 0.01584606678 | F29: 99.9 | G29: 0.01627670397 | T29: =IF(C29>EOMONTH(DATE('Input|General'!$G$12,MONTH('Input|General'!$G$9),1),0),"Ok",IF(ISBLANK($F29),"Check","Ok")) -> Ok
C30: 2012-06-30 | F30: 100.4 | G30: 0.01209677419 | T30: =IF(C30>EOMONTH(DATE('Input|General'!$G$12,MONTH('Input|General'!$G$9),1),0),"Ok",IF(ISBLANK($F30),"Check","Ok")) -> Ok
C31: 2012-09-30 | F31: 101.8 | G31: 0.02004008016 | T31: =IF(C31>EOMONTH(DATE('Input|General'!$G$12,MONTH('Input|General'!$G$9),1),0),"Ok",IF(ISBLANK($F31),"Check","Ok")) -> Ok
C32: 2012-12-31 | F32: 102 | G32: 0.02204408818 | T32: =IF(C32>EOMONTH(DATE('Input|General'!$G$12,MONTH('Input|General'!$G$9),1),0),"Ok",IF(ISBLANK($F32),"Check","Ok")) -> Ok
C33: 2013-03-31 | F33: 102.4 | G33: 0.02502502503 | T33: =IF(C33>EOMONTH(DATE('Input|General'!$G$12,MONTH('Input|General'!$G$9),1),0),"Ok",IF(ISBLANK($F33),"Check","Ok")) -> Ok
C34: 2013-06-30 | F34: 102.8 | G34: 0.02390438247 | T34: =IF(C34>EOMONTH(DATE('Input|General'!$G$12,MONTH('Input|General'!$G$9),1),0),"Ok",IF(ISBLANK($F34),"Check","Ok")) -> Ok
C35: 2013-09-30 | F35: 104 | G35: 0.02161100196 | T35: =IF(C35>EOMONTH(DATE('Input|General'!$G$12,MONTH('Input|General'!$G$9),1),0),"Ok",IF(ISBLANK($F35),"Check","Ok")) -> Ok
C36: 2013-12-31 | F36: 104.8 | G36: 0.02745098039 | T36: =IF(C36>EOMONTH(DATE('Input|General'!$G$12,MONTH('Input|General'!$G$9),1),0),"Ok",IF(ISBLANK($F36),"Check","Ok")) -> Ok
C37: 2014-03-31 | F37: 105.4 | G37: 0.029296875 | T37: =IF(C37>EOMONTH(DATE('Input|General'!$G$12,MONTH('Input|General'!$G$9),1),0),"Ok",IF(ISBLANK($F37),"Check","Ok")) -> Ok
C38: 2014-06-30 | F38: 105.9 | G38: 0.03015564202 | T38: =IF(C38>EOMONTH(DATE('Input|General'!$G$12,MONTH('Input|General'!$G$9),1),0),"Ok",IF(ISBLANK($F38),"Check","Ok")) -> Ok
C39: 2014-09-30 | F39: 106.4 | G39: 0.02307692308 | T39: =IF(C39>EOMONTH(DATE('Input|General'!$G$12,MONTH('Input|General'!$G$9),1),0),"Ok",IF(ISBLANK($F39),"Check","Ok")) -> Ok
C40: 2014-12-31 | F40: 106.6 | G40: 0.01717557252 | T40: =IF(C40>EOMONTH(DATE('Input|General'!$G$12,MONTH('Input|General'!$G$9),1),0),"Ok",IF(ISBLANK($F40),"Check","Ok")) -> Ok
C41: 2015-03-31 | F41: 106.8 | G41: 0.01328273245 | T41: =IF(C41>EOMONTH(DATE('Input|General'!$G$12,MONTH('Input|General'!$G$9),1),0),"Ok",IF(ISBLANK($F41),"Check","Ok")) -> Ok
C42: 2015-06-30 | F42: 107.5 | G42: 0.01510859301 | T42: =IF(C42>EOMONTH(DATE('Input|General'!$G$12,MONTH('Input|General'!$G$9),1),0),"Ok",IF(ISBLANK($F42),"Check","Ok")) -> Ok
C43: 2015-09-30 | F43: 108 | G43: 0.01503759398 | T43: =IF(C43>EOMONTH(DATE('Input|General'!$G$12,MONTH('Input|General'!$G$9),1),0),"Ok",IF(ISBLANK($F43),"Check","Ok")) -> Ok
C44: 2015-12-31 | F44: 108.4 | G44: 0.01688555347 | T44: =IF(C44>EOMONTH(DATE('Input|General'!$G$12,MONTH('Input|General'!$G$9),1),0),"Ok",IF(ISBLANK($F44),"Check","Ok")) -> Ok
C45: 2016-03-31 | F45: 108.2 | G45: 0.01310861423 | T45: =IF(C45>EOMONTH(DATE('Input|General'!$G$12,MONTH('Input|General'!$G$9),1),0),"Ok",IF(ISBLANK($F45),"Check","Ok")) -> Ok
C46: 2016-06-30 | F46: 108.6 | G46: 0.01023255814 | T46: =IF(C46>EOMONTH(DATE('Input|General'!$G$12,MONTH('Input|General'!$G$9),1),0),"Ok",IF(ISBLANK($F46),"Check","Ok")) -> Ok
C47: 2016-09-30 | F47: 109.4 | G47: 0.01296296296 | T47: =IF(C47>EOMONTH(DATE('Input|General'!$G$12,MONTH('Input|General'!$G$9),1),0),"Ok",IF(ISBLANK($F47),"Check","Ok")) -> Ok
C48: 2016-12-31 | F48: 110 | G48: 0.0147601476 | T48: =IF(C48>EOMONTH(DATE('Input|General'!$G$12,MONTH('Input|General'!$G$9),1),0),"Ok",IF(ISBLANK($F48),"Check","Ok")) -> Ok
C49: 2017-03-31 | F49: 110.5 | G49: 0.02125693161 | T49: =IF(C49>EOMONTH(DATE('Input|General'!$G$12,MONTH('Input|General'!$G$9),1),0),"Ok",IF(ISBLANK($F49),"Check","Ok")) -> Ok
C50: 2017-06-30 | F50: 110.7 | G50: 0.01933701657 | T50: =IF(C50>EOMONTH(DATE('Input|General'!$G$12,MONTH('Input|General'!$G$9),1),0),"Ok",IF(ISBLANK($F50),"Check","Ok")) -> Ok
C51: 2017-09-30 | F51: 111.4 | G51: 0.01828153565 | T51: =IF(C51>EOMONTH(DATE('Input|General'!$G$12,MONTH('Input|General'!$G$9),1),0),"Ok",IF(ISBLANK($F51),"Check","Ok")) -> Ok
C52: 2017-12-31 | F52: 112.1 | G52: 0.01909090909 | T52: =IF(C52>EOMONTH(DATE('Input|General'!$G$12,MONTH('Input|General'!$G$9),1),0),"Ok",IF(ISBLANK($F52),"Check","Ok")) -> Ok
C53: 2018-03-31 | F53: 112.6 | G53: 0.01900452489 | T53: =IF(C53>EOMONTH(DATE('Input|General'!$G$12,MONTH('Input|General'!$G$9),1),0),"Ok",IF(ISBLANK($F53),"Check","Ok")) -> Ok
C54: 2018-06-30 | F54: 113 | G54: 0.02077687444 | T54: =IF(C54>EOMONTH(DATE('Input|General'!$G$12,MONTH('Input|General'!$G$9),1),0),"Ok",IF(ISBLANK($F54),"Check","Ok")) -> Ok
C55: 2018-09-30 | F55: =AVERAGE(F54,F56) -> 113.811125 | G55: 0.02164385099 | H55: Interpolated | T55: =IF(C55>EOMONTH(DATE('Input|General'!$G$12,MONTH('Input|General'!$G$9),1),0),"Ok",IF(ISBLANK($F55),"Check","Ok")) -> Ok
C56: 2018-12-31 | F56: =F52*1.0225 -> 114.62225 | G56: 0.0225 | H56: RBA statement of monetary policy inflation forecast, May 2018, Table 5.1 | T56: =IF(C56>EOMONTH(DATE('Input|General'!$G$12,MONTH('Input|General'!$G$9),1),0),"Ok",IF(ISBLANK($F56),"Check","Ok")) -> Ok
C57: 2019-03-31 | F57: =AVERAGE(F56,F58) -> 115.082375 | G57: 0.02204595915 | H57: Interpolated | T57: =IF(C57>EOMONTH(DATE('Input|General'!$G$12,MONTH('Input|General'!$G$9),1),0),"Ok",IF(ISBLANK($F57),"Check","Ok")) -> Ok
C58: 2019-06-30 | F58: =F54*1.0225 -> 115.5425 | G58: 0.0225 | H58: RBA statement of monetary policy inflation forecast, May 2018, Table 5.1 | T58: =IF(C58>EOMONTH(DATE('Input|General'!$G$12,MONTH('Input|General'!$G$9),1),0),"Ok",IF(ISBLANK($F58),"Check","Ok")) -> Ok
C59: 2019-09-30 | F59: =AVERAGE(F58,F60) -> 116.3718753 | G59: 0.0225 | H59: Interpolated | T59: =IF(C59>EOMONTH(DATE('Input|General'!$G$12,MONTH('Input|General'!$G$9),1),0),"Ok",IF(ISBLANK($F59),"Check","Ok")) -> Ok
C60: 2019-12-31 | F60: =F56*1.0225 -> 117.2012506 | G60: 0.0225 | H60: RBA statement of monetary policy inflation forecast, May 2018, Table 5.1 | T60: =IF(C60>EOMONTH(DATE('Input|General'!$G$12,MONTH('Input|General'!$G$9),1),0),"Ok",IF(ISBLANK($F60),"Check","Ok")) -> Ok
C61: 2020-03-31 | F61: =AVERAGE(F60,F62) -> 117.6717284 | G61: 0.0225 | H61: Interpolated | T61: =IF(C61>EOMONTH(DATE('Input|General'!$G$12,MONTH('Input|General'!$G$9),1),0),"Ok",IF(ISBLANK($F61),"Check","Ok")) -> Ok
C62: 2020-06-30 | F62: =F58*1.0225 -> 118.1422062 | G62: 0.0225 | H62: RBA statement of monetary policy inflation forecast, May 2018, Table 5.1 | T62: =IF(C62>EOMONTH(DATE('Input|General'!$G$12,MONTH('Input|General'!$G$9),1),0),"Ok",IF(ISBLANK($F62),"Check","Ok")) -> Ok
C63: 2020-09-30 | T63: =IF(C63>EOMONTH(DATE('Input|General'!$G$12,MONTH('Input|General'!$G$9),1),0),"Ok",IF(ISBLANK($F63),"Check","Ok")) -> Ok
C64: 2020-12-31 | T64: =IF(C64>EOMONTH(DATE('Input|General'!$G$12,MONTH('Input|General'!$G$9),1),0),"Ok",IF(ISBLANK($F64),"Check","Ok")) -> Ok
B66: End

Sheet Input|Reported opex
C1: =Index!$B$1 -> AER opex model | J1: Back to Index | L1: Key: | M1: Input | N1: External Link | O1: Internal Link | R1: Worksheet check: | S1: =IF(COUNTA($W$37:$W$260)=COUNTIF($W$37:$W$260,"OK"),"OK","Check") -> OK | U1: Overall Check: | V1: ='Check|List'!$S$1 -> Check
C2: =Index!$C$9 -> Input | Reported opex
J3: Year ending
D4: Source | E4: Unit | F4: Basis | J4: =DATE(PPFirstYear,MONTH('Input|General'!$G$9),1) -> 2015-06-01 | K4: =DATE(PPFirstYear+1,MONTH('Input|General'!$G$9),1) -> 2016-06-01 | L4: =DATE(PPFirstYear+2,MONTH('Input|General'!$G$9),1) -> 2017-06-01 | M4: =DATE(PPFirstYear+3,MONTH('Input|General'!$G$9),1) -> 2018-06-01 | N4: =DATE(PPFirstYear+4,MONTH('Input|General'!$G$9),1) -> 2019-06-01 | O4: =DATE(PPFirstYear+5,MONTH('Input|General'!$G$9),1) -> 2020-06-01 | P4: =DATE(PPFirstYear+6,MONTH('Input|General'!$G$9),1) -> 2021-06-01 | Q4: =DATE(PPFirstYear+7,MONTH('Input|General'!$G$9),1) -> 2022-06-01 | R4: =DATE(PPFirstYear+8,MONTH('Input|General'!$G$9),1) -> 2023-06-01 | S4: =DATE(PPFirstYear+9,MONTH('Input|General'!$G$9),1) -> 2024-06-01
B8: Input | Opex allowances
C10: Cost category | D10: Source | E10: Unit | F10: Basis | J10: =IF(YEAR(J$4)<=PPLastYear,J$4,"") -> 2015-06-01 | K10: 2016-06-01 | L10: 2017-06-01 | M10: 2018-06-01 | N10: 2019-06-01 | T10: Notes
C13: Total opex | D13: AER | E13: $millions | F13: 2014-06-01 | J13: ='[3]Calc|Opex forecast'!O68 -> 46.08233738 | K13: ='[3]Calc|Opex forecast'!P68 -> 47.29834058 | L13: ='[3]Calc|Opex forecast'!Q68 -> 48.02342083 | M13: ='[3]Calc|Opex forecast'!R68 -> 48.92765941 | N13: ='[3]Calc|Opex forecast'!S68 -> 50.31248543
C15: Total opex | D15: =D13 -> AER | E15: =E13 -> $millions | F15: =F13 -> 2014-06-01 | J15: =J13 -> 46.08233738 | K15: =K13 -> 47.29834058 | L15: 48.02342083 | M15: 48.92765941 | N15: 50.31248543 | O15: 0 | P15: 0 | Q15: 0 | R15: 0 | S15: 0
C17: Allowances related to category specific forecasts
C19: Remove debt raising costs | D19: AER | E19: =$E$29 -> $millions | F19: =$F$15 -> 2014-06-01
D20: AER | E20: =$E$15 -> $millions | F20: 2014-06-01
D21: AER | E21: $millions | F21: 2014-06-01
D22: AER | E22: $millions | F22: 2014-06-01
D23: AER | E23: $millions | F23: 2014-06-01
D24: AER | E24: $millions | F24: 2014-06-01
D25: AER | E25: $millions | F25: 2014-06-01
D26: AER | E26: $millions | F26: 2014-06-01
D27: AER | E27: $millions | F27: 2014-06-01
C29: Total opex, categories forecast specifically | D29: Calculated | E29: $millions | F29: =F27 -> 2014-06-01 | J29: =SUM(J19:J27) -> 0 | K29: =SUM(K19:K27) -> 0 | L29: 0 | M29: 0 | N29: 0 | O29: 0 | P29: 0 | Q29: 0 | R29: 0 | S29: 0
B31: Input | Reported opex
J33: Actual | K33: Actual | L33: Actual | M33: Estimate | N33: Estimate
C34: Cost category | D34: Source | E34: Unit | F34: Basis | J34: =IF(YEAR(J$4)<=PPLastYear,J$4,"") -> 2015-06-01 | K34: 2016-06-01 | L34: 2017-06-01 | M34: 2018-06-01 | N34: 2019-06-01 | T34: Notes
C37: Total opex | D37: RIN | E37: =$E$53 -> $millions | F37: =$F$53 -> nominal | J37: =[4]!dms_Total_Actual_Opex/1000000 -> 73.56049478 | K37: =[5]!dms_Total_Actual_Opex/1000000 -> 40.56217887 | L37: =[6]!dms_Total_Actual_Opex/1000000 -> 46.90959565 | M37: ='[7]Total SCS opex forecast '!$M$15 -> 54.7965254 | N37: ='[7]Total SCS opex forecast '!$N$50 -> 57.2991914
D38: RIN | E38: $millions | F38: =$F$53 -> nominal
D39: RIN | E39: $millions | F39: nominal
D40: RIN | E40: $millions | F40: nominal
D41: RIN | E41: $millions | F41: nominal
C42: Remove movement in provisions | D42: RIN | E42: $millions | F42: nominal | J42: =-'Movements in provisions'!B3/1000000 -> -6.681341 | K42: =-'Movements in provisions'!C3/1000000 -> 15.20677231 | L42: =-'Movements in provisions'!D3/1000000 -> 0.980022
C44: Total opex | D44: Calculated | E44: =$E$53 -> $millions | F44: =$F$53 -> nominal | J44: =SUM(J37:J42) -> 66.87915378 | K44: =SUM(K37:K42) -> 55.76895118 | L44: 47.88961765 | M44: 54.7965254 | N44: 57.2991914 | O44: 0 | P44: 0 | Q44: 0 | R44: 0 | S44: 0
C46: Expenditure related to category specific forecasts
C48: Remove debt raising costs | D48: RIN | E48: =$E$53 -> $millions | F48: =$F$53 -> nominal
D49: RIN | E49: =$E$53 -> $millions | F49: nominal
D50: RIN | E50: =$E$53 -> $millions | F50: nominal
D51: RIN | E51: =$E$53 -> $millions | F51: nominal
C53: Total opex, categories forecast specifically | D53: Calculated | E53: $millions | F53: nominal | J53: =SUM(J48:J51) -> 0 | K53: =SUM(K48:K51) -> 0 | L53: 0 | M53: 0 | N53: 0 | O53: 0 | P53: 0 | Q53: 0 | R53: 0 | S53: 0
B55: Input | Adjustments
C57: Adjustment | D57: Source | E57: Unit | F57: Basis | J57: =IF(YEAR(J$4)=BaseYear,J$4,"") ->  | M57: 2018-06-01
C59: Remove Power of Choice cost pass through | D59: External | E59: =$E$53 -> $millions | F59: =$F$53 -> nominal | M59: ='[7]Total SCS opex forecast '!$M$17 -> -1.19163178
C60: Remove Ring Fencing Implementation cost pass through | D60: External | E60: =$E$53 -> $millions | F60: nominal | M60: ='[7]Total SCS opex forecast '!$M$18 -> -2.17736478
C61: Remove outage and switching costs relating to TCCS contracts | D61: External | E61: $millions | F61: nominal | M61: -0.045116
C63: Remove non-recurrent efficiency gain in the base year | D63: External | E63: $millions | F63: 2016-06-01
C65: Efficiency adjustment | D65: External | E65: Per cent
B67: End

Sheet Input|Rate of change
B1: =Index!$B$1 -> AER opex model | K1: Back to Index | M1: Key: | N1: Input | O1: External Link | P1: Internal Link | S1: Worksheet check: | T1: =IF(COUNTIF(W5:W107,"Check")=0,"Ok","Check") -> Check | V1: Overall Check: | W1: ='Check|List'!$S$1 -> Check
B2: =Index!$C$10 -> Input | Rate of change
J3: Year ending
D4: Source | E4: Unit | F4: Basis | J4: =DATE(PPFirstYear-1,MONTH('Input|General'!$G$9),1) -> 2014-06-01 | K4: =DATE(PPFirstYear,MONTH('Input|General'!$G$9),1) -> 2015-06-01 | L4: =DATE(PPFirstYear+1,MONTH('Input|General'!$G$9),1) -> 2016-06-01 | M4: =DATE(PPFirstYear+2,MONTH('Input|General'!$G$9),1) -> 2017-06-01 | N4: =DATE(PPFirstYear+3,MONTH('Input|General'!$G$9),1) -> 2018-06-01 | O4: =DATE(PPFirstYear+4,MONTH('Input|General'!$G$9),1) -> 2019-06-01 | P4: =DATE(PPFirstYear+5,MONTH('Input|General'!$G$9),1) -> 2020-06-01 | Q4: =DATE(PPFirstYear+6,MONTH('Input|General'!$G$9),1) -> 2021-06-01 | R4: =DATE(PPFirstYear+7,MONTH('Input|General'!$G$9),1) -> 2022-06-01 | S4: =DATE(PPFirstYear+8,MONTH('Input|General'!$G$9),1) -> 2023-06-01 | T4: =DATE(PPFirstYear+9,MONTH('Input|General'!$G$9),1) -> 2024-06-01
B8: Input | Inflation
C10: Inflation | J10: =IF(YEAR(J$4)<=PPLastYear,J$4,"") -> 2014-06-01 | K10: 2015-06-01 | L10: 2016-06-01 | M10: 2017-06-01 | N10: 2018-06-01 | O10: 2019-06-01
C12: Inflation | D12: calculated | E12: =percent -> Per cent | J12: =IF(J10=J4,LOOKUP(EOMONTH(J4,0),'Input|Inflation'!$C$9:$C$64,'Input|Inflation'!$G$9:$G$64),"") -> 0.03015564202 | K12: =IF(K10=K4,LOOKUP(EOMONTH(K4,0),'Input|Inflation'!$C$9:$C$64,'Input|Inflation'!$G$9:$G$64),"") -> 0.01510859301 | L12: =IF(L10=L4,LOOKUP(EOMONTH(L4,0),'Input|Inflation'!$C$9:$C$64,'Input|Inflation'!$G$9:$G$64),"") -> 0.01023255814 | M12: =IF(M10=M4,LOOKUP(EOMONTH(M4,0),'Input|Inflation'!$C$9:$C$64,'Input|Inflation'!$G$9:$G$64),"") -> 0.01933701657 | N12: =IF(N10=N4,LOOKUP(EOMONTH(N4,0),'Input|Inflation'!$C$9:$C$64,'Input|Inflation'!$G$9:$G$64),"") -> 0.02077687444 | O12: =IF(O10=O4,LOOKUP(EOMONTH(O4,0),'Input|Inflation'!$C$9:$C$64,'Input|Inflation'!$G$9:$G$64),"") -> 0.0225 | P12: =IF(P10=P4,LOOKUP(EOMONTH(P4,0),'Input|Inflation'!$C$9:$C$64,'Input|Inflation'!$G$9:$G$64),"") ->  | Q12: =IF(Q10=Q4,LOOKUP(EOMONTH(Q4,0),'Input|Inflation'!$C$9:$C$64,'Input|Inflation'!$G$9:$G$64),"") ->  | R12: =IF(R10=R4,LOOKUP(EOMONTH(R4,0),'Input|Inflation'!$C$9:$C$64,'Input|Inflation'!$G$9:$G$64),"") ->  | S12: =IF(S10=S4,LOOKUP(EOMONTH(S4,0),'Input|Inflation'!$C$9:$C$64,'Input|Inflation'!$G$9:$G$64),"") ->  | T12: =IF(T10=T4,LOOKUP(EOMONTH(T4,0),'Input|Inflation'!$C$9:$C$64,'Input|Inflation'!$G$9:$G$64),"") -> 
C14: CPI indexes (real to real) | J14: =IF(YEAR(J$4)<=PPLastYear,J$4,"") -> 2014-06-01 | K14: 2015-06-01 | L14: 2016-06-01 | M14: 2017-06-01 | N14: 2018-06-01 | O14: 2019-06-01
C16: =TRANSPOSE(J10:O10) -> 2014-06-01 | D16: =IF(ISNONTEXT($C16),"calculated","") -> calculated | E16: =IF(ISNONTEXT($C16),"index","") -> index | J16: =IF(AND($C16>J$14,ISNONTEXT($C16)),K16/(1+K$12),IF(AND($C16=J$14,J$14=J$4),1,IF(AND($C16<J$14,J$14=J$4),I16*(1+J$12),0))) -> 1 | K16: 1.015108593 | L16: 1.025495751 | M16: 1.045325779 | N16: 1.067044381 | O16: =IF(AND($C16>O$14,ISNONTEXT($C16)),P16/(1+O$12),IF(AND($C16=O$14,O$14=O$4),1,IF(AND($C16<O$14,O$14=O$4),N16*(1+O$12),0))) -> 1.09105288
C17: 2015-06-01 | D17: calculated | E17: =IF(ISNONTEXT($C17),"index","") -> index | J17: =IF(AND($C17>J$14,ISNONTEXT($C17)),K17/(1+K$12),IF(AND($C17=J$14,J$14=J$4),1,IF(AND($C17<J$14,J$14=J$4),I17*(1+J$12),0))) -> 0.9851162791 | K17: 1 | L17: 1.010232558 | M17: 1.029767442 | N17: 1.051162791 | O17: =IF(AND($C17>O$14,ISNONTEXT($C17)),P17/(1+O$12),IF(AND($C17=O$14,O$14=O$4),1,IF(AND($C17<O$14,O$14=O$4),N17*(1+O$12),0))) -> 1.074813953
C18: 2016-06-01 | D18: calculated | E18: index | J18: =IF(AND($C18>J$14,ISNONTEXT($C18)),K18/(1+K$12),IF(AND($C18=J$14,J$14=J$4),1,IF(AND($C18<J$14,J$14=J$4),I18*(1+J$12),0))) -> 0.9751381215 | K18: 0.9898710866 | L18: 1 | M18: 1.019337017 | N18: 1.040515654 | O18: =IF(AND($C18>O$14,ISNONTEXT($C18)),P18/(1+O$12),IF(AND($C18=O$14,O$14=O$4),1,IF(AND($C18<O$14,O$14=O$4),N18*(1+O$12),0))) -> 1.063927256
C19: 2017-06-01 | D19: calculated | E19: index | J19: =IF(AND($C19>J$14,ISNONTEXT($C19)),K19/(1+K$12),IF(AND($C19=J$14,J$14=J$4),1,IF(AND($C19<J$14,J$14=J$4),I19*(1+J$12),0))) -> 0.9566395664 | K19: 0.9710930443 | L19: 0.9810298103 | M19: 1 | N19: 1.020776874 | O19: =IF(AND($C19>O$14,ISNONTEXT($C19)),P19/(1+O$12),IF(AND($C19=O$14,O$14=O$4),1,IF(AND($C19<O$14,O$14=O$4),N19*(1+O$12),0))) -> 1.043744354
C20: 2018-06-01 | D20: calculated | E20: index | J20: =IF(AND($C20>J$14,ISNONTEXT($C20)),K20/(1+K$12),IF(AND($C20=J$14,J$14=J$4),1,IF(AND($C20<J$14,J$14=J$4),I20*(1+J$12),0))) -> 0.9371681416 | K20: =IF(AND($C20>K$14,ISNONTEXT($C20)),L20/(1+L$12),IF(AND($C20=K$14,K$14=K$4),1,IF(AND($C20<K$14,K$14=K$4),J20*(1+K$12),0))) -> 0.9513274336 | L20: 0.9610619469 | M20: 0.9796460177 | N20: 1 | O20: =IF(AND($C20>O$14,ISNONTEXT($C20)),P20/(1+O$12),IF(AND($C20=O$14,O$14=O$4),1,IF(AND($C20<O$14,O$14=O$4),N20*(1+O$12),0))) -> 1.0225
C21: 2019-06-01 | D21: =IF(ISNONTEXT($C21),"calculated","") -> calculated | E21: index | J21: =IF(AND($C21>J$14,ISNONTEXT($C21)),K21/(1+K$12),IF(AND($C21=J$14,J$14=J$4),1,IF(AND($C21<J$14,J$14=J$4),I21*(1+J$12),0))) -> 0.9165458597 | K21: =IF(AND($C21>K$14,ISNONTEXT($C21)),L21/(1+L$12),IF(AND($C21=K$14,K$14=K$4),1,IF(AND($C21<K$14,K$14=K$4),J21*(1+K$12),0))) -> 0.9303935781 | L21: =IF(AND($C21>L$14,ISNONTEXT($C21)),M21/(1+M$12),IF(AND($C21=L$14,L$14=L$4),1,IF(AND($C21<L$14,L$14=L$4),K21*(1+L$12),0))) -> 0.9399138845 | M21: =IF(AND($C21>M$14,ISNONTEXT($C21)),N21/(1+N$12),IF(AND($C21=M$14,M$14=M$4),1,IF(AND($C21<M$14,M$14=M$4),L21*(1+M$12),0))) -> 0.9580890149 | N21: =IF(AND($C21>N$14,ISNONTEXT($C21)),O21/(1+O$12),IF(AND($C21=N$14,N$14=N$4),1,IF(AND($C21<N$14,N$14=N$4),M21*(1+N$12),0))) -> 0.97799511 | O21: =IF(AND($C21>O$14,ISNONTEXT($C21)),P21/(1+O$12),IF(AND($C21=O$14,O$14=O$4),1,IF(AND($C21<O$14,O$14=O$4),N21*(1+O$12),0))) -> 1
C23: CPI indexes (nominal to real) | J23: =IF(YEAR(J$4)<=PPLastYear,J$4,"") -> 2014-06-01 | K23: 2015-06-01 | L23: 2016-06-01 | M23: 2017-06-01 | N23: 2018-06-01 | O23: 2019-06-01
C25: =TRANSPOSE(J10:O10) -> 2014-06-01 | D25: =IF(ISNONTEXT($C25),"calculated","") -> calculated | E25: =IF(ISNONTEXT($C25),"index","") -> index | J25: =IF(AND(J$23=J$4,ISNONTEXT($C25)),1/J16*(1+J$12)^0.5,0) -> 1.014965833 | K25: =IF(AND(K$23=K$4,ISNONTEXT($C25)),1/K16*(1+K$12)^0.5,0) -> 0.9925302409 | L25: 0.9801145024 | M25: 0.9658445578 | N25: 0.9468538032 | O25: 0.926799644 | P25: 0 | Q25: 0 | R25: 0 | S25: 0 | T25: 0
C26: 2015-06-01 | D26: calculated | E26: =IF(ISNONTEXT($C26),"index","") -> index | J26: =IF(AND(J$23=J$4,ISNONTEXT($C26)),1/J17*(1+J$12)^0.5,0) -> 1.030300539 | K26: 1.007525976 | L26: 0.9949226536 | M26: 0.9804371101 | N26: 0.9611594319 | O26: 0.9408022826 | P26: 0 | Q26: 0 | R26: 0 | S26: 0 | T26: 0
C27: 2016-06-01 | D27: calculated | E27: index | J27: =IF(AND(J$23=J$4,ISNONTEXT($C27)),1/J18*(1+J$12)^0.5,0) -> 1.040843149 | K27: 1.017835544 | L27: 1.005103257 | M27: 0.9904694898 | N27: 0.9709945517 | O27: 0.9504290967 | P27: 0 | Q27: 0 | R27: 0 | S27: 0 | T27: 0
C28: 2017-06-01 | D28: calculated | E28: index | J28: =IF(AND(J$23=J$4,ISNONTEXT($C28)),1/J19*(1+J$12)^0.5,0) -> 1.06096995 | K28: 1.037517447 | L28: 1.024538956 | M28: 1.009622215 | N28: 0.9897706895 | O28: 0.9688075598 | P28: 0 | Q28: 0 | R28: 0 | S28: 0 | T28: 0
C29: 2018-06-01 | D29: calculated | E29: index | J29: =IF(AND(J$23=J$4,ISNONTEXT($C29)),1/J20*(1+J$12)^0.5,0) -> 1.083013589 | K29: 1.059073817 | L29: 1.045825673 | M29: 1.030599009 | N29: 1.010335031 | O29: 0.9889363529 | P29: 0 | Q29: 0 | R29: 0 | S29: 0 | T29: 0
C30: 2019-06-01 | D30: calculated | E30: index | J30: =IF(AND(J$23=J$4,ISNONTEXT($C30)),1/J21*(1+J$12)^0.5,0) -> 1.107381395 | K30: 1.082902978 | L30: 1.069356751 | M30: 1.053787486 | N30: 1.033067569 | O30: 1.011187421 | P30: 0 | Q30: 0 | R30: 0 | S30: 0 | T30: 0
B32: Input | Forecast price change
C34: Forecast price change | D34: Source | E34: Unit | J34: =IF(YEAR(J$4)>BaseYear,IF(YEAR(J$4)<=FPLastYear,J$4,""),"") ->  | O34: 2019-06-01 | P34: 2020-06-01 | Q34: 2021-06-01 | R34: 2022-06-01 | S34: 2023-06-01 | T34: 2024-06-01
C36: WPI - DAE | D36: external | E36: =percent -> Per cent | O36: =[8]Tables!D125/100 -> 0.0001627999976 | P36: =[8]Tables!E125/100 -> -0.001143156811 | Q36: =[8]Tables!F125/100 -> -0.000600906504 | R36: =[8]Tables!G125/100 -> 0.003100700588 | S36: =[8]Tables!H125/100 -> 0.004968179443 | T36: =[8]Tables!I125/100 -> 0.006502456524
C37: WPI - BIS Oxford Economics | D37: external | E37: Per cent | O37: ='[7]Rate of change'!N43 -> 0.007382366632 | P37: ='[7]Rate of change'!O43 -> 0.005667223273 | Q37: ='[7]Rate of change'!P43 -> 0.01113153599 | R37: ='[7]Rate of change'!Q43 -> 0.01548146245 | S37: ='[7]Rate of change'!R43 -> 0.01492473718 | T37: ='[7]Rate of change'!S43 -> 0.01249056463
C38: WPI - average of DAE and BIS Oxford Economics | D38: external | E38: Per cent | O38: =AVERAGE(O36:O37) -> 0.003772583315 | P38: =AVERAGE(P36:P37) -> 0.002262033231 | Q38: =AVERAGE(Q36:Q37) -> 0.005265314745 | R38: 0.00929108152 | S38: 0.009946458309 | T38: 0.00949651058
D39: external | E39: Per cent
D40: external | E40: Per cent
D41: external | E41: Per cent
D42: external | E42: Per cent
C43: CPI | D43: external | E43: Per cent | O43: 0 | P43: 0 | Q43: 0 | R43: 0 | S43: 0 | T43: 0
C45: Check | D45: calculated | E45: Ok/Check | F45: n/a | J45: =IF(J34=J4,IF(COUNTA($C36:$C43)=COUNT(J36:J43),"Ok","Check"),"") ->  | O45: Ok | P45: Ok | Q45: Ok | R45: Ok | S45: Ok | T45: =IF(T34=T4,IF(COUNTA($C36:$C43)=COUNT(T36:T43),"Ok","Check"),"") -> Ok | W45: =IF(COUNTIF(J45:T45,"Check")=0,"Ok","Check") -> Ok
C47: Weights | D47: Source | E47: Unit | J47: =IF(YEAR(J$4)>BaseYear,IF(YEAR(J$4)<=FPLastYear,J$4,""),"") ->  | O47: 2019-06-01 | P47: 2020-06-01 | Q47: 2021-06-01 | R47: 2022-06-01 | S47: 2023-06-01 | T47: 2024-06-01
C49: =C36 -> WPI - DAE | D49: external | E49: =percent -> Per cent
C50: WPI - BIS Oxford Economics | D50: external | E50: Per cent
C51: WPI - average of DAE and BIS Oxford Economics | D51: external | E51: Per cent | O51: 0.597 | P51: 0.597 | Q51: 0.597 | R51: 0.597 | S51: 0.597 | T51: 0.597
C52: 0 | D52: external | E52: Per cent
C53: 0 | D53: external | E53: Per cent
C54: 0 | D54: external | E54: Per cent
C55: 0 | D55: external | E55: Per cent
C56: CPI | D56: external | E56: Per cent | O56: =1-O51 -> 0.403 | P56: =1-P51 -> 0.403 | Q56: 0.403 | R56: 0.403 | S56: 0.403 | T56: 0.403
C58: Check | D58: calculated | E58: Ok/Check | F58: n/a | J58: =IF(J47=J$4,IF(SUM(J49:J56)=1,"Ok","Check"),"") ->  | O58: Ok | P58: Ok | Q58: Ok | R58: Ok | S58: Ok | T58: =IF(T47=T$4,IF(SUM(T49:T56)=1,"Ok","Check"),"") -> Ok | W58: =IF(COUNTIF(J58:T58,"Check")=0,"Ok","Check") -> Ok
B60: Input | Forecast output growth
C62: Output measure | D62: Source | E62: Unit | F62: Basis | J62: =IF(YEAR(J$4)>=BaseYear,IF(YEAR(J$4)<=FPLastYear,J$4,""),"") ->  | N62: 2018-06-01 | O62: 2019-06-01 | P62: 2020-06-01 | Q62: 2021-06-01 | R62: 2022-06-01 | S62: 2023-06-01 | T62: 2024-06-01
C64: Customer numbers (#) | D64: Reset RIN | E64: number | F64: n/a | N64: ='[7]Rate of change'!M77 -> 193508 | O64: ='[7]Rate of change'!N77 -> 196642 | P64: ='[7]Rate of change'!O77 -> 199875 | Q64: ='[7]Rate of change'!P77 -> 203145 | R64: ='[7]Rate of change'!Q77 -> 206411 | S64: ='[7]Rate of change'!R77 -> 209651 | T64: ='[7]Rate of change'!S77 -> 212859
C65: Circuit Length (km) | D65: Reset RIN | E65: number | F65: n/a | N65: ='[7]Rate of change'!M83 -> 5380.3 | O65: ='[7]Rate of change'!N83 -> 5410.3 | P65: ='[7]Rate of change'!O83 -> 5452.5 | Q65: ='[7]Rate of change'!P83 -> 5493.7 | R65: ='[7]Rate of change'!Q83 -> 5523.6 | S65: ='[7]Rate of change'!R83 -> 5561.8 | T65: ='[7]Rate of change'!S83 -> 5595.4
C66: Ratcheted Maximum Demand (MW) | D66: EB RIN and Reset RIN | E66: number | F66: n/a | N66: 724 | O66: 724 | P66: 724 | Q66: 724 | R66: 724 | S66: 724 | T66: 724
C67: Energy throughput (GWh) | D67: external | E67: number | F67: n/a | N67: ='[9]3.4 Operational data '!D13 -> 2960 | O67: ='[9]3.4 Operational data '!E13 -> 2926 | P67: ='[9]3.4 Operational data '!F13 -> 2914 | Q67: ='[9]3.4 Operational data '!G13 -> 2880 | R67: ='[9]3.4 Operational data '!H13 -> 2906 | S67: ='[9]3.4 Operational data '!I13 -> 2915 | T67: ='[9]3.4 Operational data '!J13 -> 2929
D68: external | E68: number | F68: n/a
D69: external | E69: number | F69: n/a
C71: Check | D71: calculated | E71: Ok/Check | F71: n/a | J71: =IF(J62=J$4,IF(COUNTA($C64:$C69)=COUNT(J64:J69),"Ok","Check"),"") ->  | N71: Ok | O71: Ok | P71: Ok | Q71: Ok | R71: Ok | S71: Ok | T71: =IF(T62=T$4,IF(COUNTA($C64:$C69)=COUNT(T64:T69),"Ok","Check"),"") -> Ok | W71: =IF(COUNTIF(J71:T71,"Check")=0,"Ok","Check") -> Ok
C73: Growth rate | D73: Source | E73: Unit | F73: Basis | J73: =IF(YEAR(J$4)>=BaseYear,IF(YEAR(J$4)<=FPLastYear,J$4,""),"") ->  | N73: 2018-06-01 | O73: 2019-06-01 | P73: 2020-06-01 | Q73: 2021-06-01 | R73: 2022-06-01 | S73: 2023-06-01 | T73: 2024-06-01 | U73: =IF(RIGHT(U$4,2)>=RIGHT('Input|General'!$G$13,2),IF(RIGHT(U$4,2)<='Input|General'!$G$14,'Input|Reported opex'!T$4,""),"") -> 
C75: =C64 -> Customer numbers (#) | D75: calculated | E75: number | F75: n/a | J75: =IF(ISBLANK(I64),"",IF(ISBLANK(J64),"",LN(J64)-LN(I64))) ->  | N75: =IF(ISBLANK(M64),"",IF(ISBLANK(N64),"",LN(N64)-LN(M64))) ->  | O75: =IF(ISBLANK(N64),"",IF(ISBLANK(O64),"",LN(O64)-LN(N64))) -> 0.01606596135 | P75: 0.01630735452 | Q75: 0.01622783862 | R75: 0.01594931699 | S75: 0.0155749167 | T75: 0.01518573122
C76: =C65 -> Circuit Length (km) | D76: calculated | E76: number | F76: n/a | J76: =IF(ISBLANK(I65),"",IF(ISBLANK(J65),"",LN(J65)-LN(I65))) ->  | O76: 0.005560409485 | P76: 0.007769674908 | Q76: 0.007527762065 | R76: 0.005427840471 | S76: 0.006891975248 | T76: 0.006023034735
C77: Ratcheted Maximum Demand (MW) | D77: calculated | E77: number | F77: n/a | J77: =IF(ISBLANK(I66),"",IF(ISBLANK(J66),"",LN(J66)-LN(I66))) ->  | O77: 0 | P77: 0 | Q77: 0 | R77: 0 | S77: 0 | T77: 0
C78: Energy throughput (GWh) | D78: calculated | E78: number | F78: n/a | J78: =IF(ISBLANK(I67),"",IF(ISBLANK(J67),"",LN(J67)-LN(I67))) ->  | O78: -0.01155296574 | P78: -0.004109594825 | Q78: -0.01173641363 | R78: 0.008987271 | S78: 0.003092254654 | T78: 0.004791248043
C79: 0 | D79: calculated | E79: number | F79: n/a | J79: =IF(ISBLANK(I68),"",IF(ISBLANK(J68),"",LN(J68)-LN(I68))) -> 
C80: 0 | D80: calculated | E80: number | F80: n/a | J80: =IF(ISBLANK(I69),"",IF(ISBLANK(J69),"",LN(J69)-LN(I69))) -> 
C82: Output weights | D82: Source | E82: Unit | F82: Basis | J82: SFA CD | K82: LSE CD | L82: LSE TLG | M82: MPFP
C84: =C64 -> Customer numbers (#) | D84: external | E84: number | F84: n/a | J84: 0.7713139418 | K84: 0.697 | L84: 0.5984 | M84: 0.458
C85: =C65 -> Circuit Length (km) | D85: external | E85: number | F85: n/a | J85: 0.09729187563 | K85: 0.112 | L85: 0.1123 | M85: 0.238
C86: Ratcheted Maximum Demand (MW) | D86: external | E86: number | F86: n/a | J86: 0.1313941825 | K86: 0.191 | L86: 0.2894 | M86: 0.176
C87: Energy throughput (GWh) | D87: external | E87: number | F87: n/a | M87: 0.128
C88: 0 | D88: external | E88: number | F88: n/a
C89: 0 | D89: external | E89: number | F89: n/a
C91: Check | D91: calculated | E91: Ok/Check | F91: n/a | J91: =IF(ISBLANK(J84:J89),"",IF(SUM(J84:J89)=1,"Ok","Check")) -> Ok | K91: =IF(ISBLANK(K84:K89),"",IF(SUM(K84:K89)=1,"Ok","Check")) -> Ok | L91: =IF(ISBLANK(L84:L89),"",IF(SUM(L84:L89)=1,"Ok","Check")) -> Check | M91: =IF(ISBLANK(M84:M89),"",IF(SUM(M84:M89)=1,"Ok","Check")) -> Ok | N91: =IF(ISBLANK(N84:N89),"",IF(SUM(N84:N89)=1,"Ok","Check")) ->  | O91: =IF(ISBLANK(O84:O89),"",IF(SUM(O84:O89)=1,"Ok","Check")) ->  | P91: =IF(ISBLANK(P84:P89),"",IF(SUM(P84:P89)=1,"Ok","Check")) ->  | Q91: =IF(ISBLANK(Q84:Q89),"",IF(SUM(Q84:Q89)=1,"Ok","Check")) ->  | R91: =IF(ISBLANK(R84:R89),"",IF(SUM(R84:R89)=1,"Ok","Check")) ->  | S91: =IF(ISBLANK(S84:S89),"",IF(SUM(S84:S89)=1,"Ok","Check")) ->  | T91: =IF(ISBLANK(T84:T89),"",IF(SUM(T84:T89)=1,"Ok","Check")) ->  | W91: =IF(COUNTIF(K91:T91,"Check")=0,"Ok","Check") -> Check
C93: Forecast output growth | D93: Source | E93: Unit | F93: Basis | J93: =IF(YEAR(J$4)>BaseYear,IF(YEAR(J$4)<=FPLastYear,J$4,""),"") ->  | O93: 2019-06-01 | P93: 2020-06-01 | Q93: 2021-06-01 | R93: 2022-06-01 | S93: 2023-06-01 | T93: 2024-06-01
C95: =TRANSPOSE(J82:M82) -> SFA CD | D95: calculated | E95: number | F95: n/a | J95: =IF(J$93=J$4,SUMPRODUCT(J$75:J$80,$J$84:$J$89),"") ->  | O95: 0.01293288265 | P95: 0.01333401614 | Q95: 0.01324914826 | R95: 0.01283001533 | S95: 0.01268368359 | T95: =IF(T$93=T$4,SUMPRODUCT(T$75:T$80,$J$84:$J$89),"") -> 0.01229895855
C96: LSE CD | D96: calculated | E96: number | F96: n/a | J96: =IF(J$93=J$4,SUMPRODUCT(J$75:J$80,$K$84:$K$89),"") ->  | O96: 0.01182074092 | P96: 0.01223642969 | Q96: 0.01215391287 | R96: 0.01172459207 | S96: 0.01162761817 | T96: =IF(T$93=T$4,SUMPRODUCT(T$75:T$80,$K$84:$K$89),"") -> 0.01125903455
C97: LSE TLG | D97: calculated | E97: number | F97: n/a | J97: =IF(J$93=J$4,SUMPRODUCT(J$75:J$80,$L$84:$L$89),"") ->  | O97: 0.01023830526 | P97: 0.01063085544 | Q97: 0.01055610631 | R97: 0.01015361777 | S97: 0.01009399897 | T97: =IF(T$93=T$4,SUMPRODUCT(T$75:T$80,$L$84:$L$89),"") -> 0.009763528362
C98: MPFP | D98: calculated | E98: number | F98: n/a | J98: =IF(J$93=J$4,SUMPRODUCT(J$75:J$80,$M$84:$M$89),"") ->  | O98: 0.007202808142 | P98: 0.008791922859 | Q98: 0.007721696516 | R98: 0.009746983899 | S98: 0.009169410553 | T98: =IF(T$93=T$4,SUMPRODUCT(T$75:T$80,$M$84:$M$89),"") -> 0.009001826915
B100: Input | Forecast productivity
C102: Partial factor productivity | D102: Source | E102: Unit | F102: Basis | J102: =IF(YEAR(J$4)>BaseYear,IF(YEAR(J$4)<=FPLastYear,J$4,""),"") ->  | O102: 2019-06-01 | P102: 2020-06-01 | Q102: 2021-06-01 | R102: 2022-06-01 | S102: 2023-06-01 | T102: 2024-06-01
C104: Partial factor productivity | D104: external | E104: =percent -> Per cent | F104: n/a | O104: 0 | P104: 0 | Q104: 0 | R104: 0 | S104: 0 | T104: 0
C106: Check | D106: calculated | E106: Ok/Check | F106: n/a | J106: =IF(J102=J$4,IF(ISBLANK(J104),"Check","Ok"),"") ->  | O106: Ok | P106: Ok | Q106: Ok | R106: Ok | S106: Ok | T106: =IF(T102=T$4,IF(ISBLANK(T104),"Check","Ok"),"") -> Ok | W106: =IF(COUNTIF(J106:T106,"Check")=0,"Ok","Check") -> Ok
B108: End

Sheet Input|Step changes
B1: =Index!$B$1 -> AER opex model | J1: Back to Index | L1: Key: | M1: Input | N1: External Link | O1: Internal Link | R1: Worksheet check: | S1: =IF(COUNTA($W$8:$W$236)=COUNTIF($W$8:$W$236,"OK"),"OK","Check") -> OK | U1: Overall Check: | V1: ='Check|List'!$S$1 -> Check
B2: =Index!$C$11 -> Input | Step changes
J3: Year ending
D4: Source | E4: Unit | F4: Basis | J4: =DATE(PPFirstYear,MONTH('Input|General'!$G$9),1) -> 2015-06-01 | K4: =DATE(PPFirstYear+1,MONTH('Input|General'!$G$9),1) -> 2016-06-01 | L4: =DATE(PPFirstYear+2,MONTH('Input|General'!$G$9),1) -> 2017-06-01 | M4: =DATE(PPFirstYear+3,MONTH('Input|General'!$G$9),1) -> 2018-06-01 | N4: =DATE(PPFirstYear+4,MONTH('Input|General'!$G$9),1) -> 2019-06-01 | O4: =DATE(PPFirstYear+5,MONTH('Input|General'!$G$9),1) -> 2020-06-01 | P4: =DATE(PPFirstYear+6,MONTH('Input|General'!$G$9),1) -> 2021-06-01 | Q4: =DATE(PPFirstYear+7,MONTH('Input|General'!$G$9),1) -> 2022-06-01 | R4: =DATE(PPFirstYear+8,MONTH('Input|General'!$G$9),1) -> 2023-06-01 | S4: =DATE(PPFirstYear+9,MONTH('Input|General'!$G$9),1) -> 2024-06-01
B8: Input |Step changes
C10: Step change | D10: Source | E10: Unit | F10: Basis | J10: =IF(YEAR(J$4)>=FPFirstYear,IF(YEAR(J$4)<=FPLastYear,J$4,""),"") ->  | O10: 2020-06-01 | P10: 2021-06-01 | Q10: 2022-06-01 | R10: 2023-06-01 | S10: 2024-06-01
C12: Vegetation management step change | D12: AER | E12: $millions | F12: 2019-06-01 | O12: 2.404928 | P12: 2.404928 | Q12: 2.404928 | R12: 2.404928 | S12: 2.404928
C13: Strathnairn demand management step change | D13: AER | E13: $millions | F13: 2019-06-01 | O13: ='[7]SCS_Distribution opex forecast'!O37 -> 0.3514121659 | P13: ='[7]SCS_Distribution opex forecast'!P37 -> 0.3525763682 | Q13: ='[7]SCS_Distribution opex forecast'!Q37 -> 0.3535342623 | R13: ='[7]SCS_Distribution opex forecast'!R37 -> 0.3534645121 | S13: ='[7]SCS_Distribution opex forecast'!S37 -> 0.3529756453
D14: AER | E14: $millions | F14: 2018-06-01
D15: AER | E15: $millions | F15: 2018-06-01
D16: AER | E16: $millions | F16: 2019-06-01
D17: AER | E17: $millions | F17: 2016-06-01
D18: AER | E18: $millions | F18: 2016-06-01
D19: AER | E19: $millions | F19: 2016-06-01
D20: AER | E20: $millions | F20: 2016-06-01
C22: Check | D22: calculated | E22: Ok/Check | F22: n/a | J22: =IF(J10=J4,IF(COUNTA($C12:$C20)=COUNT(J12:J20),"Ok","Check"),"") ->  | O22: Ok | P22: Ok | Q22: Ok | R22: Ok | S22: Ok | W22: =IF(COUNTIF(J22:T22,"Check")=0,"Ok","Check") -> Ok
B24: Input | Category specifc forecasts
C26: Category specific forecasts | D26: Source | E26: Unit | F26: Basis | J26: =IF(YEAR(J$4)>=FPFirstYear,IF(YEAR(J$4)<=FPLastYear,J$4,""),"") ->  | O26: 2020-06-01 | P26: 2021-06-01 | Q26: 2022-06-01 | R26: 2023-06-01 | S26: 2024-06-01
D28: AER | E28: $millions | F28: 2016-06-01
D29: AER | E29: $millions | F29: 2016-06-01
D30: AER | E30: $millions | F30: 2016-06-01
C32: Check | D32: calculated | E32: Ok/Check | F32: n/a | J32: =IF(J26=J4,IF(COUNTA($C28:$C30)=COUNT(J28:J30),"Ok","Check"),"") ->  | O32: Ok | P32: Ok | Q32: Ok | R32: Ok | S32: Ok | W32: =IF(COUNTIF(J32:T32,"Check")=0,"Ok","Check") -> Ok
B34: Input | Debt raising costs
C36: Debt Raising Costs | D36: Source | E36: Unit | F36: Basis | J36: =IF(YEAR(J$4)>=FPFirstYear,IF(YEAR(J$4)<=FPLastYear,J$4,""),"") ->  | O36: 2020-06-01 | P36: 2021-06-01 | Q36: 2022-06-01 | R36: 2023-06-01 | S36: 2024-06-01
C38: Distribution | D38: PTRM | E38: $millions | F38: =DATE(PPLastYear,MONTH('Input|General'!$G$9),1) -> 2019-06-01 | O38: 0.4098735512 | P38: 0.405173722 | Q38: 0.4013686061 | R38: 0.3939008378 | S38: 0.3922766199
C39: Transmission | D39: PTRM | E39: $millions | F39: =DATE(PPLastYear,MONTH('Input|General'!$G$9),1) -> 2019-06-01 | O39: 0.09020577341 | P39: 0.08728378465 | Q39: 0.08318558279 | R39: 0.07942273409 | S39: 0.07628176351
C41: Check | D41: calculated | E41: Ok/Check | F41: n/a | J41: =IF(J36=J4,IF(ISBLANK(J38),"Check","Ok"),"") ->  | O41: Ok | P41: Ok | Q41: Ok | R41: Ok | S41: Ok | W41: =IF(COUNTIF(J41:T41,"Check")=0,"Ok","Check") -> Ok
B43: End

Sheet Input|Dx Tx split
B1: =[1]Index!$B$1 -> AER opex model | J1: Back to Index | L1: Key: | M1: Input | N1: External Link | O1: Internal Link | R1: Worksheet check: | S1: =IF(COUNTA($V$8:$V$210)=COUNTIF($V$8:$V$210,"OK"),"OK","Check") -> OK | U1: Overall Check: | V1: ='Check|List'!$S$1 -> Check
B2: =[1]Index!$C$11 -> Input | Step changes
J3: Year ending
D4: Source | E4: Unit | F4: Basis | J4: =DATE(PPFirstYear,MONTH('Input|General'!$G$9),1) -> 2015-06-01 | K4: =DATE(PPFirstYear+1,MONTH('Input|General'!$G$9),1) -> 2016-06-01 | L4: =DATE(PPFirstYear+2,MONTH('Input|General'!$G$9),1) -> 2017-06-01 | M4: =DATE(PPFirstYear+3,MONTH('Input|General'!$G$9),1) -> 2018-06-01 | N4: =DATE(PPFirstYear+4,MONTH('Input|General'!$G$9),1) -> 2019-06-01 | O4: =DATE(PPFirstYear+5,MONTH('Input|General'!$G$9),1) -> 2020-06-01 | P4: =DATE(PPFirstYear+6,MONTH('Input|General'!$G$9),1) -> 2021-06-01 | Q4: =DATE(PPFirstYear+7,MONTH('Input|General'!$G$9),1) -> 2022-06-01 | R4: =DATE(PPFirstYear+8,MONTH('Input|General'!$G$9),1) -> 2023-06-01 | S4: =DATE(PPFirstYear+9,MONTH('Input|General'!$G$9),1) -> 2024-06-01
B8: Input | Dx/Tx split
C10: Dx/Tx split | D10: Source | E10: Unit | J10: =IF(YEAR(J$4)>=FPFirstYear,IF(YEAR(J$4)<=FPLastYear,J$4,""),"") ->  | O10: 2020-06-01 | P10: 2021-06-01 | Q10: 2022-06-01 | R10: 2023-06-01 | S10: 2024-06-01
C12: Distribution | D12: AER | E12: =percent -> Per cent | O12: =1-O13 -> 0.8534567869 | P12: =1-P13 -> 0.8534567869 | Q12: 0.8534567869 | R12: 0.8534567869 | S12: 0.8534567869
C13: Transmission | D13: AER | E13: Per cent | O13: ='[10]SCS_Transmission opex forecast'!$M$19/SUM('Input|Reported opex'!$M$37,'Input|Reported opex'!$M$59:$M$61) -> 0.1465432131 | P13: ='[10]SCS_Transmission opex forecast'!$M$19/SUM('Input|Reported opex'!$M$37,'Input|Reported opex'!$M$59:$M$61) -> 0.1465432131 | Q13: ='[10]SCS_Transmission opex forecast'!$M$19/SUM('Input|Reported opex'!$M$37,'Input|Reported opex'!$M$59:$M$61) -> 0.1465432131 | R13: ='[10]SCS_Transmission opex forecast'!$M$19/SUM('Input|Reported opex'!$M$37,'Input|Reported opex'!$M$59:$M$61) -> 0.1465432131 | S13: ='[10]SCS_Transmission opex forecast'!$M$19/SUM('Input|Reported opex'!$M$37,'Input|Reported opex'!$M$59:$M$61) -> 0.1465432131
C15: Check | D15: calculated | E15: Ok/Check | F15: n/a | O15: =IF(SUM(O12:O13)=1,"Ok","Check") -> Ok | P15: =IF(SUM(P12:P13)=1,"Ok","Check") -> Ok | Q15: Ok | R15: Ok | S15: Ok | V15: =IF(COUNTIF(K15:T15,"Check")=0,"Ok","Check") -> Ok
B17: End

Sheet Calc|Opex forecast
B1: =Index!$B$1 -> AER opex model | J1: Back to Index | L1: Key: | M1: Input | N1: External Link | O1: Internal Link | R1: Worksheet check: | S1: =IF(COUNTA($V$8:$V$210)=COUNTIF($V$8:$V$210,"OK"),"OK","Check") -> Check | U1: Overall Check: | V1: ='Check|List'!$S$1 -> Check
B2: =Index!$C$13 -> Calc | Opex Forecast
J3: Year ending
D4: Source | E4: Unit | F4: Basis | J4: =DATE(PPFirstYear,MONTH('Input|General'!$G$9),1) -> 2015-06-01 | K4: =DATE(PPFirstYear+1,MONTH('Input|General'!$G$9),1) -> 2016-06-01 | L4: =DATE(PPFirstYear+2,MONTH('Input|General'!$G$9),1) -> 2017-06-01 | M4: =DATE(PPFirstYear+3,MONTH('Input|General'!$G$9),1) -> 2018-06-01 | N4: =DATE(PPFirstYear+4,MONTH('Input|General'!$G$9),1) -> 2019-06-01 | O4: =DATE(PPFirstYear+5,MONTH('Input|General'!$G$9),1) -> 2020-06-01 | P4: =DATE(PPFirstYear+6,MONTH('Input|General'!$G$9),1) -> 2021-06-01 | Q4: =DATE(PPFirstYear+7,MONTH('Input|General'!$G$9),1) -> 2022-06-01 | R4: =DATE(PPFirstYear+8,MONTH('Input|General'!$G$9),1) -> 2023-06-01 | S4: =DATE(PPFirstYear+9,MONTH('Input|General'!$G$9),1) -> 2024-06-01
B8: Calc | Estimated final year expenditure | E8: $millions | F8: =DATE(PPLastYear,MONTH('Input|General'!$G$9),1) -> 2019-06-01
D10: Source | E10: Unit | F10: Basis | J10: =IF(YEAR(J$4)<=PPLastYear,J$4,"") -> 2015-06-01 | K10: 2016-06-01 | L10: 2017-06-01 | M10: 2018-06-01 | N10: 2019-06-01
C12: Reported opex, total | D12: Inputs|Reported opex | E12: ='Input|Reported opex'!E53 -> $millions | F12: ='Input|Reported opex'!F53 -> nominal | J12: =IF(YEAR(J$4)=BaseYear,'Input|Reported opex'!J44,0) -> 0 | K12: =IF(YEAR(K$4)=BaseYear,'Input|Reported opex'!K44,0) -> 0 | L12: =IF(YEAR(L$4)=BaseYear,'Input|Reported opex'!L44,0) -> 0 | M12: =IF(YEAR(M$4)=BaseYear,'Input|Reported opex'!M44,0) -> 54.7965254 | N12: =IF(YEAR(N$4)=BaseYear,'Input|Reported opex'!N44,0) -> 0 | O12: =IF(YEAR(O$4)=BaseYear,'Input|Reported opex'!O44,0) -> 0 | P12: =IF(YEAR(P$4)=BaseYear,'Input|Reported opex'!P44,0) -> 0 | Q12: =IF(YEAR(Q$4)=BaseYear,'Input|Reported opex'!Q44,0) -> 0 | R12: =IF(YEAR(R$4)=BaseYear,'Input|Reported opex'!R44,0) -> 0 | S12: =IF(YEAR(S$4)=BaseYear,'Input|Reported opex'!S44,0) -> 0
C13: Reported opex, total | D13: Calculated | E13: =$E$8 -> $millions | F13: =$F$8 -> 2019-06-01 | J13: =J12*IF($F12="nominal",LOOKUP($F13,Nominal_to_Real,'Input|Rate of change'!K$25:K$30),INDEX('Input|Rate of change'!$C$14:$O$21,MATCH('Calc|Opex forecast'!$F12,'Input|Rate of change'!$C$14:$C$21,0),MATCH('Calc|Opex forecast'!$F13,'Input|Rate of change'!$C$14:$O$14,0)))*IF($E12="$millions",1000000,IF($E12="$000",1000,1))/IF($E13="$millions",1000000,IF($E13="$000",1000,1)) -> 0 | K13: =K12*IF($F12="nominal",LOOKUP($F13,Nominal_to_Real,'Input|Rate of change'!L$25:L$30),INDEX('Input|Rate of change'!$C$14:$O$21,MATCH('Calc|Opex forecast'!$F12,'Input|Rate of change'!$C$14:$C$21,0),MATCH('Calc|Opex forecast'!$F13,'Input|Rate of change'!$C$14:$O$14,0)))*IF($E12="$millions",1000000,IF($E12="$000",1000,1))/IF($E13="$millions",1000000,IF($E13="$000",1000,1)) -> 0 | L13: =L12*IF($F12="nominal",LOOKUP($F13,Nominal_to_Real,'Input|Rate of change'!M$25:M$30),INDEX('Input|Rate of change'!$C$14:$O$21,MATCH('Calc|Opex forecast'!$F12,'Input|Rate of change'!$C$14:$C$21,0),MATCH('Calc|Opex forecast'!$F13,'Input|Rate of change'!$C$14:$O$14,0)))*IF($E12="$millions",1000000,IF($E12="$000",1000,1))/IF($E13="$millions",1000000,IF($E13="$000",1000,1)) -> 0 | M13: =M12*IF($F12="nominal",LOOKUP($F13,Nominal_to_Real,'Input|Rate of change'!N$25:N$30),INDEX('Input|Rate of change'!$C$14:$O$21,MATCH('Calc|Opex forecast'!$F12,'Input|Rate of change'!$C$14:$C$21,0),MATCH('Calc|Opex forecast'!$F13,'Input|Rate of change'!$C$14:$O$14,0)))*IF($E12="$millions",1000000,IF($E12="$000",1000,1))/IF($E13="$millions",1000000,IF($E13="$000",1000,1)) -> 56.60851328 | N13: =N12*IF($F12="nominal",LOOKUP($F13,Nominal_to_Real,'Input|Rate of change'!O$25:O$30),INDEX('Input|Rate of change'!$C$14:$O$21,MATCH('Calc|Opex forecast'!$F12,'Input|Rate of change'!$C$14:$C$21,0),MATCH('Calc|Opex forecast'!$F13,'Input|Rate of change'!$C$14:$O$14,0)))*IF($E12="$millions",1000000,IF($E12="$000",1000,1))/IF($E13="$millions",1000000,IF($E13="$000",1000,1)) -> 0 | O13: =O12*IF($F12="nominal",LOOKUP($F13,Nominal_to_Real,'Input|Rate of change'!P$25:P$30),INDEX('Input|Rate of change'!$C$14:$O$21,MATCH('Calc|Opex forecast'!$F12,'Input|Rate of change'!$C$14:$C$21,0),MATCH('Calc|Opex forecast'!$F13,'Input|Rate of change'!$C$14:$O$14,0)))*IF($E12="$millions",1000000,IF($E12="$000",1000,1))/IF($E13="$millions",1000000,IF($E13="$000",1000,1)) -> 0 | P13: =P12*IF($F12="nominal",LOOKUP($F13,Nominal_to_Real,'Input|Rate of change'!Q$25:Q$30),INDEX('Input|Rate of change'!$C$14:$O$21,MATCH('Calc|Opex forecast'!$F12,'Input|Rate of change'!$C$14:$C$21,0),MATCH('Calc|Opex forecast'!$F13,'Input|Rate of change'!$C$14:$O$14,0)))*IF($E12="$millions",1000000,IF($E12="$000",1000,1))/IF($E13="$millions",1000000,IF($E13="$000",1000,1)) -> 0 | Q13: =Q12*IF($F12="nominal",LOOKUP($F13,Nominal_to_Real,'Input|Rate of change'!R$25:R$30),INDEX('Input|Rate of change'!$C$14:$O$21,MATCH('Calc|Opex forecast'!$F12,'Input|Rate of change'!$C$14:$C$21,0),MATCH('Calc|Opex forecast'!$F13,'Input|Rate of change'!$C$14:$O$14,0)))*IF($E12="$millions",1000000,IF($E12="$000",1000,1))/IF($E13="$millions",1000000,IF($E13="$000",1000,1)) -> 0 | R13: =R12*IF($F12="nominal",LOOKUP($F13,Nominal_to_Real,'Input|Rate of change'!S$25:S$30),INDEX('Input|Rate of change'!$C$14:$O$21,MATCH('Calc|Opex forecast'!$F12,'Input|Rate of change'!$C$14:$C$21,0),MATCH('Calc|Opex forecast'!$F13,'Input|Rate of change'!$C$14:$O$14,0)))*IF($E12="$millions",1000000,IF($E12="$000",1000,1))/IF($E13="$millions",1000000,IF($E13="$000",1000,1)) -> 0 | S13: =S12*IF($F12="nominal",LOOKUP($F13,Nominal_to_Real,'Input|Rate of change'!T$25:T$30),INDEX('Input|Rate of change'!$C$14:$O$21,MATCH('Calc|Opex forecast'!$F12,'Input|Rate of change'!$C$14:$C$21,0),MATCH('Calc|Opex forecast'!$F13,'Input|Rate of change'!$C$14:$O$14,0)))*IF($E12="$millions",1000000,IF($E12="$000",1000,1))/IF($E13="$millions",1000000,IF($E13="$000",1000,1)) -> 0
C15: Reported opex, category specific forecasts | D15: Inputs|Reported opex | E15: ='Input|Reported opex'!E60 -> $millions | F15: ='Input|Reported opex'!F53 -> nominal | J15: =IF(YEAR(J$4)=BaseYear,'Input|Reported opex'!J53,0) -> 0 | K15: =IF(YEAR(K$4)=BaseYear,'Input|Reported opex'!K53,0) -> 0 | L15: =IF(YEAR(L$4)=BaseYear,'Input|Reported opex'!L53,0) -> 0 | M15: =IF(YEAR(M$4)=BaseYear,'Input|Reported opex'!M53,0) -> 0 | N15: =IF(YEAR(N$4)=BaseYear,'Input|Reported opex'!N53,0) -> 0 | O15: =IF(YEAR(O$4)=BaseYear,'Input|Reported opex'!O53,0) -> 0 | P15: =IF(YEAR(P$4)=BaseYear,'Input|Reported opex'!P53,0) -> 0 | Q15: =IF(YEAR(Q$4)=BaseYear,'Input|Reported opex'!Q53,0) -> 0 | R15: =IF(YEAR(R$4)=BaseYear,'Input|Reported opex'!R53,0) -> 0 | S15: =IF(YEAR(S$4)=BaseYear,'Input|Reported opex'!S53,0) -> 0
C16: Reported opex, category specific forecasts | D16: Calculated | E16: =$E$8 -> $millions | F16: =$F$8 -> 2019-06-01 | J16: =J15*IF($F15="nominal",LOOKUP($F16,Nominal_to_Real,'Input|Rate of change'!K$25:K$30),INDEX('Input|Rate of change'!$C$14:$O$21,MATCH('Calc|Opex forecast'!$F15,'Input|Rate of change'!$C$14:$C$21,0),MATCH('Calc|Opex forecast'!$F16,'Input|Rate of change'!$C$14:$O$14,0)))*IF($E15="$millions",1000000,IF($E15="$000",1000,1))/IF($E16="$millions",1000000,IF($E16="$000",1000,1)) -> 0 | K16: =K15*IF($F15="nominal",LOOKUP($F16,Nominal_to_Real,'Input|Rate of change'!L$25:L$30),INDEX('Input|Rate of change'!$C$14:$O$21,MATCH('Calc|Opex forecast'!$F15,'Input|Rate of change'!$C$14:$C$21,0),MATCH('Calc|Opex forecast'!$F16,'Input|Rate of change'!$C$14:$O$14,0)))*IF($E15="$millions",1000000,IF($E15="$000",1000,1))/IF($E16="$millions",1000000,IF($E16="$000",1000,1)) -> 0 | L16: =L15*IF($F15="nominal",LOOKUP($F16,Nominal_to_Real,'Input|Rate of change'!M$25:M$30),INDEX('Input|Rate of change'!$C$14:$O$21,MATCH('Calc|Opex forecast'!$F15,'Input|Rate of change'!$C$14:$C$21,0),MATCH('Calc|Opex forecast'!$F16,'Input|Rate of change'!$C$14:$O$14,0)))*IF($E15="$millions",1000000,IF($E15="$000",1000,1))/IF($E16="$millions",1000000,IF($E16="$000",1000,1)) -> 0 | M16: =M15*IF($F15="nominal",LOOKUP($F16,Nominal_to_Real,'Input|Rate of change'!N$25:N$30),INDEX('Input|Rate of change'!$C$14:$O$21,MATCH('Calc|Opex forecast'!$F15,'Input|Rate of change'!$C$14:$C$21,0),MATCH('Calc|Opex forecast'!$F16,'Input|Rate of change'!$C$14:$O$14,0)))*IF($E15="$millions",1000000,IF($E15="$000",1000,1))/IF($E16="$millions",1000000,IF($E16="$000",1000,1)) -> 0 | N16: =N15*IF($F15="nominal",LOOKUP($F16,Nominal_to_Real,'Input|Rate of change'!O$25:O$30),INDEX('Input|Rate of change'!$C$14:$O$21,MATCH('Calc|Opex forecast'!$F15,'Input|Rate of change'!$C$14:$C$21,0),MATCH('Calc|Opex forecast'!$F16,'Input|Rate of change'!$C$14:$O$14,0)))*IF($E15="$millions",1000000,IF($E15="$000",1000,1))/IF($E16="$millions",1000000,IF($E16="$000",1000,1)) -> 0 | O16: =O15*IF($F15="nominal",LOOKUP($F16,Nominal_to_Real,'Input|Rate of change'!P$25:P$30),INDEX('Input|Rate of change'!$C$14:$O$21,MATCH('Calc|Opex forecast'!$F15,'Input|Rate of change'!$C$14:$C$21,0),MATCH('Calc|Opex forecast'!$F16,'Input|Rate of change'!$C$14:$O$14,0)))*IF($E15="$millions",1000000,IF($E15="$000",1000,1))/IF($E16="$millions",1000000,IF($E16="$000",1000,1)) -> 0 | P16: =P15*IF($F15="nominal",LOOKUP($F16,Nominal_to_Real,'Input|Rate of change'!Q$25:Q$30),INDEX('Input|Rate of change'!$C$14:$O$21,MATCH('Calc|Opex forecast'!$F15,'Input|Rate of change'!$C$14:$C$21,0),MATCH('Calc|Opex forecast'!$F16,'Input|Rate of change'!$C$14:$O$14,0)))*IF($E15="$millions",1000000,IF($E15="$000",1000,1))/IF($E16="$millions",1000000,IF($E16="$000",1000,1)) -> 0 | Q16: =Q15*IF($F15="nominal",LOOKUP($F16,Nominal_to_Real,'Input|Rate of change'!R$25:R$30),INDEX('Input|Rate of change'!$C$14:$O$21,MATCH('Calc|Opex forecast'!$F15,'Input|Rate of change'!$C$14:$C$21,0),MATCH('Calc|Opex forecast'!$F16,'Input|Rate of change'!$C$14:$O$14,0)))*IF($E15="$millions",1000000,IF($E15="$000",1000,1))/IF($E16="$millions",1000000,IF($E16="$000",1000,1)) -> 0 | R16: =R15*IF($F15="nominal",LOOKUP($F16,Nominal_to_Real,'Input|Rate of change'!S$25:S$30),INDEX('Input|Rate of change'!$C$14:$O$21,MATCH('Calc|Opex forecast'!$F15,'Input|Rate of change'!$C$14:$C$21,0),MATCH('Calc|Opex forecast'!$F16,'Input|Rate of change'!$C$14:$O$14,0)))*IF($E15="$millions",1000000,IF($E15="$000",1000,1))/IF($E16="$millions",1000000,IF($E16="$000",1000,1)) -> 0 | S16: =S15*IF($F15="nominal",LOOKUP($F16,Nominal_to_Real,'Input|Rate of change'!T$25:T$30),INDEX('Input|Rate of change'!$C$14:$O$21,MATCH('Calc|Opex forecast'!$F15,'Input|Rate of change'!$C$14:$C$21,0),MATCH('Calc|Opex forecast'!$F16,'Input|Rate of change'!$C$14:$O$14,0)))*IF($E15="$millions",1000000,IF($E15="$000",1000,1))/IF($E16="$millions",1000000,IF($E16="$000",1000,1)) -> 0
C18: Reported base year opex | D18: Calculated | E18: =$E$8 -> $millions | F18: =$F$8 -> 2019-06-01 | J18: =J13 -> 0 | K18: 0 | L18: 0 | M18: 56.60851328 | N18: 0 | O18: 0 | P18: 0 | Q18: 0 | R18: 0 | S18: 0
C20: Remove base year opex for categories forecast specifically | D20: Calculated | E20: =$E$8 -> $millions | F20: =$F$8 -> 2019-06-01 | J20: =-J16 -> 0 | K20: =-K16 -> 0 | L20: 0 | M20: 0 | N20: 0 | O20: =IF(YEAR(O$4)=PPLastYear,SUM($J16:$S16)-SUM(#REF!)+SUM(#REF!),0) -> 0 | P20: =IF(YEAR(P$4)=PPLastYear,SUM($J16:$S16)-SUM(#REF!)+SUM(#REF!),0) -> 0 | Q20: =IF(YEAR(Q$4)=PPLastYear,SUM($J16:$S16)-SUM(#REF!)+SUM(#REF!),0) -> 0 | R20: =IF(YEAR(R$4)=PPLastYear,SUM($J16:$S16)-SUM(#REF!)+SUM(#REF!),0) -> 0 | S20: =IF(YEAR(S$4)=PPLastYear,SUM($J16:$S16)-SUM(#REF!)+SUM(#REF!),0) -> 0
C22: ='Input|Reported opex'!$C$59 -> Remove Power of Choice cost pass through | D22: Inputs|Reported opex | E22: ='Input|Reported opex'!E59 -> $millions | F22: ='Input|Reported opex'!F59 -> nominal | J22: =IF(YEAR(J$4)=BaseYear,'Input|Reported opex'!J59,0) -> 0 | K22: =IF(YEAR(K$4)=BaseYear,'Input|Reported opex'!K59,0) -> 0 | L22: =IF(YEAR(L$4)=BaseYear,'Input|Reported opex'!L59,0) -> 0 | M22: =IF(YEAR(M$4)=BaseYear,'Input|Reported opex'!M59,0) -> -1.19163178 | N22: =IF(YEAR(N$4)=BaseYear,'Input|Reported opex'!N59,0) -> 0 | O22: =IF(YEAR(O$4)=BaseYear,'Input|Reported opex'!O59,0) -> 0 | P22: =IF(YEAR(P$4)=BaseYear,'Input|Reported opex'!P59,0) -> 0 | Q22: =IF(YEAR(Q$4)=BaseYear,'Input|Reported opex'!Q59,0) -> 0 | R22: =IF(YEAR(R$4)=BaseYear,'Input|Reported opex'!R59,0) -> 0 | S22: =IF(YEAR(S$4)=BaseYear,'Input|Reported opex'!S59,0) -> 0
C23: =C22 -> Remove Power of Choice cost pass through | D23: Calculated | E23: =$E$8 -> $millions | F23: =$F$8 -> 2019-06-01 | J23: =J22*IF($F22="nominal",LOOKUP($F23,Nominal_to_Real,'Input|Rate of change'!K$25:K$30),INDEX('Input|Rate of change'!$C$14:$O$21,MATCH('Calc|Opex forecast'!$F22,'Input|Rate of change'!$C$14:$C$21,0),MATCH('Calc|Opex forecast'!$F23,'Input|Rate of change'!$C$14:$O$14,0)))*IF($E22="$millions",1000000,IF($E22="$000",1000,1))/IF($E23="$millions",1000000,IF($E23="$000",1000,1)) -> 0 | K23: =K22*IF($F22="nominal",LOOKUP($F23,Nominal_to_Real,'Input|Rate of change'!L$25:L$30),INDEX('Input|Rate of change'!$C$14:$O$21,MATCH('Calc|Opex forecast'!$F22,'Input|Rate of change'!$C$14:$C$21,0),MATCH('Calc|Opex forecast'!$F23,'Input|Rate of change'!$C$14:$O$14,0)))*IF($E22="$millions",1000000,IF($E22="$000",1000,1))/IF($E23="$millions",1000000,IF($E23="$000",1000,1)) -> 0 | L23: =L22*IF($F22="nominal",LOOKUP($F23,Nominal_to_Real,'Input|Rate of change'!M$25:M$30),INDEX('Input|Rate of change'!$C$14:$O$21,MATCH('Calc|Opex forecast'!$F22,'Input|Rate of change'!$C$14:$C$21,0),MATCH('Calc|Opex forecast'!$F23,'Input|Rate of change'!$C$14:$O$14,0)))*IF($E22="$millions",1000000,IF($E22="$000",1000,1))/IF($E23="$millions",1000000,IF($E23="$000",1000,1)) -> 0 | M23: =M22*IF($F22="nominal",LOOKUP($F23,Nominal_to_Real,'Input|Rate of change'!N$25:N$30),INDEX('Input|Rate of change'!$C$14:$O$21,MATCH('Calc|Opex forecast'!$F22,'Input|Rate of change'!$C$14:$C$21,0),MATCH('Calc|Opex forecast'!$F23,'Input|Rate of change'!$C$14:$O$14,0)))*IF($E22="$millions",1000000,IF($E22="$000",1000,1))/IF($E23="$millions",1000000,IF($E23="$000",1000,1)) -> -1.231036147 | N23: =N22*IF($F22="nominal",LOOKUP($F23,Nominal_to_Real,'Input|Rate of change'!O$25:O$30),INDEX('Input|Rate of change'!$C$14:$O$21,MATCH('Calc|Opex forecast'!$F22,'Input|Rate of change'!$C$14:$C$21,0),MATCH('Calc|Opex forecast'!$F23,'Input|Rate of change'!$C$14:$O$14,0)))*IF($E22="$millions",1000000,IF($E22="$000",1000,1))/IF($E23="$millions",1000000,IF($E23="$000",1000,1)) -> 0 | O23: =O22*IF($F22="nominal",LOOKUP($F23,Nominal_to_Real,'Input|Rate of change'!P$25:P$30),INDEX('Input|Rate of change'!$C$14:$O$21,MATCH('Calc|Opex forecast'!$F22,'Input|Rate of change'!$C$14:$C$21,0),MATCH('Calc|Opex forecast'!$F23,'Input|Rate of change'!$C$14:$O$14,0)))*IF($E22="$millions",1000000,IF($E22="$000",1000,1))/IF($E23="$millions",1000000,IF($E23="$000",1000,1)) -> 0 | P23: =P22*IF($F22="nominal",LOOKUP($F23,Nominal_to_Real,'Input|Rate of change'!Q$25:Q$30),INDEX('Input|Rate of change'!$C$14:$O$21,MATCH('Calc|Opex forecast'!$F22,'Input|Rate of change'!$C$14:$C$21,0),MATCH('Calc|Opex forecast'!$F23,'Input|Rate of change'!$C$14:$O$14,0)))*IF($E22="$millions",1000000,IF($E22="$000",1000,1))/IF($E23="$millions",1000000,IF($E23="$000",1000,1)) -> 0 | Q23: =Q22*IF($F22="nominal",LOOKUP($F23,Nominal_to_Real,'Input|Rate of change'!R$25:R$30),INDEX('Input|Rate of change'!$C$14:$O$21,MATCH('Calc|Opex forecast'!$F22,'Input|Rate of change'!$C$14:$C$21,0),MATCH('Calc|Opex forecast'!$F23,'Input|Rate of change'!$C$14:$O$14,0)))*IF($E22="$millions",1000000,IF($E22="$000",1000,1))/IF($E23="$millions",1000000,IF($E23="$000",1000,1)) -> 0 | R23: =R22*IF($F22="nominal",LOOKUP($F23,Nominal_to_Real,'Input|Rate of change'!S$25:S$30),INDEX('Input|Rate of change'!$C$14:$O$21,MATCH('Calc|Opex forecast'!$F22,'Input|Rate of change'!$C$14:$C$21,0),MATCH('Calc|Opex forecast'!$F23,'Input|Rate of change'!$C$14:$O$14,0)))*IF($E22="$millions",1000000,IF($E22="$000",1000,1))/IF($E23="$millions",1000000,IF($E23="$000",1000,1)) -> 0 | S23: =S22*IF($F22="nominal",LOOKUP($F23,Nominal_to_Real,'Input|Rate of change'!T$25:T$30),INDEX('Input|Rate of change'!$C$14:$O$21,MATCH('Calc|Opex forecast'!$F22,'Input|Rate of change'!$C$14:$C$21,0),MATCH('Calc|Opex forecast'!$F23,'Input|Rate of change'!$C$14:$O$14,0)))*IF($E22="$millions",1000000,IF($E22="$000",1000,1))/IF($E23="$millions",1000000,IF($E23="$000",1000,1)) -> 0
C25: ='Input|Reported opex'!$C$60 -> Remove Ring Fencing Implementation cost pass through | D25: Inputs|Reported opex | E25: ='Input|Reported opex'!$E$60 -> $millions | F25: ='Input|Reported opex'!$F$60 -> nominal | J25: =IF(YEAR(J$4)=BaseYear,'Input|Reported opex'!J60,0) -> 0 | K25: =IF(YEAR(K$4)=BaseYear,'Input|Reported opex'!K60,0) -> 0 | L25: =IF(YEAR(L$4)=BaseYear,'Input|Reported opex'!L60,0) -> 0 | M25: =IF(YEAR(M$4)=BaseYear,'Input|Reported opex'!M60,0) -> -2.17736478 | N25: =IF(YEAR(N$4)=BaseYear,'Input|Reported opex'!N60,0) -> 0 | O25: =IF(YEAR(O$4)=BaseYear,'Input|Reported opex'!O60,0) -> 0 | P25: =IF(YEAR(P$4)=BaseYear,'Input|Reported opex'!P60,0) -> 0 | Q25: =IF(YEAR(Q$4)=BaseYear,'Input|Reported opex'!Q60,0) -> 0 | R25: =IF(YEAR(R$4)=BaseYear,'Input|Reported opex'!R60,0) -> 0 | S25: =IF(YEAR(S$4)=BaseYear,'Input|Reported opex'!S60,0) -> 0
C26: =C25 -> Remove Ring Fencing Implementation cost pass through | D26: Calculated | E26: =$E$8 -> $millions | F26: =$F$8 -> 2019-06-01 | J26: =J25*IF($F25="nominal",LOOKUP($F26,Nominal_to_Real,'Input|Rate of change'!K$25:K$30),INDEX('Input|Rate of change'!$C$14:$O$21,MATCH('Calc|Opex forecast'!$F25,'Input|Rate of change'!$C$14:$C$21,0),MATCH('Calc|Opex forecast'!$F26,'Input|Rate of change'!$C$14:$O$14,0)))*IF($E25="$millions",1000000,IF($E25="$000",1000,1))/IF($E26="$millions",1000000,IF($E26="$000",1000,1)) -> 0 | K26: =K25*IF($F25="nominal",LOOKUP($F26,Nominal_to_Real,'Input|Rate of change'!L$25:L$30),INDEX('Input|Rate of change'!$C$14:$O$21,MATCH('Calc|Opex forecast'!$F25,'Input|Rate of change'!$C$14:$C$21,0),MATCH('Calc|Opex forecast'!$F26,'Input|Rate of change'!$C$14:$O$14,0)))*IF($E25="$millions",1000000,IF($E25="$000",1000,1))/IF($E26="$millions",1000000,IF($E26="$000",1000,1)) -> 0 | L26: =L25*IF($F25="nominal",LOOKUP($F26,Nominal_to_Real,'Input|Rate of change'!M$25:M$30),INDEX('Input|Rate of change'!$C$14:$O$21,MATCH('Calc|Opex forecast'!$F25,'Input|Rate of change'!$C$14:$C$21,0),MATCH('Calc|Opex forecast'!$F26,'Input|Rate of change'!$C$14:$O$14,0)))*IF($E25="$millions",1000000,IF($E25="$000",1000,1))/IF($E26="$millions",1000000,IF($E26="$000",1000,1)) -> 0 | M26: =M25*IF($F25="nominal",LOOKUP($F26,Nominal_to_Real,'Input|Rate of change'!N$25:N$30),INDEX('Input|Rate of change'!$C$14:$O$21,MATCH('Calc|Opex forecast'!$F25,'Input|Rate of change'!$C$14:$C$21,0),MATCH('Calc|Opex forecast'!$F26,'Input|Rate of change'!$C$14:$O$14,0)))*IF($E25="$millions",1000000,IF($E25="$000",1000,1))/IF($E26="$millions",1000000,IF($E26="$000",1000,1)) -> -2.24936494 | N26: =N25*IF($F25="nominal",LOOKUP($F26,Nominal_to_Real,'Input|Rate of change'!O$25:O$30),INDEX('Input|Rate of change'!$C$14:$O$21,MATCH('Calc|Opex forecast'!$F25,'Input|Rate of change'!$C$14:$C$21,0),MATCH('Calc|Opex forecast'!$F26,'Input|Rate of change'!$C$14:$O$14,0)))*IF($E25="$millions",1000000,IF($E25="$000",1000,1))/IF($E26="$millions",1000000,IF($E26="$000",1000,1)) -> 0 | O26: =O25*IF($F25="nominal",LOOKUP($F26,Nominal_to_Real,'Input|Rate of change'!P$25:P$30),INDEX('Input|Rate of change'!$C$14:$O$21,MATCH('Calc|Opex forecast'!$F25,'Input|Rate of change'!$C$14:$C$21,0),MATCH('Calc|Opex forecast'!$F26,'Input|Rate of change'!$C$14:$O$14,0)))*IF($E25="$millions",1000000,IF($E25="$000",1000,1))/IF($E26="$millions",1000000,IF($E26="$000",1000,1)) -> 0 | P26: =P25*IF($F25="nominal",LOOKUP($F26,Nominal_to_Real,'Input|Rate of change'!Q$25:Q$30),INDEX('Input|Rate of change'!$C$14:$O$21,MATCH('Calc|Opex forecast'!$F25,'Input|Rate of change'!$C$14:$C$21,0),MATCH('Calc|Opex forecast'!$F26,'Input|Rate of change'!$C$14:$O$14,0)))*IF($E25="$millions",1000000,IF($E25="$000",1000,1))/IF($E26="$millions",1000000,IF($E26="$000",1000,1)) -> 0 | Q26: =Q25*IF($F25="nominal",LOOKUP($F26,Nominal_to_Real,'Input|Rate of change'!R$25:R$30),INDEX('Input|Rate of change'!$C$14:$O$21,MATCH('Calc|Opex forecast'!$F25,'Input|Rate of change'!$C$14:$C$21,0),MATCH('Calc|Opex forecast'!$F26,'Input|Rate of change'!$C$14:$O$14,0)))*IF($E25="$millions",1000000,IF($E25="$000",1000,1))/IF($E26="$millions",1000000,IF($E26="$000",1000,1)) -> 0 | R26: =R25*IF($F25="nominal",LOOKUP($F26,Nominal_to_Real,'Input|Rate of change'!S$25:S$30),INDEX('Input|Rate of change'!$C$14:$O$21,MATCH('Calc|Opex forecast'!$F25,'Input|Rate of change'!$C$14:$C$21,0),MATCH('Calc|Opex forecast'!$F26,'Input|Rate of change'!$C$14:$O$14,0)))*IF($E25="$millions",1000000,IF($E25="$000",1000,1))/IF($E26="$millions",1000000,IF($E26="$000",1000,1)) -> 0 | S26: =S25*IF($F25="nominal",LOOKUP($F26,Nominal_to_Real,'Input|Rate of change'!T$25:T$30),INDEX('Input|Rate of change'!$C$14:$O$21,MATCH('Calc|Opex forecast'!$F25,'Input|Rate of change'!$C$14:$C$21,0),MATCH('Calc|Opex forecast'!$F26,'Input|Rate of change'!$C$14:$O$14,0)))*IF($E25="$millions",1000000,IF($E25="$000",1000,1))/IF($E26="$millions",1000000,IF($E26="$000",1000,1)) -> 0
C28: ='Input|Reported opex'!$C$61 -> Remove outage and switching costs relating to TCCS contracts | D28: Inputs|Reported opex | E28: ='Input|Reported opex'!$E$61 -> $millions | F28: ='Input|Reported opex'!$F$61 -> nominal | J28: =IF(YEAR(J$4)=BaseYear,'Input|Reported opex'!J61,0) -> 0 | K28: =IF(YEAR(K$4)=BaseYear,'Input|Reported opex'!K61,0) -> 0 | L28: =IF(YEAR(L$4)=BaseYear,'Input|Reported opex'!L61,0) -> 0 | M28: =IF(YEAR(M$4)=BaseYear,'Input|Reported opex'!M61,0) -> -0.045116 | N28: =IF(YEAR(N$4)=BaseYear,'Input|Reported opex'!N61,0) -> 0 | O28: =IF(YEAR(O$4)=BaseYear,'Input|Reported opex'!O61,0) -> 0 | P28: =IF(YEAR(P$4)=BaseYear,'Input|Reported opex'!P61,0) -> 0 | Q28: =IF(YEAR(Q$4)=BaseYear,'Input|Reported opex'!Q61,0) -> 0 | R28: =IF(YEAR(R$4)=BaseYear,'Input|Reported opex'!R61,0) -> 0 | S28: =IF(YEAR(S$4)=BaseYear,'Input|Reported opex'!S61,0) -> 0
C29: =C28 -> Remove outage and switching costs relating to TCCS contracts | D29: Calculated | E29: =$E$8 -> $millions | F29: =$F$8 -> 2019-06-01 | J29: =J28*IF($F28="nominal",LOOKUP($F29,Nominal_to_Real,'Input|Rate of change'!K$25:K$30),INDEX('Input|Rate of change'!$C$14:$O$21,MATCH('Calc|Opex forecast'!$F28,'Input|Rate of change'!$C$14:$C$21,0),MATCH('Calc|Opex forecast'!$F29,'Input|Rate of change'!$C$14:$O$14,0)))*IF($E28="$millions",1000000,IF($E28="$000",1000,1))/IF($E29="$millions",1000000,IF($E29="$000",1000,1)) -> 0 | K29: =K28*IF($F28="nominal",LOOKUP($F29,Nominal_to_Real,'Input|Rate of change'!L$25:L$30),INDEX('Input|Rate of change'!$C$14:$O$21,MATCH('Calc|Opex forecast'!$F28,'Input|Rate of change'!$C$14:$C$21,0),MATCH('Calc|Opex forecast'!$F29,'Input|Rate of change'!$C$14:$O$14,0)))*IF($E28="$millions",1000000,IF($E28="$000",1000,1))/IF($E29="$millions",1000000,IF($E29="$000",1000,1)) -> 0 | L29: =L28*IF($F28="nominal",LOOKUP($F29,Nominal_to_Real,'Input|Rate of change'!M$25:M$30),INDEX('Input|Rate of change'!$C$14:$O$21,MATCH('Calc|Opex forecast'!$F28,'Input|Rate of change'!$C$14:$C$21,0),MATCH('Calc|Opex forecast'!$F29,'Input|Rate of change'!$C$14:$O$14,0)))*IF($E28="$millions",1000000,IF($E28="$000",1000,1))/IF($E29="$millions",1000000,IF($E29="$000",1000,1)) -> 0 | M29: =M28*IF($F28="nominal",LOOKUP($F29,Nominal_to_Real,'Input|Rate of change'!N$25:N$30),INDEX('Input|Rate of change'!$C$14:$O$21,MATCH('Calc|Opex forecast'!$F28,'Input|Rate of change'!$C$14:$C$21,0),MATCH('Calc|Opex forecast'!$F29,'Input|Rate of change'!$C$14:$O$14,0)))*IF($E28="$millions",1000000,IF($E28="$000",1000,1))/IF($E29="$millions",1000000,IF($E29="$000",1000,1)) -> -0.04660787644 | N29: =N28*IF($F28="nominal",LOOKUP($F29,Nominal_to_Real,'Input|Rate of change'!O$25:O$30),INDEX('Input|Rate of change'!$C$14:$O$21,MATCH('Calc|Opex forecast'!$F28,'Input|Rate of change'!$C$14:$C$21,0),MATCH('Calc|Opex forecast'!$F29,'Input|Rate of change'!$C$14:$O$14,0)))*IF($E28="$millions",1000000,IF($E28="$000",1000,1))/IF($E29="$millions",1000000,IF($E29="$000",1000,1)) -> 0 | O29: =O28*IF($F28="nominal",LOOKUP($F29,Nominal_to_Real,'Input|Rate of change'!P$25:P$30),INDEX('Input|Rate of change'!$C$14:$O$21,MATCH('Calc|Opex forecast'!$F28,'Input|Rate of change'!$C$14:$C$21,0),MATCH('Calc|Opex forecast'!$F29,'Input|Rate of change'!$C$14:$O$14,0)))*IF($E28="$millions",1000000,IF($E28="$000",1000,1))/IF($E29="$millions",1000000,IF($E29="$000",1000,1)) -> 0 | P29: =P28*IF($F28="nominal",LOOKUP($F29,Nominal_to_Real,'Input|Rate of change'!Q$25:Q$30),INDEX('Input|Rate of change'!$C$14:$O$21,MATCH('Calc|Opex forecast'!$F28,'Input|Rate of change'!$C$14:$C$21,0),MATCH('Calc|Opex forecast'!$F29,'Input|Rate of change'!$C$14:$O$14,0)))*IF($E28="$millions",1000000,IF($E28="$000",1000,1))/IF($E29="$millions",1000000,IF($E29="$000",1000,1)) -> 0 | Q29: =Q28*IF($F28="nominal",LOOKUP($F29,Nominal_to_Real,'Input|Rate of change'!R$25:R$30),INDEX('Input|Rate of change'!$C$14:$O$21,MATCH('Calc|Opex forecast'!$F28,'Input|Rate of change'!$C$14:$C$21,0),MATCH('Calc|Opex forecast'!$F29,'Input|Rate of change'!$C$14:$O$14,0)))*IF($E28="$millions",1000000,IF($E28="$000",1000,1))/IF($E29="$millions",1000000,IF($E29="$000",1000,1)) -> 0 | R29: =R28*IF($F28="nominal",LOOKUP($F29,Nominal_to_Real,'Input|Rate of change'!S$25:S$30),INDEX('Input|Rate of change'!$C$14:$O$21,MATCH('Calc|Opex forecast'!$F28,'Input|Rate of change'!$C$14:$C$21,0),MATCH('Calc|Opex forecast'!$F29,'Input|Rate of change'!$C$14:$O$14,0)))*IF($E28="$millions",1000000,IF($E28="$000",1000,1))/IF($E29="$millions",1000000,IF($E29="$000",1000,1)) -> 0 | S29: =S28*IF($F28="nominal",LOOKUP($F29,Nominal_to_Real,'Input|Rate of change'!T$25:T$30),INDEX('Input|Rate of change'!$C$14:$O$21,MATCH('Calc|Opex forecast'!$F28,'Input|Rate of change'!$C$14:$C$21,0),MATCH('Calc|Opex forecast'!$F29,'Input|Rate of change'!$C$14:$O$14,0)))*IF($E28="$millions",1000000,IF($E28="$000",1000,1))/IF($E29="$millions",1000000,IF($E29="$000",1000,1)) -> 0
C31: Adjusted base year opex | D31: calculated | E31: =$E$8 -> $millions | F31: =$F$8 -> 2019-06-01 | M31: =SUM(M13,M16,M20,M23,M26,M29) -> 53.08150432
B33: Calc | Rate of change
C35: Rate of change | D35: Source | E35: Unit | F35: Basis | J35: =IF(YEAR(J$4)>BaseYear,IF(YEAR(J$4)<='Input|General'!$G$14,J$4,""),"") ->  | K35: =IF(YEAR(K$4)>BaseYear,IF(YEAR(K$4)<='Input|General'!$G$14,K$4,""),"") ->  | L35: =IF(YEAR(L$4)>BaseYear,IF(YEAR(L$4)<='Input|General'!$G$14,L$4,""),"") ->  | M35: =IF(YEAR(M$4)>BaseYear,IF(YEAR(M$4)<='Input|General'!$G$14,M$4,""),"") ->  | N35: =IF(YEAR(N$4)>BaseYear,IF(YEAR(N$4)<='Input|General'!$G$14,N$4,""),"") -> 2019-06-01 | O35: =IF(YEAR(O$4)>BaseYear,IF(YEAR(O$4)<='Input|General'!$G$14,O$4,""),"") -> 2020-06-01 | P35: =IF(YEAR(P$4)>BaseYear,IF(YEAR(P$4)<='Input|General'!$G$14,P$4,""),"") -> 2021-06-01 | Q35: =IF(YEAR(Q$4)>BaseYear,IF(YEAR(Q$4)<='Input|General'!$G$14,Q$4,""),"") -> 2022-06-01 | R35: =IF(YEAR(R$4)>BaseYear,IF(YEAR(R$4)<='Input|General'!$G$14,R$4,""),"") -> 2023-06-01 | S35: =IF(YEAR(S$4)>BaseYear,IF(YEAR(S$4)<='Input|General'!$G$14,S$4,""),"") -> 2024-06-01
C38: Forecast output change | D38: Calculated | E38: Per cent | F38: n/a | J38: =IF(J35=J4,AVERAGE('Input|Rate of change'!K95:K98),0) -> 0 | K38: =IF(K35=K4,AVERAGE('Input|Rate of change'!L95:L98),0) -> 0 | L38: =IF(L35=L4,AVERAGE('Input|Rate of change'!M95:M98),0) -> 0 | M38: =IF(M35=M4,AVERAGE('Input|Rate of change'!N95:N98),0) -> 0 | N38: =IF(N35=N4,AVERAGE('Input|Rate of change'!O95:O98),0) -> 0.01054868424 | O38: =IF(O35=O4,AVERAGE('Input|Rate of change'!P95:P98),0) -> 0.01124830603 | P38: =IF(P35=P4,AVERAGE('Input|Rate of change'!Q95:Q98),0) -> 0.01092021599 | Q38: =IF(Q35=Q4,AVERAGE('Input|Rate of change'!R95:R98),0) -> 0.01111380227 | R38: =IF(R35=R4,AVERAGE('Input|Rate of change'!S95:S98),0) -> 0.01089367782 | S38: =IF(S35=S4,AVERAGE('Input|Rate of change'!T95:T98),0) -> 0.01058083709
C40: Forecast price change | D40: Calculated | E40: Per cent | F40: n/a | J40: =SUMPRODUCT('Input|Rate of change'!K36:K43,'Input|Rate of change'!K49:K56) -> 0 | K40: =SUMPRODUCT('Input|Rate of change'!L36:L43,'Input|Rate of change'!L49:L56) -> 0 | L40: =SUMPRODUCT('Input|Rate of change'!M36:M43,'Input|Rate of change'!M49:M56) -> 0 | M40: =SUMPRODUCT('Input|Rate of change'!N36:N43,'Input|Rate of change'!N49:N56) -> 0 | N40: =SUMPRODUCT('Input|Rate of change'!O36:O43,'Input|Rate of change'!O49:O56) -> 0.002252232239 | O40: =SUMPRODUCT('Input|Rate of change'!P36:P43,'Input|Rate of change'!P49:P56) -> 0.001350433839 | P40: =SUMPRODUCT('Input|Rate of change'!Q36:Q43,'Input|Rate of change'!Q49:Q56) -> 0.003143392903 | Q40: =SUMPRODUCT('Input|Rate of change'!R36:R43,'Input|Rate of change'!R49:R56) -> 0.005546775668 | R40: =SUMPRODUCT('Input|Rate of change'!S36:S43,'Input|Rate of change'!S49:S56) -> 0.005938035611 | S40: =SUMPRODUCT('Input|Rate of change'!T36:T43,'Input|Rate of change'!T49:T56) -> 0.005669416816
C42: Forecast productivity change | D42: Calculated | E42: Per cent | F42: n/a | J42: ='Input|Rate of change'!K104 -> 0 | K42: ='Input|Rate of change'!L104 -> 0 | L42: ='Input|Rate of change'!M104 -> 0 | M42: ='Input|Rate of change'!N104 -> 0 | N42: ='Input|Rate of change'!O104 -> 0 | O42: ='Input|Rate of change'!P104 -> 0 | P42: ='Input|Rate of change'!Q104 -> 0 | Q42: ='Input|Rate of change'!R104 -> 0 | R42: ='Input|Rate of change'!S104 -> 0 | S42: ='Input|Rate of change'!T104 -> 0
C44: Forecast rate of change, year-on-year | D44: Calculated | E44: Per cent | F44: n/a | J44: =(1+J38)*(1+J40)*(1-J42)-1 -> 0 | K44: =(1+K38)*(1+K40)*(1-K42)-1 -> 0 | L44: 0 | M44: 0 | N44: 0.01282467457 | O44: 0.01261392996 | P44: 0.01409793542 | Q44: 0.0167222237 | R44: 0.01689640048 | S44: 0.01631024109
C45: Forecast rate of change, cumulative | D45: Calculated | E45: Per cent | F45: n/a | J45: =IF(J$35=J$4,PRODUCT(1+$J44:J44)-1,"") ->  | K45: =IF(K$35=K$4,PRODUCT(1+$J44:K44)-1,"") ->  | L45: =IF(L$35=L$4,PRODUCT(1+$J44:L44)-1,"") ->  | M45: =IF(M$35=M$4,PRODUCT(1+$J44:M44)-1,"") ->  | N45: =IF(N$35=N$4,PRODUCT(1+$J44:N44)-1,"") -> 0.01282467457 | O45: =IF(O$35=O$4,PRODUCT(1+$J44:O44)-1,"") -> 0.02560037408 | P45: =IF(P$35=P$4,PRODUCT(1+$J44:P44)-1,"") -> 0.04005922192 | Q45: =IF(Q$35=Q$4,PRODUCT(1+$J44:Q44)-1,"") -> 0.0574513249 | R45: =IF(R$35=R$4,PRODUCT(1+$J44:R44)-1,"") -> 0.07531844597 | S45: =IF(S$35=S$4,PRODUCT(1+$J44:S44)-1,"") -> 0.09285714907
B47: Calc | Step changes
C49: Step changes | D49: Source | E49: Unit | F49: Basis | J49: =IF(YEAR(J$4)>='Input|General'!$G$13,IF(YEAR(J$4)<='Input|General'!$G$14,J$4,""),"") ->  | K49: =IF(YEAR(K$4)>='Input|General'!$G$13,IF(YEAR(K$4)<='Input|General'!$G$14,K$4,""),"") ->  | L49: =IF(YEAR(L$4)>='Input|General'!$G$13,IF(YEAR(L$4)<='Input|General'!$G$14,L$4,""),"") ->  | M49: =IF(YEAR(M$4)>='Input|General'!$G$13,IF(YEAR(M$4)<='Input|General'!$G$14,M$4,""),"") ->  | N49: =IF(YEAR(N$4)>='Input|General'!$G$13,IF(YEAR(N$4)<='Input|General'!$G$14,N$4,""),"") ->  | O49: =IF(YEAR(O$4)>='Input|General'!$G$13,IF(YEAR(O$4)<='Input|General'!$G$14,O$4,""),"") -> 2020-06-01 | P49: =IF(YEAR(P$4)>='Input|General'!$G$13,IF(YEAR(P$4)<='Input|General'!$G$14,P$4,""),"") -> 2021-06-01 | Q49: =IF(YEAR(Q$4)>='Input|General'!$G$13,IF(YEAR(Q$4)<='Input|General'!$G$14,Q$4,""),"") -> 2022-06-01 | R49: =IF(YEAR(R$4)>='Input|General'!$G$13,IF(YEAR(R$4)<='Input|General'!$G$14,R$4,""),"") -> 2023-06-01 | S49: =IF(YEAR(S$4)>='Input|General'!$G$13,IF(YEAR(S$4)<='Input|General'!$G$14,S$4,""),"") -> 2024-06-01
C51: ='Input|Step changes'!C12 -> Vegetation management step change | D51: Calculated | E51: =$E$8 -> $millions | F51: =$F$8 -> 2019-06-01 | J51: ='Input|Step changes'!J12*IF('Input|Step changes'!$F12="nominal",LOOKUP($F51,Nominal_to_Real,'Input|Rate of change'!N$25:N$30),INDEX('Input|Rate of change'!$C$14:$O$21,MATCH('Input|Step changes'!$F12,'Input|Rate of change'!$C$14:$C$21,0),MATCH('Calc|Opex forecast'!$F51,'Input|Rate of change'!$C$14:$O$14,0)))*IF('Input|Step changes'!$E12="$millions",1000000,IF('Input|Step changes'!$E12="$000",1000,1))/IF($E51="$millions",1000000,IF($E51="$000",1000,1)) -> 0 | K51: ='Input|Step changes'!K12*IF('Input|Step changes'!$F12="nominal",LOOKUP($F51,Nominal_to_Real,'Input|Rate of change'!O$25:O$30),INDEX('Input|Rate of change'!$C$14:$O$21,MATCH('Input|Step changes'!$F12,'Input|Rate of change'!$C$14:$C$21,0),MATCH('Calc|Opex forecast'!$F51,'Input|Rate of change'!$C$14:$O$14,0)))*IF('Input|Step changes'!$E12="$millions",1000000,IF('Input|Step changes'!$E12="$000",1000,1))/IF($E51="$millions",1000000,IF($E51="$000",1000,1)) -> 0 | L51: ='Input|Step changes'!L12*IF('Input|Step changes'!$F12="nominal",LOOKUP($F51,Nominal_to_Real,'Input|Rate of change'!P$25:P$30),INDEX('Input|Rate of change'!$C$14:$O$21,MATCH('Input|Step changes'!$F12,'Input|Rate of change'!$C$14:$C$21,0),MATCH('Calc|Opex forecast'!$F51,'Input|Rate of change'!$C$14:$O$14,0)))*IF('Input|Step changes'!$E12="$millions",1000000,IF('Input|Step changes'!$E12="$000",1000,1))/IF($E51="$millions",1000000,IF($E51="$000",1000,1)) -> 0 | M51: ='Input|Step changes'!M12*IF('Input|Step changes'!$F12="nominal",LOOKUP($F51,Nominal_to_Real,'Input|Rate of change'!Q$25:Q$30),INDEX('Input|Rate of change'!$C$14:$O$21,MATCH('Input|Step changes'!$F12,'Input|Rate of change'!$C$14:$C$21,0),MATCH('Calc|Opex forecast'!$F51,'Input|Rate of change'!$C$14:$O$14,0)))*IF('Input|Step changes'!$E12="$millions",1000000,IF('Input|Step changes'!$E12="$000",1000,1))/IF($E51="$millions",1000000,IF($E51="$000",1000,1)) -> 0 | N51: ='Input|Step changes'!N12*IF('Input|Step changes'!$F12="nominal",LOOKUP($F51,Nominal_to_Real,'Input|Rate of change'!R$25:R$30),INDEX('Input|Rate of change'!$C$14:$O$21,MATCH('Input|Step changes'!$F12,'Input|Rate of change'!$C$14:$C$21,0),MATCH('Calc|Opex forecast'!$F51,'Input|Rate of change'!$C$14:$O$14,0)))*IF('Input|Step changes'!$E12="$millions",1000000,IF('Input|Step changes'!$E12="$000",1000,1))/IF($E51="$millions",1000000,IF($E51="$000",1000,1)) -> 0 | O51: ='Input|Step changes'!O12*IF('Input|Step changes'!$F12="nominal",LOOKUP($F51,Nominal_to_Real,'Input|Rate of change'!S$25:S$30),INDEX('Input|Rate of change'!$C$14:$O$21,MATCH('Input|Step changes'!$F12,'Input|Rate of change'!$C$14:$C$21,0),MATCH('Calc|Opex forecast'!$F51,'Input|Rate of change'!$C$14:$O$14,0)))*IF('Input|Step changes'!$E12="$millions",1000000,IF('Input|Step changes'!$E12="$000",1000,1))/IF($E51="$millions",1000000,IF($E51="$000",1000,1)) -> 2.404928 | P51: ='Input|Step changes'!P12*IF('Input|Step changes'!$F12="nominal",LOOKUP($F51,Nominal_to_Real,'Input|Rate of change'!T$25:T$30),INDEX('Input|Rate of change'!$C$14:$O$21,MATCH('Input|Step changes'!$F12,'Input|Rate of change'!$C$14:$C$21,0),MATCH('Calc|Opex forecast'!$F51,'Input|Rate of change'!$C$14:$O$14,0)))*IF('Input|Step changes'!$E12="$millions",1000000,IF('Input|Step changes'!$E12="$000",1000,1))/IF($E51="$millions",1000000,IF($E51="$000",1000,1)) -> 2.404928 | Q51: ='Input|Step changes'!Q12*IF('Input|Step changes'!$F12="nominal",LOOKUP($F51,Nominal_to_Real,'Input|Rate of change'!U$25:U$30),INDEX('Input|Rate of change'!$C$14:$O$21,MATCH('Input|Step changes'!$F12,'Input|Rate of change'!$C$14:$C$21,0),MATCH('Calc|Opex forecast'!$F51,'Input|Rate of change'!$C$14:$O$14,0)))*IF('Input|Step changes'!$E12="$millions",1000000,IF('Input|Step changes'!$E12="$000",1000,1))/IF($E51="$millions",1000000,IF($E51="$000",1000,1)) -> 2.404928 | R51: ='Input|Step changes'!R12*IF('Input|Step changes'!$F12="nominal",LOOKUP($F51,Nominal_to_Real,'Input|Rate of change'!V$25:V$30),INDEX('Input|Rate of change'!$C$14:$O$21,MATCH('Input|Step changes'!$F12,'Input|Rate of change'!$C$14:$C$21,0),MATCH('Calc|Opex forecast'!$F51,'Input|Rate of change'!$C$14:$O$14,0)))*IF('Input|Step changes'!$E12="$millions",1000000,IF('Input|Step changes'!$E12="$000",1000,1))/IF($E51="$millions",1000000,IF($E51="$000",1000,1)) -> 2.404928 | S51: ='Input|Step changes'!S12*IF('Input|Step changes'!$F12="nominal",LOOKUP($F51,Nominal_to_Real,'Input|Rate of change'!W$25:W$30),INDEX('Input|Rate of change'!$C$14:$O$21,MATCH('Input|Step changes'!$F12,'Input|Rate of change'!$C$14:$C$21,0),MATCH('Calc|Opex forecast'!$F51,'Input|Rate of change'!$C$14:$O$14,0)))*IF('Input|Step changes'!$E12="$millions",1000000,IF('Input|Step changes'!$E12="$000",1000,1))/IF($E51="$millions",1000000,IF($E51="$000",1000,1)) -> 2.404928
C52: ='Input|Step changes'!C13 -> Strathnairn demand management step change | D52: Calculated | E52: $millions | F52: 2019-06-01 | J52: ='Input|Step changes'!J13*IF('Input|Step changes'!$F13="nominal",LOOKUP($F52,Nominal_to_Real,'Input|Rate of change'!N$25:N$30),INDEX('Input|Rate of change'!$C$14:$O$21,MATCH('Input|Step changes'!$F13,'Input|Rate of change'!$C$14:$C$21,0),MATCH('Calc|Opex forecast'!$F52,'Input|Rate of change'!$C$14:$O$14,0)))*IF('Input|Step changes'!$E13="$millions",1000000,IF('Input|Step changes'!$E13="$000",1000,1))/IF($E52="$millions",1000000,IF($E52="$000",1000,1)) -> 0 | K52: ='Input|Step changes'!K13*IF('Input|Step changes'!$F13="nominal",LOOKUP($F52,Nominal_to_Real,'Input|Rate of change'!O$25:O$30),INDEX('Input|Rate of change'!$C$14:$O$21,MATCH('Input|Step changes'!$F13,'Input|Rate of change'!$C$14:$C$21,0),MATCH('Calc|Opex forecast'!$F52,'Input|Rate of change'!$C$14:$O$14,0)))*IF('Input|Step changes'!$E13="$millions",1000000,IF('Input|Step changes'!$E13="$000",1000,1))/IF($E52="$millions",1000000,IF($E52="$000",1000,1)) -> 0 | L52: ='Input|Step changes'!L13*IF('Input|Step changes'!$F13="nominal",LOOKUP($F52,Nominal_to_Real,'Input|Rate of change'!P$25:P$30),INDEX('Input|Rate of change'!$C$14:$O$21,MATCH('Input|Step changes'!$F13,'Input|Rate of change'!$C$14:$C$21,0),MATCH('Calc|Opex forecast'!$F52,'Input|Rate of change'!$C$14:$O$14,0)))*IF('Input|Step changes'!$E13="$millions",1000000,IF('Input|Step changes'!$E13="$000",1000,1))/IF($E52="$millions",1000000,IF($E52="$000",1000,1)) -> 0 | M52: ='Input|Step changes'!M13*IF('Input|Step changes'!$F13="nominal",LOOKUP($F52,Nominal_to_Real,'Input|Rate of change'!Q$25:Q$30),INDEX('Input|Rate of change'!$C$14:$O$21,MATCH('Input|Step changes'!$F13,'Input|Rate of change'!$C$14:$C$21,0),MATCH('Calc|Opex forecast'!$F52,'Input|Rate of change'!$C$14:$O$14,0)))*IF('Input|Step changes'!$E13="$millions",1000000,IF('Input|Step changes'!$E13="$000",1000,1))/IF($E52="$millions",1000000,IF($E52="$000",1000,1)) -> 0 | N52: ='Input|Step changes'!N13*IF('Input|Step changes'!$F13="nominal",LOOKUP($F52,Nominal_to_Real,'Input|Rate of change'!R$25:R$30),INDEX('Input|Rate of change'!$C$14:$O$21,MATCH('Input|Step changes'!$F13,'Input|Rate of change'!$C$14:$C$21,0),MATCH('Calc|Opex forecast'!$F52,'Input|Rate of change'!$C$14:$O$14,0)))*IF('Input|Step changes'!$E13="$millions",1000000,IF('Input|Step changes'!$E13="$000",1000,1))/IF($E52="$millions",1000000,IF($E52="$000",1000,1)) -> 0 | O52: ='Input|Step changes'!O13*IF('Input|Step changes'!$F13="nominal",LOOKUP($F52,Nominal_to_Real,'Input|Rate of change'!S$25:S$30),INDEX('Input|Rate of change'!$C$14:$O$21,MATCH('Input|Step changes'!$F13,'Input|Rate of change'!$C$14:$C$21,0),MATCH('Calc|Opex forecast'!$F52,'Input|Rate of change'!$C$14:$O$14,0)))*IF('Input|Step changes'!$E13="$millions",1000000,IF('Input|Step changes'!$E13="$000",1000,1))/IF($E52="$millions",1000000,IF($E52="$000",1000,1)) -> 0.3514121659 | P52: ='Input|Step changes'!P13*IF('Input|Step changes'!$F13="nominal",LOOKUP($F52,Nominal_to_Real,'Input|Rate of change'!T$25:T$30),INDEX('Input|Rate of change'!$C$14:$O$21,MATCH('Input|Step changes'!$F13,'Input|Rate of change'!$C$14:$C$21,0),MATCH('Calc|Opex forecast'!$F52,'Input|Rate of change'!$C$14:$O$14,0)))*IF('Input|Step changes'!$E13="$millions",1000000,IF('Input|Step changes'!$E13="$000",1000,1))/IF($E52="$millions",1000000,IF($E52="$000",1000,1)) -> 0.3525763682 | Q52: ='Input|Step changes'!Q13*IF('Input|Step changes'!$F13="nominal",LOOKUP($F52,Nominal_to_Real,'Input|Rate of change'!U$25:U$30),INDEX('Input|Rate of change'!$C$14:$O$21,MATCH('Input|Step changes'!$F13,'Input|Rate of change'!$C$14:$C$21,0),MATCH('Calc|Opex forecast'!$F52,'Input|Rate of change'!$C$14:$O$14,0)))*IF('Input|Step changes'!$E13="$millions",1000000,IF('Input|Step changes'!$E13="$000",1000,1))/IF($E52="$millions",1000000,IF($E52="$000",1000,1)) -> 0.3535342623 | R52: ='Input|Step changes'!R13*IF('Input|Step changes'!$F13="nominal",LOOKUP($F52,Nominal_to_Real,'Input|Rate of change'!V$25:V$30),INDEX('Input|Rate of change'!$C$14:$O$21,MATCH('Input|Step changes'!$F13,'Input|Rate of change'!$C$14:$C$21,0),MATCH('Calc|Opex forecast'!$F52,'Input|Rate of change'!$C$14:$O$14,0)))*IF('Input|Step changes'!$E13="$millions",1000000,IF('Input|Step changes'!$E13="$000",1000,1))/IF($E52="$millions",1000000,IF($E52="$000",1000,1)) -> 0.3534645121 | S52: ='Input|Step changes'!S13*IF('Input|Step changes'!$F13="nominal",LOOKUP($F52,Nominal_to_Real,'Input|Rate of change'!W$25:W$30),INDEX('Input|Rate of change'!$C$14:$O$21,MATCH('Input|Step changes'!$F13,'Input|Rate of change'!$C$14:$C$21,0),MATCH('Calc|Opex forecast'!$F52,'Input|Rate of change'!$C$14:$O$14,0)))*IF('Input|Step changes'!$E13="$millions",1000000,IF('Input|Step changes'!$E13="$000",1000,1))/IF($E52="$millions",1000000,IF($E52="$000",1000,1)) -> 0.3529756453
C53: ='Input|Step changes'!C14 -> 0 | D53: Calculated | E53: $millions | F53: 2019-06-01 | J53: ='Input|Step changes'!J14*IF('Input|Step changes'!$F14="nominal",LOOKUP($F53,Nominal_to_Real,'Input|Rate of change'!N$25:N$30),INDEX('Input|Rate of change'!$C$14:$O$21,MATCH('Input|Step changes'!$F14,'Input|Rate of change'!$C$14:$C$21,0),MATCH('Calc|Opex forecast'!$F53,'Input|Rate of change'!$C$14:$O$14,0)))*IF('Input|Step changes'!$E14="$millions",1000000,IF('Input|Step changes'!$E14="$000",1000,1))/IF($E53="$millions",1000000,IF($E53="$000",1000,1)) -> 0 | K53: ='Input|Step changes'!K14*IF('Input|Step changes'!$F14="nominal",LOOKUP($F53,Nominal_to_Real,'Input|Rate of change'!O$25:O$30),INDEX('Input|Rate of change'!$C$14:$O$21,MATCH('Input|Step changes'!$F14,'Input|Rate of change'!$C$14:$C$21,0),MATCH('Calc|Opex forecast'!$F53,'Input|Rate of change'!$C$14:$O$14,0)))*IF('Input|Step changes'!$E14="$millions",1000000,IF('Input|Step changes'!$E14="$000",1000,1))/IF($E53="$millions",1000000,IF($E53="$000",1000,1)) -> 0 | L53: ='Input|Step changes'!L14*IF('Input|Step changes'!$F14="nominal",LOOKUP($F53,Nominal_to_Real,'Input|Rate of change'!P$25:P$30),INDEX('Input|Rate of change'!$C$14:$O$21,MATCH('Input|Step changes'!$F14,'Input|Rate of change'!$C$14:$C$21,0),MATCH('Calc|Opex forecast'!$F53,'Input|Rate of change'!$C$14:$O$14,0)))*IF('Input|Step changes'!$E14="$millions",1000000,IF('Input|Step changes'!$E14="$000",1000,1))/IF($E53="$millions",1000000,IF($E53="$000",1000,1)) -> 0 | M53: ='Input|Step changes'!M14*IF('Input|Step changes'!$F14="nominal",LOOKUP($F53,Nominal_to_Real,'Input|Rate of change'!Q$25:Q$30),INDEX('Input|Rate of change'!$C$14:$O$21,MATCH('Input|Step changes'!$F14,'Input|Rate of change'!$C$14:$C$21,0),MATCH('Calc|Opex forecast'!$F53,'Input|Rate of change'!$C$14:$O$14,0)))*IF('Input|Step changes'!$E14="$millions",1000000,IF('Input|Step changes'!$E14="$000",1000,1))/IF($E53="$millions",1000000,IF($E53="$000",1000,1)) -> 0 | N53: ='Input|Step changes'!N14*IF('Input|Step changes'!$F14="nominal",LOOKUP($F53,Nominal_to_Real,'Input|Rate of change'!R$25:R$30),INDEX('Input|Rate of change'!$C$14:$O$21,MATCH('Input|Step changes'!$F14,'Input|Rate of change'!$C$14:$C$21,0),MATCH('Calc|Opex forecast'!$F53,'Input|Rate of change'!$C$14:$O$14,0)))*IF('Input|Step changes'!$E14="$millions",1000000,IF('Input|Step changes'!$E14="$000",1000,1))/IF($E53="$millions",1000000,IF($E53="$000",1000,1)) -> 0 | O53: ='Input|Step changes'!O14*IF('Input|Step changes'!$F14="nominal",LOOKUP($F53,Nominal_to_Real,'Input|Rate of change'!S$25:S$30),INDEX('Input|Rate of change'!$C$14:$O$21,MATCH('Input|Step changes'!$F14,'Input|Rate of change'!$C$14:$C$21,0),MATCH('Calc|Opex forecast'!$F53,'Input|Rate of change'!$C$14:$O$14,0)))*IF('Input|Step changes'!$E14="$millions",1000000,IF('Input|Step changes'!$E14="$000",1000,1))/IF($E53="$millions",1000000,IF($E53="$000",1000,1)) -> 0 | P53: ='Input|Step changes'!P14*IF('Input|Step changes'!$F14="nominal",LOOKUP($F53,Nominal_to_Real,'Input|Rate of change'!T$25:T$30),INDEX('Input|Rate of change'!$C$14:$O$21,MATCH('Input|Step changes'!$F14,'Input|Rate of change'!$C$14:$C$21,0),MATCH('Calc|Opex forecast'!$F53,'Input|Rate of change'!$C$14:$O$14,0)))*IF('Input|Step changes'!$E14="$millions",1000000,IF('Input|Step changes'!$E14="$000",1000,1))/IF($E53="$millions",1000000,IF($E53="$000",1000,1)) -> 0 | Q53: ='Input|Step changes'!Q14*IF('Input|Step changes'!$F14="nominal",LOOKUP($F53,Nominal_to_Real,'Input|Rate of change'!U$25:U$30),INDEX('Input|Rate of change'!$C$14:$O$21,MATCH('Input|Step changes'!$F14,'Input|Rate of change'!$C$14:$C$21,0),MATCH('Calc|Opex forecast'!$F53,'Input|Rate of change'!$C$14:$O$14,0)))*IF('Input|Step changes'!$E14="$millions",1000000,IF('Input|Step changes'!$E14="$000",1000,1))/IF($E53="$millions",1000000,IF($E53="$000",1000,1)) -> 0 | R53: ='Input|Step changes'!R14*IF('Input|Step changes'!$F14="nominal",LOOKUP($F53,Nominal_to_Real,'Input|Rate of change'!V$25:V$30),INDEX('Input|Rate of change'!$C$14:$O$21,MATCH('Input|Step changes'!$F14,'Input|Rate of change'!$C$14:$C$21,0),MATCH('Calc|Opex forecast'!$F53,'Input|Rate of change'!$C$14:$O$14,0)))*IF('Input|Step changes'!$E14="$millions",1000000,IF('Input|Step changes'!$E14="$000",1000,1))/IF($E53="$millions",1000000,IF($E53="$000",1000,1)) -> 0 | S53: ='Input|Step changes'!S14*IF('Input|Step changes'!$F14="nominal",LOOKUP($F53,Nominal_to_Real,'Input|Rate of change'!W$25:W$30),INDEX('Input|Rate of change'!$C$14:$O$21,MATCH('Input|Step changes'!$F14,'Input|Rate of change'!$C$14:$C$21,0),MATCH('Calc|Opex forecast'!$F53,'Input|Rate of change'!$C$14:$O$14,0)))*IF('Input|Step changes'!$E14="$millions",1000000,IF('Input|Step changes'!$E14="$000",1000,1))/IF($E53="$millions",1000000,IF($E53="$000",1000,1)) -> 0
C54: ='Input|Step changes'!C15 -> 0 | D54: Calculated | E54: $millions | F54: 2019-06-01 | J54: ='Input|Step changes'!J15*IF('Input|Step changes'!$F15="nominal",LOOKUP($F54,Nominal_to_Real,'Input|Rate of change'!N$25:N$30),INDEX('Input|Rate of change'!$C$14:$O$21,MATCH('Input|Step changes'!$F15,'Input|Rate of change'!$C$14:$C$21,0),MATCH('Calc|Opex forecast'!$F54,'Input|Rate of change'!$C$14:$O$14,0)))*IF('Input|Step changes'!$E15="$millions",1000000,IF('Input|Step changes'!$E15="$000",1000,1))/IF($E54="$millions",1000000,IF($E54="$000",1000,1)) -> 0 | K54: ='Input|Step changes'!K15*IF('Input|Step changes'!$F15="nominal",LOOKUP($F54,Nominal_to_Real,'Input|Rate of change'!O$25:O$30),INDEX('Input|Rate of change'!$C$14:$O$21,MATCH('Input|Step changes'!$F15,'Input|Rate of change'!$C$14:$C$21,0),MATCH('Calc|Opex forecast'!$F54,'Input|Rate of change'!$C$14:$O$14,0)))*IF('Input|Step changes'!$E15="$millions",1000000,IF('Input|Step changes'!$E15="$000",1000,1))/IF($E54="$millions",1000000,IF($E54="$000",1000,1)) -> 0 | L54: ='Input|Step changes'!L15*IF('Input|Step changes'!$F15="nominal",LOOKUP($F54,Nominal_to_Real,'Input|Rate of change'!P$25:P$30),INDEX('Input|Rate of change'!$C$14:$O$21,MATCH('Input|Step changes'!$F15,'Input|Rate of change'!$C$14:$C$21,0),MATCH('Calc|Opex forecast'!$F54,'Input|Rate of change'!$C$14:$O$14,0)))*IF('Input|Step changes'!$E15="$millions",1000000,IF('Input|Step changes'!$E15="$000",1000,1))/IF($E54="$millions",1000000,IF($E54="$000",1000,1)) -> 0 | M54: ='Input|Step changes'!M15*IF('Input|Step changes'!$F15="nominal",LOOKUP($F54,Nominal_to_Real,'Input|Rate of change'!Q$25:Q$30),INDEX('Input|Rate of change'!$C$14:$O$21,MATCH('Input|Step changes'!$F15,'Input|Rate of change'!$C$14:$C$21,0),MATCH('Calc|Opex forecast'!$F54,'Input|Rate of change'!$C$14:$O$14,0)))*IF('Input|Step changes'!$E15="$millions",1000000,IF('Input|Step changes'!$E15="$000",1000,1))/IF($E54="$millions",1000000,IF($E54="$000",1000,1)) -> 0 | N54: ='Input|Step changes'!N15*IF('Input|Step changes'!$F15="nominal",LOOKUP($F54,Nominal_to_Real,'Input|Rate of change'!R$25:R$30),INDEX('Input|Rate of change'!$C$14:$O$21,MATCH('Input|Step changes'!$F15,'Input|Rate of change'!$C$14:$C$21,0),MATCH('Calc|Opex forecast'!$F54,'Input|Rate of change'!$C$14:$O$14,0)))*IF('Input|Step changes'!$E15="$millions",1000000,IF('Input|Step changes'!$E15="$000",1000,1))/IF($E54="$millions",1000000,IF($E54="$000",1000,1)) -> 0 | O54: ='Input|Step changes'!O15*IF('Input|Step changes'!$F15="nominal",LOOKUP($F54,Nominal_to_Real,'Input|Rate of change'!S$25:S$30),INDEX('Input|Rate of change'!$C$14:$O$21,MATCH('Input|Step changes'!$F15,'Input|Rate of change'!$C$14:$C$21,0),MATCH('Calc|Opex forecast'!$F54,'Input|Rate of change'!$C$14:$O$14,0)))*IF('Input|Step changes'!$E15="$millions",1000000,IF('Input|Step changes'!$E15="$000",1000,1))/IF($E54="$millions",1000000,IF($E54="$000",1000,1)) -> 0 | P54: ='Input|Step changes'!P15*IF('Input|Step changes'!$F15="nominal",LOOKUP($F54,Nominal_to_Real,'Input|Rate of change'!T$25:T$30),INDEX('Input|Rate of change'!$C$14:$O$21,MATCH('Input|Step changes'!$F15,'Input|Rate of change'!$C$14:$C$21,0),MATCH('Calc|Opex forecast'!$F54,'Input|Rate of change'!$C$14:$O$14,0)))*IF('Input|Step changes'!$E15="$millions",1000000,IF('Input|Step changes'!$E15="$000",1000,1))/IF($E54="$millions",1000000,IF($E54="$000",1000,1)) -> 0 | Q54: ='Input|Step changes'!Q15*IF('Input|Step changes'!$F15="nominal",LOOKUP($F54,Nominal_to_Real,'Input|Rate of change'!U$25:U$30),INDEX('Input|Rate of change'!$C$14:$O$21,MATCH('Input|Step changes'!$F15,'Input|Rate of change'!$C$14:$C$21,0),MATCH('Calc|Opex forecast'!$F54,'Input|Rate of change'!$C$14:$O$14,0)))*IF('Input|Step changes'!$E15="$millions",1000000,IF('Input|Step changes'!$E15="$000",1000,1))/IF($E54="$millions",1000000,IF($E54="$000",1000,1)) -> 0 | R54: ='Input|Step changes'!R15*IF('Input|Step changes'!$F15="nominal",LOOKUP($F54,Nominal_to_Real,'Input|Rate of change'!V$25:V$30),INDEX('Input|Rate of change'!$C$14:$O$21,MATCH('Input|Step changes'!$F15,'Input|Rate of change'!$C$14:$C$21,0),MATCH('Calc|Opex forecast'!$F54,'Input|Rate of change'!$C$14:$O$14,0)))*IF('Input|Step changes'!$E15="$millions",1000000,IF('Input|Step changes'!$E15="$000",1000,1))/IF($E54="$millions",1000000,IF($E54="$000",1000,1)) -> 0 | S54: ='Input|Step changes'!S15*IF('Input|Step changes'!$F15="nominal",LOOKUP($F54,Nominal_to_Real,'Input|Rate of change'!W$25:W$30),INDEX('Input|Rate of change'!$C$14:$O$21,MATCH('Input|Step changes'!$F15,'Input|Rate of change'!$C$14:$C$21,0),MATCH('Calc|Opex forecast'!$F54,'Input|Rate of change'!$C$14:$O$14,0)))*IF('Input|Step changes'!$E15="$millions",1000000,IF('Input|Step changes'!$E15="$000",1000,1))/IF($E54="$millions",1000000,IF($E54="$000",1000,1)) -> 0
C55: ='Input|Step changes'!C16 -> 0 | D55: Calculated | E55: $millions | F55: 2019-06-01 | J55: ='Input|Step changes'!J16*IF('Input|Step changes'!$F16="nominal",LOOKUP($F55,Nominal_to_Real,'Input|Rate of change'!N$25:N$30),INDEX('Input|Rate of change'!$C$14:$O$21,MATCH('Input|Step changes'!$F16,'Input|Rate of change'!$C$14:$C$21,0),MATCH('Calc|Opex forecast'!$F55,'Input|Rate of change'!$C$14:$O$14,0)))*IF('Input|Step changes'!$E16="$millions",1000000,IF('Input|Step changes'!$E16="$000",1000,1))/IF($E55="$millions",1000000,IF($E55="$000",1000,1)) -> 0 | K55: ='Input|Step changes'!K16*IF('Input|Step changes'!$F16="nominal",LOOKUP($F55,Nominal_to_Real,'Input|Rate of change'!O$25:O$30),INDEX('Input|Rate of change'!$C$14:$O$21,MATCH('Input|Step changes'!$F16,'Input|Rate of change'!$C$14:$C$21,0),MATCH('Calc|Opex forecast'!$F55,'Input|Rate of change'!$C$14:$O$14,0)))*IF('Input|Step changes'!$E16="$millions",1000000,IF('Input|Step changes'!$E16="$000",1000,1))/IF($E55="$millions",1000000,IF($E55="$000",1000,1)) -> 0 | L55: ='Input|Step changes'!L16*IF('Input|Step changes'!$F16="nominal",LOOKUP($F55,Nominal_to_Real,'Input|Rate of change'!P$25:P$30),INDEX('Input|Rate of change'!$C$14:$O$21,MATCH('Input|Step changes'!$F16,'Input|Rate of change'!$C$14:$C$21,0),MATCH('Calc|Opex forecast'!$F55,'Input|Rate of change'!$C$14:$O$14,0)))*IF('Input|Step changes'!$E16="$millions",1000000,IF('Input|Step changes'!$E16="$000",1000,1))/IF($E55="$millions",1000000,IF($E55="$000",1000,1)) -> 0 | M55: ='Input|Step changes'!M16*IF('Input|Step changes'!$F16="nominal",LOOKUP($F55,Nominal_to_Real,'Input|Rate of change'!Q$25:Q$30),INDEX('Input|Rate of change'!$C$14:$O$21,MATCH('Input|Step changes'!$F16,'Input|Rate of change'!$C$14:$C$21,0),MATCH('Calc|Opex forecast'!$F55,'Input|Rate of change'!$C$14:$O$14,0)))*IF('Input|Step changes'!$E16="$millions",1000000,IF('Input|Step changes'!$E16="$000",1000,1))/IF($E55="$millions",1000000,IF($E55="$000",1000,1)) -> 0 | N55: ='Input|Step changes'!N16*IF('Input|Step changes'!$F16="nominal",LOOKUP($F55,Nominal_to_Real,'Input|Rate of change'!R$25:R$30),INDEX('Input|Rate of change'!$C$14:$O$21,MATCH('Input|Step changes'!$F16,'Input|Rate of change'!$C$14:$C$21,0),MATCH('Calc|Opex forecast'!$F55,'Input|Rate of change'!$C$14:$O$14,0)))*IF('Input|Step changes'!$E16="$millions",1000000,IF('Input|Step changes'!$E16="$000",1000,1))/IF($E55="$millions",1000000,IF($E55="$000",1000,1)) -> 0 | O55: ='Input|Step changes'!O16*IF('Input|Step changes'!$F16="nominal",LOOKUP($F55,Nominal_to_Real,'Input|Rate of change'!S$25:S$30),INDEX('Input|Rate of change'!$C$14:$O$21,MATCH('Input|Step changes'!$F16,'Input|Rate of change'!$C$14:$C$21,0),MATCH('Calc|Opex forecast'!$F55,'Input|Rate of change'!$C$14:$O$14,0)))*IF('Input|Step changes'!$E16="$millions",1000000,IF('Input|Step changes'!$E16="$000",1000,1))/IF($E55="$millions",1000000,IF($E55="$000",1000,1)) -> 0 | P55: ='Input|Step changes'!P16*IF('Input|Step changes'!$F16="nominal",LOOKUP($F55,Nominal_to_Real,'Input|Rate of change'!T$25:T$30),INDEX('Input|Rate of change'!$C$14:$O$21,MATCH('Input|Step changes'!$F16,'Input|Rate of change'!$C$14:$C$21,0),MATCH('Calc|Opex forecast'!$F55,'Input|Rate of change'!$C$14:$O$14,0)))*IF('Input|Step changes'!$E16="$millions",1000000,IF('Input|Step changes'!$E16="$000",1000,1))/IF($E55="$millions",1000000,IF($E55="$000",1000,1)) -> 0 | Q55: ='Input|Step changes'!Q16*IF('Input|Step changes'!$F16="nominal",LOOKUP($F55,Nominal_to_Real,'Input|Rate of change'!U$25:U$30),INDEX('Input|Rate of change'!$C$14:$O$21,MATCH('Input|Step changes'!$F16,'Input|Rate of change'!$C$14:$C$21,0),MATCH('Calc|Opex forecast'!$F55,'Input|Rate of change'!$C$14:$O$14,0)))*IF('Input|Step changes'!$E16="$millions",1000000,IF('Input|Step changes'!$E16="$000",1000,1))/IF($E55="$millions",1000000,IF($E55="$000",1000,1)) -> 0 | R55: ='Input|Step changes'!R16*IF('Input|Step changes'!$F16="nominal",LOOKUP($F55,Nominal_to_Real,'Input|Rate of change'!V$25:V$30),INDEX('Input|Rate of change'!$C$14:$O$21,MATCH('Input|Step changes'!$F16,'Input|Rate of change'!$C$14:$C$21,0),MATCH('Calc|Opex forecast'!$F55,'Input|Rate of change'!$C$14:$O$14,0)))*IF('Input|Step changes'!$E16="$millions",1000000,IF('Input|Step changes'!$E16="$000",1000,1))/IF($E55="$millions",1000000,IF($E55="$000",1000,1)) -> 0 | S55: ='Input|Step changes'!S16*IF('Input|Step changes'!$F16="nominal",LOOKUP($F55,Nominal_to_Real,'Input|Rate of change'!W$25:W$30),INDEX('Input|Rate of change'!$C$14:$O$21,MATCH('Input|Step changes'!$F16,'Input|Rate of change'!$C$14:$C$21,0),MATCH('Calc|Opex forecast'!$F55,'Input|Rate of change'!$C$14:$O$14,0)))*IF('Input|Step changes'!$E16="$millions",1000000,IF('Input|Step changes'!$E16="$000",1000,1))/IF($E55="$millions",1000000,IF($E55="$000",1000,1)) -> 0
C56: ='Input|Step changes'!C17 -> 0 | D56: Calculated | E56: $millions | F56: 2019-06-01 | J56: ='Input|Step changes'!J17*IF('Input|Step changes'!$F17="nominal",LOOKUP($F56,Nominal_to_Real,'Input|Rate of change'!N$25:N$30),INDEX('Input|Rate of change'!$C$14:$O$21,MATCH('Input|Step changes'!$F17,'Input|Rate of change'!$C$14:$C$21,0),MATCH('Calc|Opex forecast'!$F56,'Input|Rate of change'!$C$14:$O$14,0)))*IF('Input|Step changes'!$E17="$millions",1000000,IF('Input|Step changes'!$E17="$000",1000,1))/IF($E56="$millions",1000000,IF($E56="$000",1000,1)) -> 0 | K56: ='Input|Step changes'!K17*IF('Input|Step changes'!$F17="nominal",LOOKUP($F56,Nominal_to_Real,'Input|Rate of change'!O$25:O$30),INDEX('Input|Rate of change'!$C$14:$O$21,MATCH('Input|Step changes'!$F17,'Input|Rate of change'!$C$14:$C$21,0),MATCH('Calc|Opex forecast'!$F56,'Input|Rate of change'!$C$14:$O$14,0)))*IF('Input|Step changes'!$E17="$millions",1000000,IF('Input|Step changes'!$E17="$000",1000,1))/IF($E56="$millions",1000000,IF($E56="$000",1000,1)) -> 0 | L56: ='Input|Step changes'!L17*IF('Input|Step changes'!$F17="nominal",LOOKUP($F56,Nominal_to_Real,'Input|Rate of change'!P$25:P$30),INDEX('Input|Rate of change'!$C$14:$O$21,MATCH('Input|Step changes'!$F17,'Input|Rate of change'!$C$14:$C$21,0),MATCH('Calc|Opex forecast'!$F56,'Input|Rate of change'!$C$14:$O$14,0)))*IF('Input|Step changes'!$E17="$millions",1000000,IF('Input|Step changes'!$E17="$000",1000,1))/IF($E56="$millions",1000000,IF($E56="$000",1000,1)) -> 0 | M56: ='Input|Step changes'!M17*IF('Input|Step changes'!$F17="nominal",LOOKUP($F56,Nominal_to_Real,'Input|Rate of change'!Q$25:Q$30),INDEX('Input|Rate of change'!$C$14:$O$21,MATCH('Input|Step changes'!$F17,'Input|Rate of change'!$C$14:$C$21,0),MATCH('Calc|Opex forecast'!$F56,'Input|Rate of change'!$C$14:$O$14,0)))*IF('Input|Step changes'!$E17="$millions",1000000,IF('Input|Step changes'!$E17="$000",1000,1))/IF($E56="$millions",1000000,IF($E56="$000",1000,1)) -> 0 | N56: ='Input|Step changes'!N17*IF('Input|Step changes'!$F17="nominal",LOOKUP($F56,Nominal_to_Real,'Input|Rate of change'!R$25:R$30),INDEX('Input|Rate of change'!$C$14:$O$21,MATCH('Input|Step changes'!$F17,'Input|Rate of change'!$C$14:$C$21,0),MATCH('Calc|Opex forecast'!$F56,'Input|Rate of change'!$C$14:$O$14,0)))*IF('Input|Step changes'!$E17="$millions",1000000,IF('Input|Step changes'!$E17="$000",1000,1))/IF($E56="$millions",1000000,IF($E56="$000",1000,1)) -> 0 | O56: ='Input|Step changes'!O17*IF('Input|Step changes'!$F17="nominal",LOOKUP($F56,Nominal_to_Real,'Input|Rate of change'!S$25:S$30),INDEX('Input|Rate of change'!$C$14:$O$21,MATCH('Input|Step changes'!$F17,'Input|Rate of change'!$C$14:$C$21,0),MATCH('Calc|Opex forecast'!$F56,'Input|Rate of change'!$C$14:$O$14,0)))*IF('Input|Step changes'!$E17="$millions",1000000,IF('Input|Step changes'!$E17="$000",1000,1))/IF($E56="$millions",1000000,IF($E56="$000",1000,1)) -> 0 | P56: ='Input|Step changes'!P17*IF('Input|Step changes'!$F17="nominal",LOOKUP($F56,Nominal_to_Real,'Input|Rate of change'!T$25:T$30),INDEX('Input|Rate of change'!$C$14:$O$21,MATCH('Input|Step changes'!$F17,'Input|Rate of change'!$C$14:$C$21,0),MATCH('Calc|Opex forecast'!$F56,'Input|Rate of change'!$C$14:$O$14,0)))*IF('Input|Step changes'!$E17="$millions",1000000,IF('Input|Step changes'!$E17="$000",1000,1))/IF($E56="$millions",1000000,IF($E56="$000",1000,1)) -> 0 | Q56: ='Input|Step changes'!Q17*IF('Input|Step changes'!$F17="nominal",LOOKUP($F56,Nominal_to_Real,'Input|Rate of change'!U$25:U$30),INDEX('Input|Rate of change'!$C$14:$O$21,MATCH('Input|Step changes'!$F17,'Input|Rate of change'!$C$14:$C$21,0),MATCH('Calc|Opex forecast'!$F56,'Input|Rate of change'!$C$14:$O$14,0)))*IF('Input|Step changes'!$E17="$millions",1000000,IF('Input|Step changes'!$E17="$000",1000,1))/IF($E56="$millions",1000000,IF($E56="$000",1000,1)) -> 0 | R56: ='Input|Step changes'!R17*IF('Input|Step changes'!$F17="nominal",LOOKUP($F56,Nominal_to_Real,'Input|Rate of change'!V$25:V$30),INDEX('Input|Rate of change'!$C$14:$O$21,MATCH('Input|Step changes'!$F17,'Input|Rate of change'!$C$14:$C$21,0),MATCH('Calc|Opex forecast'!$F56,'Input|Rate of change'!$C$14:$O$14,0)))*IF('Input|Step changes'!$E17="$millions",1000000,IF('Input|Step changes'!$E17="$000",1000,1))/IF($E56="$millions",1000000,IF($E56="$000",1000,1)) -> 0 | S56: ='Input|Step changes'!S17*IF('Input|Step changes'!$F17="nominal",LOOKUP($F56,Nominal_to_Real,'Input|Rate of change'!W$25:W$30),INDEX('Input|Rate of change'!$C$14:$O$21,MATCH('Input|Step changes'!$F17,'Input|Rate of change'!$C$14:$C$21,0),MATCH('Calc|Opex forecast'!$F56,'Input|Rate of change'!$C$14:$O$14,0)))*IF('Input|Step changes'!$E17="$millions",1000000,IF('Input|Step changes'!$E17="$000",1000,1))/IF($E56="$millions",1000000,IF($E56="$000",1000,1)) -> 0
C57: ='Input|Step changes'!C18 -> 0 | D57: Calculated | E57: $millions | F57: 2019-06-01 | J57: ='Input|Step changes'!J18*IF('Input|Step changes'!$F18="nominal",LOOKUP($F57,Nominal_to_Real,'Input|Rate of change'!N$25:N$30),INDEX('Input|Rate of change'!$C$14:$O$21,MATCH('Input|Step changes'!$F18,'Input|Rate of change'!$C$14:$C$21,0),MATCH('Calc|Opex forecast'!$F57,'Input|Rate of change'!$C$14:$O$14,0)))*IF('Input|Step changes'!$E18="$millions",1000000,IF('Input|Step changes'!$E18="$000",1000,1))/IF($E57="$millions",1000000,IF($E57="$000",1000,1)) -> 0 | K57: ='Input|Step changes'!K18*IF('Input|Step changes'!$F18="nominal",LOOKUP($F57,Nominal_to_Real,'Input|Rate of change'!O$25:O$30),INDEX('Input|Rate of change'!$C$14:$O$21,MATCH('Input|Step changes'!$F18,'Input|Rate of change'!$C$14:$C$21,0),MATCH('Calc|Opex forecast'!$F57,'Input|Rate of change'!$C$14:$O$14,0)))*IF('Input|Step changes'!$E18="$millions",1000000,IF('Input|Step changes'!$E18="$000",1000,1))/IF($E57="$millions",1000000,IF($E57="$000",1000,1)) -> 0 | L57: ='Input|Step changes'!L18*IF('Input|Step changes'!$F18="nominal",LOOKUP($F57,Nominal_to_Real,'Input|Rate of change'!P$25:P$30),INDEX('Input|Rate of change'!$C$14:$O$21,MATCH('Input|Step changes'!$F18,'Input|Rate of change'!$C$14:$C$21,0),MATCH('Calc|Opex forecast'!$F57,'Input|Rate of change'!$C$14:$O$14,0)))*IF('Input|Step changes'!$E18="$millions",1000000,IF('Input|Step changes'!$E18="$000",1000,1))/IF($E57="$millions",1000000,IF($E57="$000",1000,1)) -> 0 | M57: ='Input|Step changes'!M18*IF('Input|Step changes'!$F18="nominal",LOOKUP($F57,Nominal_to_Real,'Input|Rate of change'!Q$25:Q$30),INDEX('Input|Rate of change'!$C$14:$O$21,MATCH('Input|Step changes'!$F18,'Input|Rate of change'!$C$14:$C$21,0),MATCH('Calc|Opex forecast'!$F57,'Input|Rate of change'!$C$14:$O$14,0)))*IF('Input|Step changes'!$E18="$millions",1000000,IF('Input|Step changes'!$E18="$000",1000,1))/IF($E57="$millions",1000000,IF($E57="$000",1000,1)) -> 0 | N57: ='Input|Step changes'!N18*IF('Input|Step changes'!$F18="nominal",LOOKUP($F57,Nominal_to_Real,'Input|Rate of change'!R$25:R$30),INDEX('Input|Rate of change'!$C$14:$O$21,MATCH('Input|Step changes'!$F18,'Input|Rate of change'!$C$14:$C$21,0),MATCH('Calc|Opex forecast'!$F57,'Input|Rate of change'!$C$14:$O$14,0)))*IF('Input|Step changes'!$E18="$millions",1000000,IF('Input|Step changes'!$E18="$000",1000,1))/IF($E57="$millions",1000000,IF($E57="$000",1000,1)) -> 0 | O57: ='Input|Step changes'!O18*IF('Input|Step changes'!$F18="nominal",LOOKUP($F57,Nominal_to_Real,'Input|Rate of change'!S$25:S$30),INDEX('Input|Rate of change'!$C$14:$O$21,MATCH('Input|Step changes'!$F18,'Input|Rate of change'!$C$14:$C$21,0),MATCH('Calc|Opex forecast'!$F57,'Input|Rate of change'!$C$14:$O$14,0)))*IF('Input|Step changes'!$E18="$millions",1000000,IF('Input|Step changes'!$E18="$000",1000,1))/IF($E57="$millions",1000000,IF($E57="$000",1000,1)) -> 0 | P57: ='Input|Step changes'!P18*IF('Input|Step changes'!$F18="nominal",LOOKUP($F57,Nominal_to_Real,'Input|Rate of change'!T$25:T$30),INDEX('Input|Rate of change'!$C$14:$O$21,MATCH('Input|Step changes'!$F18,'Input|Rate of change'!$C$14:$C$21,0),MATCH('Calc|Opex forecast'!$F57,'Input|Rate of change'!$C$14:$O$14,0)))*IF('Input|Step changes'!$E18="$millions",1000000,IF('Input|Step changes'!$E18="$000",1000,1))/IF($E57="$millions",1000000,IF($E57="$000",1000,1)) -> 0 | Q57: ='Input|Step changes'!Q18*IF('Input|Step changes'!$F18="nominal",LOOKUP($F57,Nominal_to_Real,'Input|Rate of change'!U$25:U$30),INDEX('Input|Rate of change'!$C$14:$O$21,MATCH('Input|Step changes'!$F18,'Input|Rate of change'!$C$14:$C$21,0),MATCH('Calc|Opex forecast'!$F57,'Input|Rate of change'!$C$14:$O$14,0)))*IF('Input|Step changes'!$E18="$millions",1000000,IF('Input|Step changes'!$E18="$000",1000,1))/IF($E57="$millions",1000000,IF($E57="$000",1000,1)) -> 0 | R57: ='Input|Step changes'!R18*IF('Input|Step changes'!$F18="nominal",LOOKUP($F57,Nominal_to_Real,'Input|Rate of change'!V$25:V$30),INDEX('Input|Rate of change'!$C$14:$O$21,MATCH('Input|Step changes'!$F18,'Input|Rate of change'!$C$14:$C$21,0),MATCH('Calc|Opex forecast'!$F57,'Input|Rate of change'!$C$14:$O$14,0)))*IF('Input|Step changes'!$E18="$millions",1000000,IF('Input|Step changes'!$E18="$000",1000,1))/IF($E57="$millions",1000000,IF($E57="$000",1000,1)) -> 0 | S57: ='Input|Step changes'!S18*IF('Input|Step changes'!$F18="nominal",LOOKUP($F57,Nominal_to_Real,'Input|Rate of change'!W$25:W$30),INDEX('Input|Rate of change'!$C$14:$O$21,MATCH('Input|Step changes'!$F18,'Input|Rate of change'!$C$14:$C$21,0),MATCH('Calc|Opex forecast'!$F57,'Input|Rate of change'!$C$14:$O$14,0)))*IF('Input|Step changes'!$E18="$millions",1000000,IF('Input|Step changes'!$E18="$000",1000,1))/IF($E57="$millions",1000000,IF($E57="$000",1000,1)) -> 0
C58: ='Input|Step changes'!C19 -> 0 | D58: Calculated | E58: $millions | F58: 2019-06-01 | J58: ='Input|Step changes'!J19*IF('Input|Step changes'!$F19="nominal",LOOKUP($F58,Nominal_to_Real,'Input|Rate of change'!N$25:N$30),INDEX('Input|Rate of change'!$C$14:$O$21,MATCH('Input|Step changes'!$F19,'Input|Rate of change'!$C$14:$C$21,0),MATCH('Calc|Opex forecast'!$F58,'Input|Rate of change'!$C$14:$O$14,0)))*IF('Input|Step changes'!$E19="$millions",1000000,IF('Input|Step changes'!$E19="$000",1000,1))/IF($E58="$millions",1000000,IF($E58="$000",1000,1)) -> 0 | K58: ='Input|Step changes'!K19*IF('Input|Step changes'!$F19="nominal",LOOKUP($F58,Nominal_to_Real,'Input|Rate of change'!O$25:O$30),INDEX('Input|Rate of change'!$C$14:$O$21,MATCH('Input|Step changes'!$F19,'Input|Rate of change'!$C$14:$C$21,0),MATCH('Calc|Opex forecast'!$F58,'Input|Rate of change'!$C$14:$O$14,0)))*IF('Input|Step changes'!$E19="$millions",1000000,IF('Input|Step changes'!$E19="$000",1000,1))/IF($E58="$millions",1000000,IF($E58="$000",1000,1)) -> 0 | L58: ='Input|Step changes'!L19*IF('Input|Step changes'!$F19="nominal",LOOKUP($F58,Nominal_to_Real,'Input|Rate of change'!P$25:P$30),INDEX('Input|Rate of change'!$C$14:$O$21,MATCH('Input|Step changes'!$F19,'Input|Rate of change'!$C$14:$C$21,0),MATCH('Calc|Opex forecast'!$F58,'Input|Rate of change'!$C$14:$O$14,0)))*IF('Input|Step changes'!$E19="$millions",1000000,IF('Input|Step changes'!$E19="$000",1000,1))/IF($E58="$millions",1000000,IF($E58="$000",1000,1)) -> 0 | M58: ='Input|Step changes'!M19*IF('Input|Step changes'!$F19="nominal",LOOKUP($F58,Nominal_to_Real,'Input|Rate of change'!Q$25:Q$30),INDEX('Input|Rate of change'!$C$14:$O$21,MATCH('Input|Step changes'!$F19,'Input|Rate of change'!$C$14:$C$21,0),MATCH('Calc|Opex forecast'!$F58,'Input|Rate of change'!$C$14:$O$14,0)))*IF('Input|Step changes'!$E19="$millions",1000000,IF('Input|Step changes'!$E19="$000",1000,1))/IF($E58="$millions",1000000,IF($E58="$000",1000,1)) -> 0 | N58: ='Input|Step changes'!N19*IF('Input|Step changes'!$F19="nominal",LOOKUP($F58,Nominal_to_Real,'Input|Rate of change'!R$25:R$30),INDEX('Input|Rate of change'!$C$14:$O$21,MATCH('Input|Step changes'!$F19,'Input|Rate of change'!$C$14:$C$21,0),MATCH('Calc|Opex forecast'!$F58,'Input|Rate of change'!$C$14:$O$14,0)))*IF('Input|Step changes'!$E19="$millions",1000000,IF('Input|Step changes'!$E19="$000",1000,1))/IF($E58="$millions",1000000,IF($E58="$000",1000,1)) -> 0 | O58: ='Input|Step changes'!O19*IF('Input|Step changes'!$F19="nominal",LOOKUP($F58,Nominal_to_Real,'Input|Rate of change'!S$25:S$30),INDEX('Input|Rate of change'!$C$14:$O$21,MATCH('Input|Step changes'!$F19,'Input|Rate of change'!$C$14:$C$21,0),MATCH('Calc|Opex forecast'!$F58,'Input|Rate of change'!$C$14:$O$14,0)))*IF('Input|Step changes'!$E19="$millions",1000000,IF('Input|Step changes'!$E19="$000",1000,1))/IF($E58="$millions",1000000,IF($E58="$000",1000,1)) -> 0 | P58: ='Input|Step changes'!P19*IF('Input|Step changes'!$F19="nominal",LOOKUP($F58,Nominal_to_Real,'Input|Rate of change'!T$25:T$30),INDEX('Input|Rate of change'!$C$14:$O$21,MATCH('Input|Step changes'!$F19,'Input|Rate of change'!$C$14:$C$21,0),MATCH('Calc|Opex forecast'!$F58,'Input|Rate of change'!$C$14:$O$14,0)))*IF('Input|Step changes'!$E19="$millions",1000000,IF('Input|Step changes'!$E19="$000",1000,1))/IF($E58="$millions",1000000,IF($E58="$000",1000,1)) -> 0 | Q58: ='Input|Step changes'!Q19*IF('Input|Step changes'!$F19="nominal",LOOKUP($F58,Nominal_to_Real,'Input|Rate of change'!U$25:U$30),INDEX('Input|Rate of change'!$C$14:$O$21,MATCH('Input|Step changes'!$F19,'Input|Rate of change'!$C$14:$C$21,0),MATCH('Calc|Opex forecast'!$F58,'Input|Rate of change'!$C$14:$O$14,0)))*IF('Input|Step changes'!$E19="$millions",1000000,IF('Input|Step changes'!$E19="$000",1000,1))/IF($E58="$millions",1000000,IF($E58="$000",1000,1)) -> 0 | R58: ='Input|Step changes'!R19*IF('Input|Step changes'!$F19="nominal",LOOKUP($F58,Nominal_to_Real,'Input|Rate of change'!V$25:V$30),INDEX('Input|Rate of change'!$C$14:$O$21,MATCH('Input|Step changes'!$F19,'Input|Rate of change'!$C$14:$C$21,0),MATCH('Calc|Opex forecast'!$F58,'Input|Rate of change'!$C$14:$O$14,0)))*IF('Input|Step changes'!$E19="$millions",1000000,IF('Input|Step changes'!$E19="$000",1000,1))/IF($E58="$millions",1000000,IF($E58="$000",1000,1)) -> 0 | S58: ='Input|Step changes'!S19*IF('Input|Step changes'!$F19="nominal",LOOKUP($F58,Nominal_to_Real,'Input|Rate of change'!W$25:W$30),INDEX('Input|Rate of change'!$C$14:$O$21,MATCH('Input|Step changes'!$F19,'Input|Rate of change'!$C$14:$C$21,0),MATCH('Calc|Opex forecast'!$F58,'Input|Rate of change'!$C$14:$O$14,0)))*IF('Input|Step changes'!$E19="$millions",1000000,IF('Input|Step changes'!$E19="$000",1000,1))/IF($E58="$millions",1000000,IF($E58="$000",1000,1)) -> 0
C59: ='Input|Step changes'!C20 -> 0 | D59: Calculated | E59: $millions | F59: 2019-06-01 | J59: ='Input|Step changes'!J20*IF('Input|Step changes'!$F20="nominal",LOOKUP($F59,Nominal_to_Real,'Input|Rate of change'!N$25:N$30),INDEX('Input|Rate of change'!$C$14:$O$21,MATCH('Input|Step changes'!$F20,'Input|Rate of change'!$C$14:$C$21,0),MATCH('Calc|Opex forecast'!$F59,'Input|Rate of change'!$C$14:$O$14,0)))*IF('Input|Step changes'!$E20="$millions",1000000,IF('Input|Step changes'!$E20="$000",1000,1))/IF($E59="$millions",1000000,IF($E59="$000",1000,1)) -> 0 | K59: ='Input|Step changes'!K20*IF('Input|Step changes'!$F20="nominal",LOOKUP($F59,Nominal_to_Real,'Input|Rate of change'!O$25:O$30),INDEX('Input|Rate of change'!$C$14:$O$21,MATCH('Input|Step changes'!$F20,'Input|Rate of change'!$C$14:$C$21,0),MATCH('Calc|Opex forecast'!$F59,'Input|Rate of change'!$C$14:$O$14,0)))*IF('Input|Step changes'!$E20="$millions",1000000,IF('Input|Step changes'!$E20="$000",1000,1))/IF($E59="$millions",1000000,IF($E59="$000",1000,1)) -> 0 | L59: ='Input|Step changes'!L20*IF('Input|Step changes'!$F20="nominal",LOOKUP($F59,Nominal_to_Real,'Input|Rate of change'!P$25:P$30),INDEX('Input|Rate of change'!$C$14:$O$21,MATCH('Input|Step changes'!$F20,'Input|Rate of change'!$C$14:$C$21,0),MATCH('Calc|Opex forecast'!$F59,'Input|Rate of change'!$C$14:$O$14,0)))*IF('Input|Step changes'!$E20="$millions",1000000,IF('Input|Step changes'!$E20="$000",1000,1))/IF($E59="$millions",1000000,IF($E59="$000",1000,1)) -> 0 | M59: ='Input|Step changes'!M20*IF('Input|Step changes'!$F20="nominal",LOOKUP($F59,Nominal_to_Real,'Input|Rate of change'!Q$25:Q$30),INDEX('Input|Rate of change'!$C$14:$O$21,MATCH('Input|Step changes'!$F20,'Input|Rate of change'!$C$14:$C$21,0),MATCH('Calc|Opex forecast'!$F59,'Input|Rate of change'!$C$14:$O$14,0)))*IF('Input|Step changes'!$E20="$millions",1000000,IF('Input|Step changes'!$E20="$000",1000,1))/IF($E59="$millions",1000000,IF($E59="$000",1000,1)) -> 0 | N59: ='Input|Step changes'!N20*IF('Input|Step changes'!$F20="nominal",LOOKUP($F59,Nominal_to_Real,'Input|Rate of change'!R$25:R$30),INDEX('Input|Rate of change'!$C$14:$O$21,MATCH('Input|Step changes'!$F20,'Input|Rate of change'!$C$14:$C$21,0),MATCH('Calc|Opex forecast'!$F59,'Input|Rate of change'!$C$14:$O$14,0)))*IF('Input|Step changes'!$E20="$millions",1000000,IF('Input|Step changes'!$E20="$000",1000,1))/IF($E59="$millions",1000000,IF($E59="$000",1000,1)) -> 0 | O59: ='Input|Step changes'!O20*IF('Input|Step changes'!$F20="nominal",LOOKUP($F59,Nominal_to_Real,'Input|Rate of change'!S$25:S$30),INDEX('Input|Rate of change'!$C$14:$O$21,MATCH('Input|Step changes'!$F20,'Input|Rate of change'!$C$14:$C$21,0),MATCH('Calc|Opex forecast'!$F59,'Input|Rate of change'!$C$14:$O$14,0)))*IF('Input|Step changes'!$E20="$millions",1000000,IF('Input|Step changes'!$E20="$000",1000,1))/IF($E59="$millions",1000000,IF($E59="$000",1000,1)) -> 0 | P59: ='Input|Step changes'!P20*IF('Input|Step changes'!$F20="nominal",LOOKUP($F59,Nominal_to_Real,'Input|Rate of change'!T$25:T$30),INDEX('Input|Rate of change'!$C$14:$O$21,MATCH('Input|Step changes'!$F20,'Input|Rate of change'!$C$14:$C$21,0),MATCH('Calc|Opex forecast'!$F59,'Input|Rate of change'!$C$14:$O$14,0)))*IF('Input|Step changes'!$E20="$millions",1000000,IF('Input|Step changes'!$E20="$000",1000,1))/IF($E59="$millions",1000000,IF($E59="$000",1000,1)) -> 0 | Q59: ='Input|Step changes'!Q20*IF('Input|Step changes'!$F20="nominal",LOOKUP($F59,Nominal_to_Real,'Input|Rate of change'!U$25:U$30),INDEX('Input|Rate of change'!$C$14:$O$21,MATCH('Input|Step changes'!$F20,'Input|Rate of change'!$C$14:$C$21,0),MATCH('Calc|Opex forecast'!$F59,'Input|Rate of change'!$C$14:$O$14,0)))*IF('Input|Step changes'!$E20="$millions",1000000,IF('Input|Step changes'!$E20="$000",1000,1))/IF($E59="$millions",1000000,IF($E59="$000",1000,1)) -> 0 | R59: ='Input|Step changes'!R20*IF('Input|Step changes'!$F20="nominal",LOOKUP($F59,Nominal_to_Real,'Input|Rate of change'!V$25:V$30),INDEX('Input|Rate of change'!$C$14:$O$21,MATCH('Input|Step changes'!$F20,'Input|Rate of change'!$C$14:$C$21,0),MATCH('Calc|Opex forecast'!$F59,'Input|Rate of change'!$C$14:$O$14,0)))*IF('Input|Step changes'!$E20="$millions",1000000,IF('Input|Step changes'!$E20="$000",1000,1))/IF($E59="$millions",1000000,IF($E59="$000",1000,1)) -> 0 | S59: ='Input|Step changes'!S20*IF('Input|Step changes'!$F20="nominal",LOOKUP($F59,Nominal_to_Real,'Input|Rate of change'!W$25:W$30),INDEX('Input|Rate of change'!$C$14:$O$21,MATCH('Input|Step changes'!$F20,'Input|Rate of change'!$C$14:$C$21,0),MATCH('Calc|Opex forecast'!$F59,'Input|Rate of change'!$C$14:$O$14,0)))*IF('Input|Step changes'!$E20="$millions",1000000,IF('Input|Step changes'!$E20="$000",1000,1))/IF($E59="$millions",1000000,IF($E59="$000",1000,1)) -> 0
C61: Total step changes | D61: Calculated | E61: =$E$8 -> $millions | F61: 2019-06-01 | J61: =SUM(J50:J60) -> 0 | K61: =SUM(K50:K60) -> 0 | L61: 0 | M61: 0 | N61: 0 | O61: 2.756340166 | P61: 2.757504368 | Q61: 2.758462262 | R61: 2.758392512 | S61: 2.757903645
B63: Calc | Category specific forecasts
C65: Category specific forecasts | D65: Source | E65: Unit | F65: Basis | J65: =IF(YEAR(J$4)>='Input|General'!$G$13,IF(YEAR(J$4)<='Input|General'!$G$14,J$4,""),"") ->  | K65: =IF(YEAR(K$4)>='Input|General'!$G$13,IF(YEAR(K$4)<='Input|General'!$G$14,K$4,""),"") ->  | L65: =IF(YEAR(L$4)>='Input|General'!$G$13,IF(YEAR(L$4)<='Input|General'!$G$14,L$4,""),"") ->  | M65: =IF(YEAR(M$4)>='Input|General'!$G$13,IF(YEAR(M$4)<='Input|General'!$G$14,M$4,""),"") ->  | N65: =IF(YEAR(N$4)>='Input|General'!$G$13,IF(YEAR(N$4)<='Input|General'!$G$14,N$4,""),"") ->  | O65: =IF(YEAR(O$4)>='Input|General'!$G$13,IF(YEAR(O$4)<='Input|General'!$G$14,O$4,""),"") -> 2020-06-01 | P65: =IF(YEAR(P$4)>='Input|General'!$G$13,IF(YEAR(P$4)<='Input|General'!$G$14,P$4,""),"") -> 2021-06-01 | Q65: =IF(YEAR(Q$4)>='Input|General'!$G$13,IF(YEAR(Q$4)<='Input|General'!$G$14,Q$4,""),"") -> 2022-06-01 | R65: =IF(YEAR(R$4)>='Input|General'!$G$13,IF(YEAR(R$4)<='Input|General'!$G$14,R$4,""),"") -> 2023-06-01 | S65: =IF(YEAR(S$4)>='Input|General'!$G$13,IF(YEAR(S$4)<='Input|General'!$G$14,S$4,""),"") -> 2024-06-01
C67: ='Input|Step changes'!C28 -> 0 | D67: Calculated | E67: $millions | F67: =$F$8 -> 2019-06-01 | J67: ='Input|Step changes'!J28*IF('Input|Step changes'!$F28="nominal",LOOKUP($F67,Nominal_to_Real,'Input|Rate of change'!N$25:N$30),INDEX('Input|Rate of change'!$C$14:$O$21,MATCH('Input|Step changes'!$F28,'Input|Rate of change'!$C$14:$C$21,0),MATCH('Calc|Opex forecast'!$F67,'Input|Rate of change'!$C$14:$O$14,0)))*IF('Input|Step changes'!$E28="$millions",1000000,IF('Input|Step changes'!$E28="$000",1000,1))/IF($E67="$millions",1000000,IF($E67="$000",1000,1)) -> 0 | K67: ='Input|Step changes'!K28*IF('Input|Step changes'!$F28="nominal",LOOKUP($F67,Nominal_to_Real,'Input|Rate of change'!O$25:O$30),INDEX('Input|Rate of change'!$C$14:$O$21,MATCH('Input|Step changes'!$F28,'Input|Rate of change'!$C$14:$C$21,0),MATCH('Calc|Opex forecast'!$F67,'Input|Rate of change'!$C$14:$O$14,0)))*IF('Input|Step changes'!$E28="$millions",1000000,IF('Input|Step changes'!$E28="$000",1000,1))/IF($E67="$millions",1000000,IF($E67="$000",1000,1)) -> 0 | L67: ='Input|Step changes'!L28*IF('Input|Step changes'!$F28="nominal",LOOKUP($F67,Nominal_to_Real,'Input|Rate of change'!P$25:P$30),INDEX('Input|Rate of change'!$C$14:$O$21,MATCH('Input|Step changes'!$F28,'Input|Rate of change'!$C$14:$C$21,0),MATCH('Calc|Opex forecast'!$F67,'Input|Rate of change'!$C$14:$O$14,0)))*IF('Input|Step changes'!$E28="$millions",1000000,IF('Input|Step changes'!$E28="$000",1000,1))/IF($E67="$millions",1000000,IF($E67="$000",1000,1)) -> 0 | M67: ='Input|Step changes'!M28*IF('Input|Step changes'!$F28="nominal",LOOKUP($F67,Nominal_to_Real,'Input|Rate of change'!Q$25:Q$30),INDEX('Input|Rate of change'!$C$14:$O$21,MATCH('Input|Step changes'!$F28,'Input|Rate of change'!$C$14:$C$21,0),MATCH('Calc|Opex forecast'!$F67,'Input|Rate of change'!$C$14:$O$14,0)))*IF('Input|Step changes'!$E28="$millions",1000000,IF('Input|Step changes'!$E28="$000",1000,1))/IF($E67="$millions",1000000,IF($E67="$000",1000,1)) -> 0 | N67: ='Input|Step changes'!N28*IF('Input|Step changes'!$F28="nominal",LOOKUP($F67,Nominal_to_Real,'Input|Rate of change'!R$25:R$30),INDEX('Input|Rate of change'!$C$14:$O$21,MATCH('Input|Step changes'!$F28,'Input|Rate of change'!$C$14:$C$21,0),MATCH('Calc|Opex forecast'!$F67,'Input|Rate of change'!$C$14:$O$14,0)))*IF('Input|Step changes'!$E28="$millions",1000000,IF('Input|Step changes'!$E28="$000",1000,1))/IF($E67="$millions",1000000,IF($E67="$000",1000,1)) -> 0 | O67: ='Input|Step changes'!O28*IF('Input|Step changes'!$F28="nominal",LOOKUP($F67,Nominal_to_Real,'Input|Rate of change'!S$25:S$30),INDEX('Input|Rate of change'!$C$14:$O$21,MATCH('Input|Step changes'!$F28,'Input|Rate of change'!$C$14:$C$21,0),MATCH('Calc|Opex forecast'!$F67,'Input|Rate of change'!$C$14:$O$14,0)))*IF('Input|Step changes'!$E28="$millions",1000000,IF('Input|Step changes'!$E28="$000",1000,1))/IF($E67="$millions",1000000,IF($E67="$000",1000,1)) -> 0 | P67: ='Input|Step changes'!P28*IF('Input|Step changes'!$F28="nominal",LOOKUP($F67,Nominal_to_Real,'Input|Rate of change'!T$25:T$30),INDEX('Input|Rate of change'!$C$14:$O$21,MATCH('Input|Step changes'!$F28,'Input|Rate of change'!$C$14:$C$21,0),MATCH('Calc|Opex forecast'!$F67,'Input|Rate of change'!$C$14:$O$14,0)))*IF('Input|Step changes'!$E28="$millions",1000000,IF('Input|Step changes'!$E28="$000",1000,1))/IF($E67="$millions",1000000,IF($E67="$000",1000,1)) -> 0 | Q67: ='Input|Step changes'!Q28*IF('Input|Step changes'!$F28="nominal",LOOKUP($F67,Nominal_to_Real,'Input|Rate of change'!U$25:U$30),INDEX('Input|Rate of change'!$C$14:$O$21,MATCH('Input|Step changes'!$F28,'Input|Rate of change'!$C$14:$C$21,0),MATCH('Calc|Opex forecast'!$F67,'Input|Rate of change'!$C$14:$O$14,0)))*IF('Input|Step changes'!$E28="$millions",1000000,IF('Input|Step changes'!$E28="$000",1000,1))/IF($E67="$millions",1000000,IF($E67="$000",1000,1)) -> 0 | R67: ='Input|Step changes'!R28*IF('Input|Step changes'!$F28="nominal",LOOKUP($F67,Nominal_to_Real,'Input|Rate of change'!V$25:V$30),INDEX('Input|Rate of change'!$C$14:$O$21,MATCH('Input|Step changes'!$F28,'Input|Rate of change'!$C$14:$C$21,0),MATCH('Calc|Opex forecast'!$F67,'Input|Rate of change'!$C$14:$O$14,0)))*IF('Input|Step changes'!$E28="$millions",1000000,IF('Input|Step changes'!$E28="$000",1000,1))/IF($E67="$millions",1000000,IF($E67="$000",1000,1)) -> 0 | S67: ='Input|Step changes'!S28*IF('Input|Step changes'!$F28="nominal",LOOKUP($F67,Nominal_to_Real,'Input|Rate of change'!W$25:W$30),INDEX('Input|Rate of change'!$C$14:$O$21,MATCH('Input|Step changes'!$F28,'Input|Rate of change'!$C$14:$C$21,0),MATCH('Calc|Opex forecast'!$F67,'Input|Rate of change'!$C$14:$O$14,0)))*IF('Input|Step changes'!$E28="$millions",1000000,IF('Input|Step changes'!$E28="$000",1000,1))/IF($E67="$millions",1000000,IF($E67="$000",1000,1)) -> 0
C68: ='Input|Step changes'!C29 -> 0 | D68: Calculated | E68: $millions | F68: 2019-06-01 | J68: ='Input|Step changes'!J29*IF('Input|Step changes'!$F29="nominal",LOOKUP($F68,Nominal_to_Real,'Input|Rate of change'!N$25:N$30),INDEX('Input|Rate of change'!$C$14:$O$21,MATCH('Input|Step changes'!$F29,'Input|Rate of change'!$C$14:$C$21,0),MATCH('Calc|Opex forecast'!$F68,'Input|Rate of change'!$C$14:$O$14,0)))*IF('Input|Step changes'!$E29="$millions",1000000,IF('Input|Step changes'!$E29="$000",1000,1))/IF($E68="$millions",1000000,IF($E68="$000",1000,1)) -> 0 | K68: ='Input|Step changes'!K29*IF('Input|Step changes'!$F29="nominal",LOOKUP($F68,Nominal_to_Real,'Input|Rate of change'!O$25:O$30),INDEX('Input|Rate of change'!$C$14:$O$21,MATCH('Input|Step changes'!$F29,'Input|Rate of change'!$C$14:$C$21,0),MATCH('Calc|Opex forecast'!$F68,'Input|Rate of change'!$C$14:$O$14,0)))*IF('Input|Step changes'!$E29="$millions",1000000,IF('Input|Step changes'!$E29="$000",1000,1))/IF($E68="$millions",1000000,IF($E68="$000",1000,1)) -> 0 | L68: ='Input|Step changes'!L29*IF('Input|Step changes'!$F29="nominal",LOOKUP($F68,Nominal_to_Real,'Input|Rate of change'!P$25:P$30),INDEX('Input|Rate of change'!$C$14:$O$21,MATCH('Input|Step changes'!$F29,'Input|Rate of change'!$C$14:$C$21,0),MATCH('Calc|Opex forecast'!$F68,'Input|Rate of change'!$C$14:$O$14,0)))*IF('Input|Step changes'!$E29="$millions",1000000,IF('Input|Step changes'!$E29="$000",1000,1))/IF($E68="$millions",1000000,IF($E68="$000",1000,1)) -> 0 | M68: ='Input|Step changes'!M29*IF('Input|Step changes'!$F29="nominal",LOOKUP($F68,Nominal_to_Real,'Input|Rate of change'!Q$25:Q$30),INDEX('Input|Rate of change'!$C$14:$O$21,MATCH('Input|Step changes'!$F29,'Input|Rate of change'!$C$14:$C$21,0),MATCH('Calc|Opex forecast'!$F68,'Input|Rate of change'!$C$14:$O$14,0)))*IF('Input|Step changes'!$E29="$millions",1000000,IF('Input|Step changes'!$E29="$000",1000,1))/IF($E68="$millions",1000000,IF($E68="$000",1000,1)) -> 0 | N68: ='Input|Step changes'!N29*IF('Input|Step changes'!$F29="nominal",LOOKUP($F68,Nominal_to_Real,'Input|Rate of change'!R$25:R$30),INDEX('Input|Rate of change'!$C$14:$O$21,MATCH('Input|Step changes'!$F29,'Input|Rate of change'!$C$14:$C$21,0),MATCH('Calc|Opex forecast'!$F68,'Input|Rate of change'!$C$14:$O$14,0)))*IF('Input|Step changes'!$E29="$millions",1000000,IF('Input|Step changes'!$E29="$000",1000,1))/IF($E68="$millions",1000000,IF($E68="$000",1000,1)) -> 0 | O68: ='Input|Step changes'!O29*IF('Input|Step changes'!$F29="nominal",LOOKUP($F68,Nominal_to_Real,'Input|Rate of change'!S$25:S$30),INDEX('Input|Rate of change'!$C$14:$O$21,MATCH('Input|Step changes'!$F29,'Input|Rate of change'!$C$14:$C$21,0),MATCH('Calc|Opex forecast'!$F68,'Input|Rate of change'!$C$14:$O$14,0)))*IF('Input|Step changes'!$E29="$millions",1000000,IF('Input|Step changes'!$E29="$000",1000,1))/IF($E68="$millions",1000000,IF($E68="$000",1000,1)) -> 0 | P68: ='Input|Step changes'!P29*IF('Input|Step changes'!$F29="nominal",LOOKUP($F68,Nominal_to_Real,'Input|Rate of change'!T$25:T$30),INDEX('Input|Rate of change'!$C$14:$O$21,MATCH('Input|Step changes'!$F29,'Input|Rate of change'!$C$14:$C$21,0),MATCH('Calc|Opex forecast'!$F68,'Input|Rate of change'!$C$14:$O$14,0)))*IF('Input|Step changes'!$E29="$millions",1000000,IF('Input|Step changes'!$E29="$000",1000,1))/IF($E68="$millions",1000000,IF($E68="$000",1000,1)) -> 0 | Q68: ='Input|Step changes'!Q29*IF('Input|Step changes'!$F29="nominal",LOOKUP($F68,Nominal_to_Real,'Input|Rate of change'!U$25:U$30),INDEX('Input|Rate of change'!$C$14:$O$21,MATCH('Input|Step changes'!$F29,'Input|Rate of change'!$C$14:$C$21,0),MATCH('Calc|Opex forecast'!$F68,'Input|Rate of change'!$C$14:$O$14,0)))*IF('Input|Step changes'!$E29="$millions",1000000,IF('Input|Step changes'!$E29="$000",1000,1))/IF($E68="$millions",1000000,IF($E68="$000",1000,1)) -> 0 | R68: ='Input|Step changes'!R29*IF('Input|Step changes'!$F29="nominal",LOOKUP($F68,Nominal_to_Real,'Input|Rate of change'!V$25:V$30),INDEX('Input|Rate of change'!$C$14:$O$21,MATCH('Input|Step changes'!$F29,'Input|Rate of change'!$C$14:$C$21,0),MATCH('Calc|Opex forecast'!$F68,'Input|Rate of change'!$C$14:$O$14,0)))*IF('Input|Step changes'!$E29="$millions",1000000,IF('Input|Step changes'!$E29="$000",1000,1))/IF($E68="$millions",1000000,IF($E68="$000",1000,1)) -> 0 | S68: ='Input|Step changes'!S29*IF('Input|Step changes'!$F29="nominal",LOOKUP($F68,Nominal_to_Real,'Input|Rate of change'!W$25:W$30),INDEX('Input|Rate of change'!$C$14:$O$21,MATCH('Input|Step changes'!$F29,'Input|Rate of change'!$C$14:$C$21,0),MATCH('Calc|Opex forecast'!$F68,'Input|Rate of change'!$C$14:$O$14,0)))*IF('Input|Step changes'!$E29="$millions",1000000,IF('Input|Step changes'!$E29="$000",1000,1))/IF($E68="$millions",1000000,IF($E68="$000",1000,1)) -> 0
C69: ='Input|Step changes'!C30 -> 0 | D69: Calculated | E69: $millions | F69: 2019-06-01 | J69: ='Input|Step changes'!J30*IF('Input|Step changes'!$F30="nominal",LOOKUP($F69,Nominal_to_Real,'Input|Rate of change'!N$25:N$30),INDEX('Input|Rate of change'!$C$14:$O$21,MATCH('Input|Step changes'!$F30,'Input|Rate of change'!$C$14:$C$21,0),MATCH('Calc|Opex forecast'!$F69,'Input|Rate of change'!$C$14:$O$14,0)))*IF('Input|Step changes'!$E30="$millions",1000000,IF('Input|Step changes'!$E30="$000",1000,1))/IF($E69="$millions",1000000,IF($E69="$000",1000,1)) -> 0 | K69: ='Input|Step changes'!K30*IF('Input|Step changes'!$F30="nominal",LOOKUP($F69,Nominal_to_Real,'Input|Rate of change'!O$25:O$30),INDEX('Input|Rate of change'!$C$14:$O$21,MATCH('Input|Step changes'!$F30,'Input|Rate of change'!$C$14:$C$21,0),MATCH('Calc|Opex forecast'!$F69,'Input|Rate of change'!$C$14:$O$14,0)))*IF('Input|Step changes'!$E30="$millions",1000000,IF('Input|Step changes'!$E30="$000",1000,1))/IF($E69="$millions",1000000,IF($E69="$000",1000,1)) -> 0 | L69: ='Input|Step changes'!L30*IF('Input|Step changes'!$F30="nominal",LOOKUP($F69,Nominal_to_Real,'Input|Rate of change'!P$25:P$30),INDEX('Input|Rate of change'!$C$14:$O$21,MATCH('Input|Step changes'!$F30,'Input|Rate of change'!$C$14:$C$21,0),MATCH('Calc|Opex forecast'!$F69,'Input|Rate of change'!$C$14:$O$14,0)))*IF('Input|Step changes'!$E30="$millions",1000000,IF('Input|Step changes'!$E30="$000",1000,1))/IF($E69="$millions",1000000,IF($E69="$000",1000,1)) -> 0 | M69: ='Input|Step changes'!M30*IF('Input|Step changes'!$F30="nominal",LOOKUP($F69,Nominal_to_Real,'Input|Rate of change'!Q$25:Q$30),INDEX('Input|Rate of change'!$C$14:$O$21,MATCH('Input|Step changes'!$F30,'Input|Rate of change'!$C$14:$C$21,0),MATCH('Calc|Opex forecast'!$F69,'Input|Rate of change'!$C$14:$O$14,0)))*IF('Input|Step changes'!$E30="$millions",1000000,IF('Input|Step changes'!$E30="$000",1000,1))/IF($E69="$millions",1000000,IF($E69="$000",1000,1)) -> 0 | N69: ='Input|Step changes'!N30*IF('Input|Step changes'!$F30="nominal",LOOKUP($F69,Nominal_to_Real,'Input|Rate of change'!R$25:R$30),INDEX('Input|Rate of change'!$C$14:$O$21,MATCH('Input|Step changes'!$F30,'Input|Rate of change'!$C$14:$C$21,0),MATCH('Calc|Opex forecast'!$F69,'Input|Rate of change'!$C$14:$O$14,0)))*IF('Input|Step changes'!$E30="$millions",1000000,IF('Input|Step changes'!$E30="$000",1000,1))/IF($E69="$millions",1000000,IF($E69="$000",1000,1)) -> 0 | O69: ='Input|Step changes'!O30*IF('Input|Step changes'!$F30="nominal",LOOKUP($F69,Nominal_to_Real,'Input|Rate of change'!S$25:S$30),INDEX('Input|Rate of change'!$C$14:$O$21,MATCH('Input|Step changes'!$F30,'Input|Rate of change'!$C$14:$C$21,0),MATCH('Calc|Opex forecast'!$F69,'Input|Rate of change'!$C$14:$O$14,0)))*IF('Input|Step changes'!$E30="$millions",1000000,IF('Input|Step changes'!$E30="$000",1000,1))/IF($E69="$millions",1000000,IF($E69="$000",1000,1)) -> 0 | P69: ='Input|Step changes'!P30*IF('Input|Step changes'!$F30="nominal",LOOKUP($F69,Nominal_to_Real,'Input|Rate of change'!T$25:T$30),INDEX('Input|Rate of change'!$C$14:$O$21,MATCH('Input|Step changes'!$F30,'Input|Rate of change'!$C$14:$C$21,0),MATCH('Calc|Opex forecast'!$F69,'Input|Rate of change'!$C$14:$O$14,0)))*IF('Input|Step changes'!$E30="$millions",1000000,IF('Input|Step changes'!$E30="$000",1000,1))/IF($E69="$millions",1000000,IF($E69="$000",1000,1)) -> 0 | Q69: ='Input|Step changes'!Q30*IF('Input|Step changes'!$F30="nominal",LOOKUP($F69,Nominal_to_Real,'Input|Rate of change'!U$25:U$30),INDEX('Input|Rate of change'!$C$14:$O$21,MATCH('Input|Step changes'!$F30,'Input|Rate of change'!$C$14:$C$21,0),MATCH('Calc|Opex forecast'!$F69,'Input|Rate of change'!$C$14:$O$14,0)))*IF('Input|Step changes'!$E30="$millions",1000000,IF('Input|Step changes'!$E30="$000",1000,1))/IF($E69="$millions",1000000,IF($E69="$000",1000,1)) -> 0 | R69: ='Input|Step changes'!R30*IF('Input|Step changes'!$F30="nominal",LOOKUP($F69,Nominal_to_Real,'Input|Rate of change'!V$25:V$30),INDEX('Input|Rate of change'!$C$14:$O$21,MATCH('Input|Step changes'!$F30,'Input|Rate of change'!$C$14:$C$21,0),MATCH('Calc|Opex forecast'!$F69,'Input|Rate of change'!$C$14:$O$14,0)))*IF('Input|Step changes'!$E30="$millions",1000000,IF('Input|Step changes'!$E30="$000",1000,1))/IF($E69="$millions",1000000,IF($E69="$000",1000,1)) -> 0 | S69: ='Input|Step changes'!S30*IF('Input|Step changes'!$F30="nominal",LOOKUP($F69,Nominal_to_Real,'Input|Rate of change'!W$25:W$30),INDEX('Input|Rate of change'!$C$14:$O$21,MATCH('Input|Step changes'!$F30,'Input|Rate of change'!$C$14:$C$21,0),MATCH('Calc|Opex forecast'!$F69,'Input|Rate of change'!$C$14:$O$14,0)))*IF('Input|Step changes'!$E30="$millions",1000000,IF('Input|Step changes'!$E30="$000",1000,1))/IF($E69="$millions",1000000,IF($E69="$000",1000,1)) -> 0
C71: Total category specific forecasts | D71: Calculated | E71: =$E$8 -> $millions | F71: =$F$8 -> 2019-06-01 | J71: =SUM(J66:J70) -> 0 | K71: =SUM(K66:K70) -> 0 | L71: 0 | M71: 0 | N71: 0 | O71: 0 | P71: 0 | Q71: 0 | R71: 0 | S71: 0
B73: Calc | Total forecast operating expenditure
J75: =IF(YEAR(J$4)>='Input|General'!$G$13,IF(YEAR(J$4)<='Input|General'!$G$14,J$4,""),"") ->  | K75: =IF(YEAR(K$4)>='Input|General'!$G$13,IF(YEAR(K$4)<='Input|General'!$G$14,K$4,""),"") ->  | L75: =IF(YEAR(L$4)>='Input|General'!$G$13,IF(YEAR(L$4)<='Input|General'!$G$14,L$4,""),"") ->  | M75: =IF(YEAR(M$4)>='Input|General'!$G$13,IF(YEAR(M$4)<='Input|General'!$G$14,M$4,""),"") ->  | N75: =IF(YEAR(N$4)>='Input|General'!$G$13,IF(YEAR(N$4)<='Input|General'!$G$14,N$4,""),"") ->  | O75: =IF(YEAR(O$4)>='Input|General'!$G$13,IF(YEAR(O$4)<='Input|General'!$G$14,O$4,""),"") -> 2020-06-01 | P75: =IF(YEAR(P$4)>='Input|General'!$G$13,IF(YEAR(P$4)<='Input|General'!$G$14,P$4,""),"") -> 2021-06-01 | Q75: =IF(YEAR(Q$4)>='Input|General'!$G$13,IF(YEAR(Q$4)<='Input|General'!$G$14,Q$4,""),"") -> 2022-06-01 | R75: =IF(YEAR(R$4)>='Input|General'!$G$13,IF(YEAR(R$4)<='Input|General'!$G$14,R$4,""),"") -> 2023-06-01 | S75: =IF(YEAR(S$4)>='Input|General'!$G$13,IF(YEAR(S$4)<='Input|General'!$G$14,S$4,""),"") -> 2024-06-01
C77: Total forecast opex, excluding category specific forecasts | D77: Calculated | E77: =$E$8 -> $millions | F77: =$F$8 -> 2019-06-01 | J77: =IF(YEAR(J$4)>=FPFirstYear,IF(YEAR(J$4)<=FPLastYear,IF(ISBLANK(J75),"",(1+J45)*SUM(#REF!)+J61),""),"") ->  | K77: =IF(YEAR(K$4)>=FPFirstYear,IF(YEAR(K$4)<=FPLastYear,IF(ISBLANK(K75),"",(1+K45)*SUM(#REF!)+K61),""),"") ->  | L77: =IF(YEAR(L$4)>=FPFirstYear,IF(YEAR(L$4)<=FPLastYear,IF(ISBLANK(L75),"",(1+L45)*SUM(#REF!)+L61),""),"") ->  | M77: =IF(YEAR(M$4)>=FPFirstYear,IF(YEAR(M$4)<=FPLastYear,IF(ISBLANK(M75),"",(1+M45)*SUM(#REF!)+M61),""),"") ->  | N77: =IF(YEAR(N$4)>=FPFirstYear,IF(YEAR(N$4)<=FPLastYear,IF(ISBLANK(N75),"",(1+N45)*SUM(#REF!)+N61),""),"") ->  | O77: =IF(YEAR(O$4)>=FPFirstYear,IF(YEAR(O$4)<=FPLastYear,IF(ISBLANK(O75),"",(1+O45)*SUM($J31:$S31)+O61),""),"") -> 57.19675085 | P77: =IF(YEAR(P$4)>=FPFirstYear,IF(YEAR(P$4)<=FPLastYear,IF(ISBLANK(P75),"",(1+P45)*SUM($J31:$S31)+P61),""),"") -> 57.96541245 | Q77: =IF(YEAR(Q$4)>=FPFirstYear,IF(YEAR(Q$4)<=FPLastYear,IF(ISBLANK(Q75),"",(1+Q45)*SUM($J31:$S31)+Q61),""),"") -> 58.88956933 | R77: =IF(YEAR(R$4)>=FPFirstYear,IF(YEAR(R$4)<=FPLastYear,IF(ISBLANK(R75),"",(1+R45)*SUM($J31:$S31)+R61),""),"") -> 59.83791325 | S77: =IF(YEAR(S$4)>=FPFirstYear,IF(YEAR(S$4)<=FPLastYear,IF(ISBLANK(S75),"",(1+S45)*SUM($J31:$S31)+S61),""),"") -> 60.76840512 | V77: =IF(SUM(O78:S79)=SUM(O77:S77),"Ok","Check") -> Check
C78: Distribution | D78: Calculated | E78: $millions | F78: 2019-06-01 | J78: =IF(YEAR(J$4)>=FPFirstYear,IF(YEAR(J$4)<=FPLastYear,IF(ISBLANK(J75),"",(1+J45)*SUM($J31:$S31)*'Input|Dx Tx split'!J12+J61),""),"") ->  | K78: =IF(YEAR(K$4)>=FPFirstYear,IF(YEAR(K$4)<=FPLastYear,IF(ISBLANK(K75),"",(1+K45)*SUM($J31:$S31)*'Input|Dx Tx split'!K12+K61),""),"") ->  | L78: =IF(YEAR(L$4)>=FPFirstYear,IF(YEAR(L$4)<=FPLastYear,IF(ISBLANK(L75),"",(1+L45)*SUM($J31:$S31)*'Input|Dx Tx split'!L12+L61),""),"") ->  | M78: =IF(YEAR(M$4)>=FPFirstYear,IF(YEAR(M$4)<=FPLastYear,IF(ISBLANK(M75),"",(1+M45)*SUM($J31:$S31)*'Input|Dx Tx split'!M12+M61),""),"") ->  | N78: =IF(YEAR(N$4)>=FPFirstYear,IF(YEAR(N$4)<=FPLastYear,IF(ISBLANK(N75),"",(1+N45)*SUM($J31:$S31)*'Input|Dx Tx split'!N12+N61),""),"") ->  | O78: =IF(YEAR(O$4)>=FPFirstYear,IF(YEAR(O$4)<=FPLastYear,IF(ISBLANK(O75),"",(1+O45)*SUM($J31:$S31)*'Input|Dx Tx split'!O12+O61),""),"") -> 49.21887815 | P78: =IF(YEAR(P$4)>=FPFirstYear,IF(YEAR(P$4)<=FPLastYear,IF(ISBLANK(P75),"",(1+P45)*SUM($J31:$S31)*'Input|Dx Tx split'!P12+P61),""),"") -> 49.87506821 | Q78: =IF(YEAR(Q$4)>=FPFirstYear,IF(YEAR(Q$4)<=FPLastYear,IF(ISBLANK(Q75),"",(1+Q45)*SUM($J31:$S31)*'Input|Dx Tx split'!Q12+Q61),""),"") -> 50.66393655 | R78: =IF(YEAR(R$4)>=FPFirstYear,IF(YEAR(R$4)<=FPLastYear,IF(ISBLANK(R75),"",(1+R45)*SUM($J31:$S31)*'Input|Dx Tx split'!R12+R61),""),"") -> 51.47329688 | S78: =IF(YEAR(S$4)>=FPFirstYear,IF(YEAR(S$4)<=FPLastYear,IF(ISBLANK(S75),"",(1+S45)*SUM($J31:$S31)*'Input|Dx Tx split'!S12+S61),""),"") -> 52.26735984
C79: Transmission | D79: Calculated | E79: $millions | F79: 2019-06-01 | J79: =IF(YEAR(J$4)>=FPFirstYear,IF(YEAR(J$4)<=FPLastYear,IF(ISBLANK(J75),"",(1+J45)*SUM($J31:$S31)*'Input|Dx Tx split'!J13),""),"") ->  | K79: =IF(YEAR(K$4)>=FPFirstYear,IF(YEAR(K$4)<=FPLastYear,IF(ISBLANK(K75),"",(1+K45)*SUM($J31:$S31)*'Input|Dx Tx split'!K13),""),"") ->  | L79: =IF(YEAR(L$4)>=FPFirstYear,IF(YEAR(L$4)<=FPLastYear,IF(ISBLANK(L75),"",(1+L45)*SUM($J31:$S31)*'Input|Dx Tx split'!L13),""),"") ->  | M79: =IF(YEAR(M$4)>=FPFirstYear,IF(YEAR(M$4)<=FPLastYear,IF(ISBLANK(M75),"",(1+M45)*SUM($J31:$S31)*'Input|Dx Tx split'!M13),""),"") ->  | N79: =IF(YEAR(N$4)>=FPFirstYear,IF(YEAR(N$4)<=FPLastYear,IF(ISBLANK(N75),"",(1+N45)*SUM($J31:$S31)*'Input|Dx Tx split'!N13),""),"") ->  | O79: =IF(YEAR(O$4)>=FPFirstYear,IF(YEAR(O$4)<=FPLastYear,IF(ISBLANK(O75),"",(1+O45)*SUM($J31:$S31)*'Input|Dx Tx split'!O13),""),"") -> 7.977872705 | P79: =IF(YEAR(P$4)>=FPFirstYear,IF(YEAR(P$4)<=FPLastYear,IF(ISBLANK(P75),"",(1+P45)*SUM($J31:$S31)*'Input|Dx Tx split'!P13),""),"") -> 8.090344239 | Q79: =IF(YEAR(Q$4)>=FPFirstYear,IF(YEAR(Q$4)<=FPLastYear,IF(ISBLANK(Q75),"",(1+Q45)*SUM($J31:$S31)*'Input|Dx Tx split'!Q13),""),"") -> 8.225632785 | R79: =IF(YEAR(R$4)>=FPFirstYear,IF(YEAR(R$4)<=FPLastYear,IF(ISBLANK(R75),"",(1+R45)*SUM($J31:$S31)*'Input|Dx Tx split'!R13),""),"") -> 8.364616371 | S79: =IF(YEAR(S$4)>=FPFirstYear,IF(YEAR(S$4)<=FPLastYear,IF(ISBLANK(S75),"",(1+S45)*SUM($J31:$S31)*'Input|Dx Tx split'!S13),""),"") -> 8.50104528
C80: Total forecast opex, excluding debt raising costs | D80: Calculated | E80: $millions | F80: 2019-06-01 | J80: =IF(YEAR(J$4)>=FPFirstYear,IF(YEAR(J$4)<=FPLastYear,IF(ISBLANK(J75),"",(1+J45)*SUM(#REF!)+J61+J71),""),"") ->  | K80: =IF(YEAR(K$4)>=FPFirstYear,IF(YEAR(K$4)<=FPLastYear,IF(ISBLANK(K75),"",(1+K45)*SUM(#REF!)+K61+K71),""),"") ->  | L80: =IF(YEAR(L$4)>=FPFirstYear,IF(YEAR(L$4)<=FPLastYear,IF(ISBLANK(L75),"",(1+L45)*SUM(#REF!)+L61+L71),""),"") ->  | M80: =IF(YEAR(M$4)>=FPFirstYear,IF(YEAR(M$4)<=FPLastYear,IF(ISBLANK(M75),"",(1+M45)*SUM(#REF!)+M61+M71),""),"") ->  | N80: =IF(YEAR(N$4)>=FPFirstYear,IF(YEAR(N$4)<=FPLastYear,IF(ISBLANK(N75),"",(1+N45)*SUM(#REF!)+N61+N71),""),"") ->  | O80: =IF(YEAR(O$4)>=FPFirstYear,IF(YEAR(O$4)<=FPLastYear,IF(ISBLANK(O75),"",(1+O45)*SUM($J31:$S31)+O61+O71),""),"") -> 57.19675085 | P80: =IF(YEAR(P$4)>=FPFirstYear,IF(YEAR(P$4)<=FPLastYear,IF(ISBLANK(P75),"",(1+P45)*SUM($J31:$S31)+P61+P71),""),"") -> 57.96541245 | Q80: =IF(YEAR(Q$4)>=FPFirstYear,IF(YEAR(Q$4)<=FPLastYear,IF(ISBLANK(Q75),"",(1+Q45)*SUM($J31:$S31)+Q61+Q71),""),"") -> 58.88956933 | R80: =IF(YEAR(R$4)>=FPFirstYear,IF(YEAR(R$4)<=FPLastYear,IF(ISBLANK(R75),"",(1+R45)*SUM($J31:$S31)+R61+R71),""),"") -> 59.83791325 | S80: =IF(YEAR(S$4)>=FPFirstYear,IF(YEAR(S$4)<=FPLastYear,IF(ISBLANK(S75),"",(1+S45)*SUM($J31:$S31)+S61+S71),""),"") -> 60.76840512 | V80: =IF(SUM(O81:S82)=SUM(O80:S80),"Ok","Check") -> Check
C81: Distribution | D81: Calculated | E81: $millions | F81: 2019-06-01 | O81: =O78+O71 -> 49.21887815 | P81: =P78+P71 -> 49.87506821 | Q81: 50.66393655 | R81: 51.47329688 | S81: 52.26735984
C82: Transmission | D82: Calculated | E82: $millions | F82: 2019-06-01 | O82: =O79 -> 7.977872705 | P82: =P79 -> 8.090344239 | Q82: 8.225632785 | R82: 8.364616371 | S82: 8.50104528
C83: Total forecast opex, including debt raising costs | D83: Calculated | E83: $millions | F83: 2019-06-01 | J83: =IF(YEAR(J$4)>=FPFirstYear,IF(YEAR(J$4)<=FPLastYear,J80+'Input|Step changes'!J38,""),"") ->  | K83: =IF(YEAR(K$4)>=FPFirstYear,IF(YEAR(K$4)<=FPLastYear,K80+'Input|Step changes'!K38,""),"") ->  | L83: =IF(YEAR(L$4)>=FPFirstYear,IF(YEAR(L$4)<=FPLastYear,L80+'Input|Step changes'!L38,""),"") ->  | M83: =IF(YEAR(M$4)>=FPFirstYear,IF(YEAR(M$4)<=FPLastYear,M80+'Input|Step changes'!M38,""),"") ->  | N83: =IF(YEAR(N$4)>=FPFirstYear,IF(YEAR(N$4)<=FPLastYear,N80+'Input|Step changes'!N38,""),"") ->  | O83: =IF(YEAR(O$4)>=FPFirstYear,IF(YEAR(O$4)<=FPLastYear,O80+'Input|Step changes'!O38+'Input|Step changes'!O39,""),"") -> 57.69683018 | P83: =IF(YEAR(P$4)>=FPFirstYear,IF(YEAR(P$4)<=FPLastYear,P80+'Input|Step changes'!P38+'Input|Step changes'!P39,""),"") -> 58.45786996 | Q83: =IF(YEAR(Q$4)>=FPFirstYear,IF(YEAR(Q$4)<=FPLastYear,Q80+'Input|Step changes'!Q38+'Input|Step changes'!Q39,""),"") -> 59.37412352 | R83: =IF(YEAR(R$4)>=FPFirstYear,IF(YEAR(R$4)<=FPLastYear,R80+'Input|Step changes'!R38+'Input|Step changes'!R39,""),"") -> 60.31123682 | S83: =IF(YEAR(S$4)>=FPFirstYear,IF(YEAR(S$4)<=FPLastYear,S80+'Input|Step changes'!S38+'Input|Step changes'!S39,""),"") -> 61.23696351 | V83: =IF(SUM(O84:S85)=SUM(O83:S83),"Ok","Check") -> Ok
C84: Distribution | D84: Calculated | E84: $millions | F84: 2019-06-01 | O84: =O81+'Input|Step changes'!O38 -> 49.6287517 | P84: =P81+'Input|Step changes'!P38 -> 50.28024193 | Q84: =Q81+'Input|Step changes'!Q38 -> 51.06530515 | R84: =R81+'Input|Step changes'!R38 -> 51.86719771 | S84: =S81+'Input|Step changes'!S38 -> 52.65963646
C85: Transmission | D85: Calculated | E85: $millions | F85: 2019-06-01 | O85: =O82+'Input|Step changes'!O39 -> 8.068078478 | P85: =P82+'Input|Step changes'!P39 -> 8.177628024 | Q85: =Q82+'Input|Step changes'!Q39 -> 8.308818368 | R85: =R82+'Input|Step changes'!R39 -> 8.444039105 | S85: =S82+'Input|Step changes'!S39 -> 8.577327044
B87: End

Sheet Output|Models
B1: =Index!$B$1 -> AER opex model | J1: Back to Index | L1: Key: | M1: Input | N1: External Link | O1: Internal Link | R1: Worksheet check: | S1: n/a | U1: Overall Check: | V1: ='Check|List'!$S$1 -> Check
B2: =Index!$C$14 -> Output | Models
J3: Year ending
D4: Source | E4: Unit | F4: Basis | J4: =DATE(PPFirstYear,MONTH('Input|General'!$G$9),1) -> 2015-06-01 | K4: =DATE(PPFirstYear+1,MONTH('Input|General'!$G$9),1) -> 2016-06-01 | L4: =DATE(PPFirstYear+2,MONTH('Input|General'!$G$9),1) -> 2017-06-01 | M4: =DATE(PPFirstYear+3,MONTH('Input|General'!$G$9),1) -> 2018-06-01 | N4: =DATE(PPFirstYear+4,MONTH('Input|General'!$G$9),1) -> 2019-06-01 | O4: =DATE(PPFirstYear+5,MONTH('Input|General'!$G$9),1) -> 2020-06-01 | P4: =DATE(PPFirstYear+6,MONTH('Input|General'!$G$9),1) -> 2021-06-01 | Q4: =DATE(PPFirstYear+7,MONTH('Input|General'!$G$9),1) -> 2022-06-01 | R4: =DATE(PPFirstYear+8,MONTH('Input|General'!$G$9),1) -> 2023-06-01 | S4: =DATE(PPFirstYear+9,MONTH('Input|General'!$G$9),1) -> 2024-06-01
B8: Inputs for Post Tax Revenue Model | E8: $millions | F8: =DATE(PPLastYear,MONTH('Input|General'!$G$9),1) -> 2019-06-01 | J8: Note. The dollar base should be consistent with the post tax revenue model
C11: Distribution | D11: Source | E11: Unit | F11: Basis | J11: =IF(YEAR(J$4)>='Input|General'!$G$13,IF(YEAR(J$4)<='Input|General'!$G$14,J$4,""),"") ->  | K11: =IF(YEAR(K$4)>='Input|General'!$G$13,IF(YEAR(K$4)<='Input|General'!$G$14,K$4,""),"") ->  | L11: =IF(YEAR(L$4)>='Input|General'!$G$13,IF(YEAR(L$4)<='Input|General'!$G$14,L$4,""),"") ->  | M11: =IF(YEAR(M$4)>='Input|General'!$G$13,IF(YEAR(M$4)<='Input|General'!$G$14,M$4,""),"") ->  | N11: =IF(YEAR(N$4)>='Input|General'!$G$13,IF(YEAR(N$4)<='Input|General'!$G$14,N$4,""),"") ->  | O11: =IF(YEAR(O$4)>='Input|General'!$G$13,IF(YEAR(O$4)<='Input|General'!$G$14,O$4,""),"") -> 2020-06-01 | P11: =IF(YEAR(P$4)>='Input|General'!$G$13,IF(YEAR(P$4)<='Input|General'!$G$14,P$4,""),"") -> 2021-06-01 | Q11: =IF(YEAR(Q$4)>='Input|General'!$G$13,IF(YEAR(Q$4)<='Input|General'!$G$14,Q$4,""),"") -> 2022-06-01 | R11: =IF(YEAR(R$4)>='Input|General'!$G$13,IF(YEAR(R$4)<='Input|General'!$G$14,R$4,""),"") -> 2023-06-01 | S11: =IF(YEAR(S$4)>='Input|General'!$G$13,IF(YEAR(S$4)<='Input|General'!$G$14,S$4,""),"") -> 2024-06-01 | U11: Notes
C13: ='Calc|Opex forecast'!C77 -> Total forecast opex, excluding category specific forecasts | D13: Calc | Opex forecast | E13: =$E$8 -> $millions | F13: =$F$8 -> 2019-06-01 | J13: =IF(J11="",0,'Calc|Opex forecast'!J77*IF('Calc|Opex forecast'!$F$77="nominal",LOOKUP($F13,Nominal_to_Real,'Input|Rate of change'!P$25:P$30),INDEX('Input|Rate of change'!$C$14:$O$21,MATCH('Calc|Opex forecast'!$F$77,'Input|Rate of change'!$C$14:$C$21,0),MATCH('Output|Models'!$F13,'Input|Rate of change'!$C$14:$O$14,0)))*IF('Calc|Opex forecast'!$E$77="$millions",1000000,IF('Calc|Opex forecast'!$E$77="$000",1000,1))/IF($E13="$millions",1000000,IF($E13="$000",1000,1))) -> 0 | K13: =IF(K11="",0,'Calc|Opex forecast'!K77*IF('Calc|Opex forecast'!$F$77="nominal",LOOKUP($F13,Nominal_to_Real,'Input|Rate of change'!Q$25:Q$30),INDEX('Input|Rate of change'!$C$14:$O$21,MATCH('Calc|Opex forecast'!$F$77,'Input|Rate of change'!$C$14:$C$21,0),MATCH('Output|Models'!$F13,'Input|Rate of change'!$C$14:$O$14,0)))*IF('Calc|Opex forecast'!$E$77="$millions",1000000,IF('Calc|Opex forecast'!$E$77="$000",1000,1))/IF($E13="$millions",1000000,IF($E13="$000",1000,1))) -> 0 | L13: =IF(L11="",0,'Calc|Opex forecast'!L77*IF('Calc|Opex forecast'!$F$77="nominal",LOOKUP($F13,Nominal_to_Real,'Input|Rate of change'!R$25:R$30),INDEX('Input|Rate of change'!$C$14:$O$21,MATCH('Calc|Opex forecast'!$F$77,'Input|Rate of change'!$C$14:$C$21,0),MATCH('Output|Models'!$F13,'Input|Rate of change'!$C$14:$O$14,0)))*IF('Calc|Opex forecast'!$E$77="$millions",1000000,IF('Calc|Opex forecast'!$E$77="$000",1000,1))/IF($E13="$millions",1000000,IF($E13="$000",1000,1))) -> 0 | M13: =IF(M11="",0,'Calc|Opex forecast'!M77*IF('Calc|Opex forecast'!$F$77="nominal",LOOKUP($F13,Nominal_to_Real,'Input|Rate of change'!S$25:S$30),INDEX('Input|Rate of change'!$C$14:$O$21,MATCH('Calc|Opex forecast'!$F$77,'Input|Rate of change'!$C$14:$C$21,0),MATCH('Output|Models'!$F13,'Input|Rate of change'!$C$14:$O$14,0)))*IF('Calc|Opex forecast'!$E$77="$millions",1000000,IF('Calc|Opex forecast'!$E$77="$000",1000,1))/IF($E13="$millions",1000000,IF($E13="$000",1000,1))) -> 0 | N13: =IF(N11="",0,'Calc|Opex forecast'!N77*IF('Calc|Opex forecast'!$F$77="nominal",LOOKUP($F13,Nominal_to_Real,'Input|Rate of change'!T$25:T$30),INDEX('Input|Rate of change'!$C$14:$O$21,MATCH('Calc|Opex forecast'!$F$77,'Input|Rate of change'!$C$14:$C$21,0),MATCH('Output|Models'!$F13,'Input|Rate of change'!$C$14:$O$14,0)))*IF('Calc|Opex forecast'!$E$77="$millions",1000000,IF('Calc|Opex forecast'!$E$77="$000",1000,1))/IF($E13="$millions",1000000,IF($E13="$000",1000,1))) -> 0 | O13: =IF(O11="",0,'Calc|Opex forecast'!O78*IF('Calc|Opex forecast'!$F$78="nominal",LOOKUP($F13,Nominal_to_Real,'Input|Rate of change'!U$25:U$30),INDEX('Input|Rate of change'!$C$14:$O$21,MATCH('Calc|Opex forecast'!$F$78,'Input|Rate of change'!$C$14:$C$21,0),MATCH('Output|Models'!$F13,'Input|Rate of change'!$C$14:$O$14,0)))*IF('Calc|Opex forecast'!$E$78="$millions",1000000,IF('Calc|Opex forecast'!$E$78="$000",1000,1))/IF($E13="$millions",1000000,IF($E13="$000",1000,1))) -> 49.21887815 | P13: =IF(P11="",0,'Calc|Opex forecast'!P78*IF('Calc|Opex forecast'!$F$78="nominal",LOOKUP($F13,Nominal_to_Real,'Input|Rate of change'!V$25:V$30),INDEX('Input|Rate of change'!$C$14:$O$21,MATCH('Calc|Opex forecast'!$F$78,'Input|Rate of change'!$C$14:$C$21,0),MATCH('Output|Models'!$F13,'Input|Rate of change'!$C$14:$O$14,0)))*IF('Calc|Opex forecast'!$E$78="$millions",1000000,IF('Calc|Opex forecast'!$E$78="$000",1000,1))/IF($E13="$millions",1000000,IF($E13="$000",1000,1))) -> 49.87506821 | Q13: =IF(Q11="",0,'Calc|Opex forecast'!Q78*IF('Calc|Opex forecast'!$F$78="nominal",LOOKUP($F13,Nominal_to_Real,'Input|Rate of change'!W$25:W$30),INDEX('Input|Rate of change'!$C$14:$O$21,MATCH('Calc|Opex forecast'!$F$78,'Input|Rate of change'!$C$14:$C$21,0),MATCH('Output|Models'!$F13,'Input|Rate of change'!$C$14:$O$14,0)))*IF('Calc|Opex forecast'!$E$78="$millions",1000000,IF('Calc|Opex forecast'!$E$78="$000",1000,1))/IF($E13="$millions",1000000,IF($E13="$000",1000,1))) -> 50.66393655 | R13: =IF(R11="",0,'Calc|Opex forecast'!R78*IF('Calc|Opex forecast'!$F$78="nominal",LOOKUP($F13,Nominal_to_Real,'Input|Rate of change'!X$25:X$30),INDEX('Input|Rate of change'!$C$14:$O$21,MATCH('Calc|Opex forecast'!$F$78,'Input|Rate of change'!$C$14:$C$21,0),MATCH('Output|Models'!$F13,'Input|Rate of change'!$C$14:$O$14,0)))*IF('Calc|Opex forecast'!$E$78="$millions",1000000,IF('Calc|Opex forecast'!$E$78="$000",1000,1))/IF($E13="$millions",1000000,IF($E13="$000",1000,1))) -> 51.47329688 | S13: =IF(S11="",0,'Calc|Opex forecast'!S78*IF('Calc|Opex forecast'!$F$78="nominal",LOOKUP($F13,Nominal_to_Real,'Input|Rate of change'!Y$25:Y$30),INDEX('Input|Rate of change'!$C$14:$O$21,MATCH('Calc|Opex forecast'!$F$78,'Input|Rate of change'!$C$14:$C$21,0),MATCH('Output|Models'!$F13,'Input|Rate of change'!$C$14:$O$14,0)))*IF('Calc|Opex forecast'!$E$78="$millions",1000000,IF('Calc|Opex forecast'!$E$78="$000",1000,1))/IF($E13="$millions",1000000,IF($E13="$000",1000,1))) -> 52.26735984
C14: ='Input|Step changes'!C28 -> 0 | D14: Calc | Opex forecast | E14: =$E$8 -> $millions | F14: =$F$8 -> 2019-06-01 | J14: =IF(J$11="",0,'Calc|Opex forecast'!J67*IF('Calc|Opex forecast'!$F67="nominal",LOOKUP($F14,Nominal_to_Real,'Input|Rate of change'!P$25:P$30),INDEX('Input|Rate of change'!$C$14:$O$21,MATCH('Calc|Opex forecast'!$F67,'Input|Rate of change'!$C$14:$C$21,0),MATCH('Output|Models'!$F14,'Input|Rate of change'!$C$14:$O$14,0)))*IF('Calc|Opex forecast'!$E67="$millions",1000000,IF('Calc|Opex forecast'!$E67="$000",1000,1))/IF($E14="$millions",1000000,IF($E14="$000",1000,1))) -> 0 | K14: =IF(K$11="",0,'Calc|Opex forecast'!K67*IF('Calc|Opex forecast'!$F67="nominal",LOOKUP($F14,Nominal_to_Real,'Input|Rate of change'!Q$25:Q$30),INDEX('Input|Rate of change'!$C$14:$O$21,MATCH('Calc|Opex forecast'!$F67,'Input|Rate of change'!$C$14:$C$21,0),MATCH('Output|Models'!$F14,'Input|Rate of change'!$C$14:$O$14,0)))*IF('Calc|Opex forecast'!$E67="$millions",1000000,IF('Calc|Opex forecast'!$E67="$000",1000,1))/IF($E14="$millions",1000000,IF($E14="$000",1000,1))) -> 0 | L14: =IF(L$11="",0,'Calc|Opex forecast'!L67*IF('Calc|Opex forecast'!$F67="nominal",LOOKUP($F14,Nominal_to_Real,'Input|Rate of change'!R$25:R$30),INDEX('Input|Rate of change'!$C$14:$O$21,MATCH('Calc|Opex forecast'!$F67,'Input|Rate of change'!$C$14:$C$21,0),MATCH('Output|Models'!$F14,'Input|Rate of change'!$C$14:$O$14,0)))*IF('Calc|Opex forecast'!$E67="$millions",1000000,IF('Calc|Opex forecast'!$E67="$000",1000,1))/IF($E14="$millions",1000000,IF($E14="$000",1000,1))) -> 0 | M14: =IF(M$11="",0,'Calc|Opex forecast'!M67*IF('Calc|Opex forecast'!$F67="nominal",LOOKUP($F14,Nominal_to_Real,'Input|Rate of change'!S$25:S$30),INDEX('Input|Rate of change'!$C$14:$O$21,MATCH('Calc|Opex forecast'!$F67,'Input|Rate of change'!$C$14:$C$21,0),MATCH('Output|Models'!$F14,'Input|Rate of change'!$C$14:$O$14,0)))*IF('Calc|Opex forecast'!$E67="$millions",1000000,IF('Calc|Opex forecast'!$E67="$000",1000,1))/IF($E14="$millions",1000000,IF($E14="$000",1000,1))) -> 0 | N14: =IF(N$11="",0,'Calc|Opex forecast'!N67*IF('Calc|Opex forecast'!$F67="nominal",LOOKUP($F14,Nominal_to_Real,'Input|Rate of change'!T$25:T$30),INDEX('Input|Rate of change'!$C$14:$O$21,MATCH('Calc|Opex forecast'!$F67,'Input|Rate of change'!$C$14:$C$21,0),MATCH('Output|Models'!$F14,'Input|Rate of change'!$C$14:$O$14,0)))*IF('Calc|Opex forecast'!$E67="$millions",1000000,IF('Calc|Opex forecast'!$E67="$000",1000,1))/IF($E14="$millions",1000000,IF($E14="$000",1000,1))) -> 0 | O14: =IF(O$11="",0,'Calc|Opex forecast'!O67*IF('Calc|Opex forecast'!$F67="nominal",LOOKUP($F14,Nominal_to_Real,'Input|Rate of change'!U$25:U$30),INDEX('Input|Rate of change'!$C$14:$O$21,MATCH('Calc|Opex forecast'!$F67,'Input|Rate of change'!$C$14:$C$21,0),MATCH('Output|Models'!$F14,'Input|Rate of change'!$C$14:$O$14,0)))*IF('Calc|Opex forecast'!$E67="$millions",1000000,IF('Calc|Opex forecast'!$E67="$000",1000,1))/IF($E14="$millions",1000000,IF($E14="$000",1000,1))) -> 0 | P14: =IF(P$11="",0,'Calc|Opex forecast'!P67*IF('Calc|Opex forecast'!$F67="nominal",LOOKUP($F14,Nominal_to_Real,'Input|Rate of change'!V$25:V$30),INDEX('Input|Rate of change'!$C$14:$O$21,MATCH('Calc|Opex forecast'!$F67,'Input|Rate of change'!$C$14:$C$21,0),MATCH('Output|Models'!$F14,'Input|Rate of change'!$C$14:$O$14,0)))*IF('Calc|Opex forecast'!$E67="$millions",1000000,IF('Calc|Opex forecast'!$E67="$000",1000,1))/IF($E14="$millions",1000000,IF($E14="$000",1000,1))) -> 0 | Q14: =IF(Q$11="",0,'Calc|Opex forecast'!Q67*IF('Calc|Opex forecast'!$F67="nominal",LOOKUP($F14,Nominal_to_Real,'Input|Rate of change'!W$25:W$30),INDEX('Input|Rate of change'!$C$14:$O$21,MATCH('Calc|Opex forecast'!$F67,'Input|Rate of change'!$C$14:$C$21,0),MATCH('Output|Models'!$F14,'Input|Rate of change'!$C$14:$O$14,0)))*IF('Calc|Opex forecast'!$E67="$millions",1000000,IF('Calc|Opex forecast'!$E67="$000",1000,1))/IF($E14="$millions",1000000,IF($E14="$000",1000,1))) -> 0 | R14: =IF(R$11="",0,'Calc|Opex forecast'!R67*IF('Calc|Opex forecast'!$F67="nominal",LOOKUP($F14,Nominal_to_Real,'Input|Rate of change'!X$25:X$30),INDEX('Input|Rate of change'!$C$14:$O$21,MATCH('Calc|Opex forecast'!$F67,'Input|Rate of change'!$C$14:$C$21,0),MATCH('Output|Models'!$F14,'Input|Rate of change'!$C$14:$O$14,0)))*IF('Calc|Opex forecast'!$E67="$millions",1000000,IF('Calc|Opex forecast'!$E67="$000",1000,1))/IF($E14="$millions",1000000,IF($E14="$000",1000,1))) -> 0 | S14: =IF(S$11="",0,'Calc|Opex forecast'!S67*IF('Calc|Opex forecast'!$F67="nominal",LOOKUP($F14,Nominal_to_Real,'Input|Rate of change'!Y$25:Y$30),INDEX('Input|Rate of change'!$C$14:$O$21,MATCH('Calc|Opex forecast'!$F67,'Input|Rate of change'!$C$14:$C$21,0),MATCH('Output|Models'!$F14,'Input|Rate of change'!$C$14:$O$14,0)))*IF('Calc|Opex forecast'!$E67="$millions",1000000,IF('Calc|Opex forecast'!$E67="$000",1000,1))/IF($E14="$millions",1000000,IF($E14="$000",1000,1))) -> 0
C15: ='Input|Step changes'!C29 -> 0 | D15: Calc | Opex forecast | E15: $millions | F15: 2019-06-01 | J15: =IF(J$11="",0,'Calc|Opex forecast'!J68*IF('Calc|Opex forecast'!$F68="nominal",LOOKUP($F15,Nominal_to_Real,'Input|Rate of change'!P$25:P$30),INDEX('Input|Rate of change'!$C$14:$O$21,MATCH('Calc|Opex forecast'!$F68,'Input|Rate of change'!$C$14:$C$21,0),MATCH('Output|Models'!$F15,'Input|Rate of change'!$C$14:$O$14,0)))*IF('Calc|Opex forecast'!$E68="$millions",1000000,IF('Calc|Opex forecast'!$E68="$000",1000,1))/IF($E15="$millions",1000000,IF($E15="$000",1000,1))) -> 0 | K15: =IF(K$11="",0,'Calc|Opex forecast'!K68*IF('Calc|Opex forecast'!$F68="nominal",LOOKUP($F15,Nominal_to_Real,'Input|Rate of change'!Q$25:Q$30),INDEX('Input|Rate of change'!$C$14:$O$21,MATCH('Calc|Opex forecast'!$F68,'Input|Rate of change'!$C$14:$C$21,0),MATCH('Output|Models'!$F15,'Input|Rate of change'!$C$14:$O$14,0)))*IF('Calc|Opex forecast'!$E68="$millions",1000000,IF('Calc|Opex forecast'!$E68="$000",1000,1))/IF($E15="$millions",1000000,IF($E15="$000",1000,1))) -> 0 | L15: =IF(L$11="",0,'Calc|Opex forecast'!L68*IF('Calc|Opex forecast'!$F68="nominal",LOOKUP($F15,Nominal_to_Real,'Input|Rate of change'!R$25:R$30),INDEX('Input|Rate of change'!$C$14:$O$21,MATCH('Calc|Opex forecast'!$F68,'Input|Rate of change'!$C$14:$C$21,0),MATCH('Output|Models'!$F15,'Input|Rate of change'!$C$14:$O$14,0)))*IF('Calc|Opex forecast'!$E68="$millions",1000000,IF('Calc|Opex forecast'!$E68="$000",1000,1))/IF($E15="$millions",1000000,IF($E15="$000",1000,1))) -> 0 | M15: =IF(M$11="",0,'Calc|Opex forecast'!M68*IF('Calc|Opex forecast'!$F68="nominal",LOOKUP($F15,Nominal_to_Real,'Input|Rate of change'!S$25:S$30),INDEX('Input|Rate of change'!$C$14:$O$21,MATCH('Calc|Opex forecast'!$F68,'Input|Rate of change'!$C$14:$C$21,0),MATCH('Output|Models'!$F15,'Input|Rate of change'!$C$14:$O$14,0)))*IF('Calc|Opex forecast'!$E68="$millions",1000000,IF('Calc|Opex forecast'!$E68="$000",1000,1))/IF($E15="$millions",1000000,IF($E15="$000",1000,1))) -> 0 | N15: =IF(N$11="",0,'Calc|Opex forecast'!N68*IF('Calc|Opex forecast'!$F68="nominal",LOOKUP($F15,Nominal_to_Real,'Input|Rate of change'!T$25:T$30),INDEX('Input|Rate of change'!$C$14:$O$21,MATCH('Calc|Opex forecast'!$F68,'Input|Rate of change'!$C$14:$C$21,0),MATCH('Output|Models'!$F15,'Input|Rate of change'!$C$14:$O$14,0)))*IF('Calc|Opex forecast'!$E68="$millions",1000000,IF('Calc|Opex forecast'!$E68="$000",1000,1))/IF($E15="$millions",1000000,IF($E15="$000",1000,1))) -> 0 | O15: =IF(O$11="",0,'Calc|Opex forecast'!O68*IF('Calc|Opex forecast'!$F68="nominal",LOOKUP($F15,Nominal_to_Real,'Input|Rate of change'!U$25:U$30),INDEX('Input|Rate of change'!$C$14:$O$21,MATCH('Calc|Opex forecast'!$F68,'Input|Rate of change'!$C$14:$C$21,0),MATCH('Output|Models'!$F15,'Input|Rate of change'!$C$14:$O$14,0)))*IF('Calc|Opex forecast'!$E68="$millions",1000000,IF('Calc|Opex forecast'!$E68="$000",1000,1))/IF($E15="$millions",1000000,IF($E15="$000",1000,1))) -> 0 | P15: =IF(P$11="",0,'Calc|Opex forecast'!P68*IF('Calc|Opex forecast'!$F68="nominal",LOOKUP($F15,Nominal_to_Real,'Input|Rate of change'!V$25:V$30),INDEX('Input|Rate of change'!$C$14:$O$21,MATCH('Calc|Opex forecast'!$F68,'Input|Rate of change'!$C$14:$C$21,0),MATCH('Output|Models'!$F15,'Input|Rate of change'!$C$14:$O$14,0)))*IF('Calc|Opex forecast'!$E68="$millions",1000000,IF('Calc|Opex forecast'!$E68="$000",1000,1))/IF($E15="$millions",1000000,IF($E15="$000",1000,1))) -> 0 | Q15: =IF(Q$11="",0,'Calc|Opex forecast'!Q68*IF('Calc|Opex forecast'!$F68="nominal",LOOKUP($F15,Nominal_to_Real,'Input|Rate of change'!W$25:W$30),INDEX('Input|Rate of change'!$C$14:$O$21,MATCH('Calc|Opex forecast'!$F68,'Input|Rate of change'!$C$14:$C$21,0),MATCH('Output|Models'!$F15,'Input|Rate of change'!$C$14:$O$14,0)))*IF('Calc|Opex forecast'!$E68="$millions",1000000,IF('Calc|Opex forecast'!$E68="$000",1000,1))/IF($E15="$millions",1000000,IF($E15="$000",1000,1))) -> 0 | R15: =IF(R$11="",0,'Calc|Opex forecast'!R68*IF('Calc|Opex forecast'!$F68="nominal",LOOKUP($F15,Nominal_to_Real,'Input|Rate of change'!X$25:X$30),INDEX('Input|Rate of change'!$C$14:$O$21,MATCH('Calc|Opex forecast'!$F68,'Input|Rate of change'!$C$14:$C$21,0),MATCH('Output|Models'!$F15,'Input|Rate of change'!$C$14:$O$14,0)))*IF('Calc|Opex forecast'!$E68="$millions",1000000,IF('Calc|Opex forecast'!$E68="$000",1000,1))/IF($E15="$millions",1000000,IF($E15="$000",1000,1))) -> 0 | S15: =IF(S$11="",0,'Calc|Opex forecast'!S68*IF('Calc|Opex forecast'!$F68="nominal",LOOKUP($F15,Nominal_to_Real,'Input|Rate of change'!Y$25:Y$30),INDEX('Input|Rate of change'!$C$14:$O$21,MATCH('Calc|Opex forecast'!$F68,'Input|Rate of change'!$C$14:$C$21,0),MATCH('Output|Models'!$F15,'Input|Rate of change'!$C$14:$O$14,0)))*IF('Calc|Opex forecast'!$E68="$millions",1000000,IF('Calc|Opex forecast'!$E68="$000",1000,1))/IF($E15="$millions",1000000,IF($E15="$000",1000,1))) -> 0
C16: ='Input|Step changes'!C30 -> 0 | D16: Calc | Opex forecast | E16: $millions | F16: 2019-06-01 | J16: =IF(J$11="",0,'Calc|Opex forecast'!J69*IF('Calc|Opex forecast'!$F69="nominal",LOOKUP($F16,Nominal_to_Real,'Input|Rate of change'!P$25:P$30),INDEX('Input|Rate of change'!$C$14:$O$21,MATCH('Calc|Opex forecast'!$F69,'Input|Rate of change'!$C$14:$C$21,0),MATCH('Output|Models'!$F16,'Input|Rate of change'!$C$14:$O$14,0)))*IF('Calc|Opex forecast'!$E69="$millions",1000000,IF('Calc|Opex forecast'!$E69="$000",1000,1))/IF($E16="$millions",1000000,IF($E16="$000",1000,1))) -> 0 | K16: =IF(K$11="",0,'Calc|Opex forecast'!K69*IF('Calc|Opex forecast'!$F69="nominal",LOOKUP($F16,Nominal_to_Real,'Input|Rate of change'!Q$25:Q$30),INDEX('Input|Rate of change'!$C$14:$O$21,MATCH('Calc|Opex forecast'!$F69,'Input|Rate of change'!$C$14:$C$21,0),MATCH('Output|Models'!$F16,'Input|Rate of change'!$C$14:$O$14,0)))*IF('Calc|Opex forecast'!$E69="$millions",1000000,IF('Calc|Opex forecast'!$E69="$000",1000,1))/IF($E16="$millions",1000000,IF($E16="$000",1000,1))) -> 0 | L16: =IF(L$11="",0,'Calc|Opex forecast'!L69*IF('Calc|Opex forecast'!$F69="nominal",LOOKUP($F16,Nominal_to_Real,'Input|Rate of change'!R$25:R$30),INDEX('Input|Rate of change'!$C$14:$O$21,MATCH('Calc|Opex forecast'!$F69,'Input|Rate of change'!$C$14:$C$21,0),MATCH('Output|Models'!$F16,'Input|Rate of change'!$C$14:$O$14,0)))*IF('Calc|Opex forecast'!$E69="$millions",1000000,IF('Calc|Opex forecast'!$E69="$000",1000,1))/IF($E16="$millions",1000000,IF($E16="$000",1000,1))) -> 0 | M16: =IF(M$11="",0,'Calc|Opex forecast'!M69*IF('Calc|Opex forecast'!$F69="nominal",LOOKUP($F16,Nominal_to_Real,'Input|Rate of change'!S$25:S$30),INDEX('Input|Rate of change'!$C$14:$O$21,MATCH('Calc|Opex forecast'!$F69,'Input|Rate of change'!$C$14:$C$21,0),MATCH('Output|Models'!$F16,'Input|Rate of change'!$C$14:$O$14,0)))*IF('Calc|Opex forecast'!$E69="$millions",1000000,IF('Calc|Opex forecast'!$E69="$000",1000,1))/IF($E16="$millions",1000000,IF($E16="$000",1000,1))) -> 0 | N16: =IF(N$11="",0,'Calc|Opex forecast'!N69*IF('Calc|Opex forecast'!$F69="nominal",LOOKUP($F16,Nominal_to_Real,'Input|Rate of change'!T$25:T$30),INDEX('Input|Rate of change'!$C$14:$O$21,MATCH('Calc|Opex forecast'!$F69,'Input|Rate of change'!$C$14:$C$21,0),MATCH('Output|Models'!$F16,'Input|Rate of change'!$C$14:$O$14,0)))*IF('Calc|Opex forecast'!$E69="$millions",1000000,IF('Calc|Opex forecast'!$E69="$000",1000,1))/IF($E16="$millions",1000000,IF($E16="$000",1000,1))) -> 0 | O16: =IF(O$11="",0,'Calc|Opex forecast'!O69*IF('Calc|Opex forecast'!$F69="nominal",LOOKUP($F16,Nominal_to_Real,'Input|Rate of change'!U$25:U$30),INDEX('Input|Rate of change'!$C$14:$O$21,MATCH('Calc|Opex forecast'!$F69,'Input|Rate of change'!$C$14:$C$21,0),MATCH('Output|Models'!$F16,'Input|Rate of change'!$C$14:$O$14,0)))*IF('Calc|Opex forecast'!$E69="$millions",1000000,IF('Calc|Opex forecast'!$E69="$000",1000,1))/IF($E16="$millions",1000000,IF($E16="$000",1000,1))) -> 0 | P16: =IF(P$11="",0,'Calc|Opex forecast'!P69*IF('Calc|Opex forecast'!$F69="nominal",LOOKUP($F16,Nominal_to_Real,'Input|Rate of change'!V$25:V$30),INDEX('Input|Rate of change'!$C$14:$O$21,MATCH('Calc|Opex forecast'!$F69,'Input|Rate of change'!$C$14:$C$21,0),MATCH('Output|Models'!$F16,'Input|Rate of change'!$C$14:$O$14,0)))*IF('Calc|Opex forecast'!$E69="$millions",1000000,IF('Calc|Opex forecast'!$E69="$000",1000,1))/IF($E16="$millions",1000000,IF($E16="$000",1000,1))) -> 0 | Q16: =IF(Q$11="",0,'Calc|Opex forecast'!Q69*IF('Calc|Opex forecast'!$F69="nominal",LOOKUP($F16,Nominal_to_Real,'Input|Rate of change'!W$25:W$30),INDEX('Input|Rate of change'!$C$14:$O$21,MATCH('Calc|Opex forecast'!$F69,'Input|Rate of change'!$C$14:$C$21,0),MATCH('Output|Models'!$F16,'Input|Rate of change'!$C$14:$O$14,0)))*IF('Calc|Opex forecast'!$E69="$millions",1000000,IF('Calc|Opex forecast'!$E69="$000",1000,1))/IF($E16="$millions",1000000,IF($E16="$000",1000,1))) -> 0 | R16: =IF(R$11="",0,'Calc|Opex forecast'!R69*IF('Calc|Opex forecast'!$F69="nominal",LOOKUP($F16,Nominal_to_Real,'Input|Rate of change'!X$25:X$30),INDEX('Input|Rate of change'!$C$14:$O$21,MATCH('Calc|Opex forecast'!$F69,'Input|Rate of change'!$C$14:$C$21,0),MATCH('Output|Models'!$F16,'Input|Rate of change'!$C$14:$O$14,0)))*IF('Calc|Opex forecast'!$E69="$millions",1000000,IF('Calc|Opex forecast'!$E69="$000",1000,1))/IF($E16="$millions",1000000,IF($E16="$000",1000,1))) -> 0 | S16: =IF(S$11="",0,'Calc|Opex forecast'!S69*IF('Calc|Opex forecast'!$F69="nominal",LOOKUP($F16,Nominal_to_Real,'Input|Rate of change'!Y$25:Y$30),INDEX('Input|Rate of change'!$C$14:$O$21,MATCH('Calc|Opex forecast'!$F69,'Input|Rate of change'!$C$14:$C$21,0),MATCH('Output|Models'!$F16,'Input|Rate of change'!$C$14:$O$14,0)))*IF('Calc|Opex forecast'!$E69="$millions",1000000,IF('Calc|Opex forecast'!$E69="$000",1000,1))/IF($E16="$millions",1000000,IF($E16="$000",1000,1))) -> 0
C18: Transmission
C20: ='Calc|Opex forecast'!C80 -> Total forecast opex, excluding debt raising costs | D20: Calc | Opex forecast | E20: =$E$8 -> $millions | F20: =$F$8 -> 2019-06-01 | O20: =IF(O$11="",0,'Calc|Opex forecast'!O82*IF('Calc|Opex forecast'!$F82="nominal",LOOKUP($F20,Nominal_to_Real,'Input|Rate of change'!U$25:U$30),INDEX('Input|Rate of change'!$C$14:$O$21,MATCH('Calc|Opex forecast'!$F82,'Input|Rate of change'!$C$14:$C$21,0),MATCH('Output|Models'!$F20,'Input|Rate of change'!$C$14:$O$14,0)))*IF('Calc|Opex forecast'!$E82="$millions",1000000,IF('Calc|Opex forecast'!$E82="$000",1000,1))/IF($E20="$millions",1000000,IF($E20="$000",1000,1))) -> 7.977872705 | P20: =IF(P$11="",0,'Calc|Opex forecast'!P82*IF('Calc|Opex forecast'!$F82="nominal",LOOKUP($F20,Nominal_to_Real,'Input|Rate of change'!V$25:V$30),INDEX('Input|Rate of change'!$C$14:$O$21,MATCH('Calc|Opex forecast'!$F82,'Input|Rate of change'!$C$14:$C$21,0),MATCH('Output|Models'!$F20,'Input|Rate of change'!$C$14:$O$14,0)))*IF('Calc|Opex forecast'!$E82="$millions",1000000,IF('Calc|Opex forecast'!$E82="$000",1000,1))/IF($E20="$millions",1000000,IF($E20="$000",1000,1))) -> 8.090344239 | Q20: =IF(Q$11="",0,'Calc|Opex forecast'!Q82*IF('Calc|Opex forecast'!$F82="nominal",LOOKUP($F20,Nominal_to_Real,'Input|Rate of change'!W$25:W$30),INDEX('Input|Rate of change'!$C$14:$O$21,MATCH('Calc|Opex forecast'!$F82,'Input|Rate of change'!$C$14:$C$21,0),MATCH('Output|Models'!$F20,'Input|Rate of change'!$C$14:$O$14,0)))*IF('Calc|Opex forecast'!$E82="$millions",1000000,IF('Calc|Opex forecast'!$E82="$000",1000,1))/IF($E20="$millions",1000000,IF($E20="$000",1000,1))) -> 8.225632785 | R20: =IF(R$11="",0,'Calc|Opex forecast'!R82*IF('Calc|Opex forecast'!$F82="nominal",LOOKUP($F20,Nominal_to_Real,'Input|Rate of change'!X$25:X$30),INDEX('Input|Rate of change'!$C$14:$O$21,MATCH('Calc|Opex forecast'!$F82,'Input|Rate of change'!$C$14:$C$21,0),MATCH('Output|Models'!$F20,'Input|Rate of change'!$C$14:$O$14,0)))*IF('Calc|Opex forecast'!$E82="$millions",1000000,IF('Calc|Opex forecast'!$E82="$000",1000,1))/IF($E20="$millions",1000000,IF($E20="$000",1000,1))) -> 8.364616371 | S20: =IF(S$11="",0,'Calc|Opex forecast'!S82*IF('Calc|Opex forecast'!$F82="nominal",LOOKUP($F20,Nominal_to_Real,'Input|Rate of change'!Y$25:Y$30),INDEX('Input|Rate of change'!$C$14:$O$21,MATCH('Calc|Opex forecast'!$F82,'Input|Rate of change'!$C$14:$C$21,0),MATCH('Output|Models'!$F20,'Input|Rate of change'!$C$14:$O$14,0)))*IF('Calc|Opex forecast'!$E82="$millions",1000000,IF('Calc|Opex forecast'!$E82="$000",1000,1))/IF($E20="$millions",1000000,IF($E20="$000",1000,1))) -> 8.50104528
B22: End

Sheet Output|Decision tables
B1: =Index!$B$1 -> AER opex model | J1: Back to Index | L1: Key: | M1: Input | N1: External Link | O1: Internal Link | R1: Worksheet check: | S1: n/a | U1: Overall Check: | V1: ='Check|List'!$S$1 -> Check
B2: =Index!$C$15 -> Output | Decision tables
B7: Table X.1 | C7: ="Our draft decision on total opex ($million "&IF(MONTH('Calc|Opex forecast'!$F$80)=12,YEAR('Calc|Opex forecast'!$F$80),YEAR('Calc|Opex forecast'!$F$80)-1&"-"&RIGHT(YEAR('Calc|Opex forecast'!$F$80),2))&")" -> Our draft decision on total opex ($million 2018-19)
C9: =TRANSPOSE('Lookup|Tables'!G70:G74) -> 2019–20 | D9: 2020–21 | E9: 2021–22 | F9: 2022–23 | G9: 2023–24 | H9: Total | J9: excludes debt raising costs
B10: Year ending | C10: =TRANSPOSE('Lookup|Tables'!$H$70:$H$74) -> 2020-06-01 | D10: 2021-06-01 | E10: 2022-06-01 | F10: 2023-06-01 | G10: 2024-06-01
B11: =NSP&"'s proposal" -> Evoenergy's proposal | C11: ='[11]PTRM input'!G177+'[12]PTRM input'!G177 -> 59.26055937 | D11: ='[11]PTRM input'!H177+'[12]PTRM input'!H177 -> 60.46712161 | E11: ='[11]PTRM input'!I177+'[12]PTRM input'!I177 -> 61.80602977 | F11: ='[11]PTRM input'!J177+'[12]PTRM input'!J177 -> 63.0802386 | G11: ='[11]PTRM input'!K177+'[12]PTRM input'!K177 -> 64.23896318 | H11: =SUM(C11:G11) -> 308.8529125
B12: ="AER "&'Input|General'!$G$8&" decision" -> AER draft decision | C12: =LOOKUP(C10,'Calc|Opex forecast'!J75:S75,'Calc|Opex forecast'!J80:S80) -> 57.19675085 | D12: =LOOKUP(D10,'Calc|Opex forecast'!K75:T75,'Calc|Opex forecast'!K80:T80) -> 57.96541245 | E12: =LOOKUP(E10,'Calc|Opex forecast'!L75:U75,'Calc|Opex forecast'!L80:U80) -> 58.88956933 | F12: =LOOKUP(F10,'Calc|Opex forecast'!M75:V75,'Calc|Opex forecast'!M80:V80) -> 59.83791325 | G12: =LOOKUP(G10,'Calc|Opex forecast'!N75:W75,'Calc|Opex forecast'!N80:W80) -> 60.76840512 | H12: =SUM(C12:G12) -> 294.658051
B13: Difference | C13: =IF(C9="","",C12-C11) -> -2.063808518 | D13: -2.501709157 | E13: -2.916460435 | F13: -3.24232535 | G13: =IF(G9="","",G12-G11) -> -3.47055806 | H13: -14.19486152 | J13: =H13/H11 -> -0.04595994062
C15: =TRANSPOSE('Lookup|Tables'!G70:G740) -> 2019–20 | D15: 2020–21 | E15: 2021–22 | F15: 2022–23 | G15: 2023–24 | H15: Total | J15: includes debt raising costs
B16: Year ending | C16: =TRANSPOSE('Lookup|Tables'!$H$70:$H$74) -> 2020-06-01 | D16: 2021-06-01 | E16: 2022-06-01 | F16: 2023-06-01 | G16: 2024-06-01
B17: =NSP&"'s proposal" -> Evoenergy's proposal | C17: ='[12]PTRM input'!G187+'[11]PTRM input'!G187 -> 59.76508698 | D17: ='[12]PTRM input'!H187+'[11]PTRM input'!H187 -> 60.97151119 | E17: ='[12]PTRM input'!I187+'[11]PTRM input'!I187 -> 62.31042695 | F17: ='[12]PTRM input'!J187+'[11]PTRM input'!J187 -> 63.58898451 | G17: ='[12]PTRM input'!K187+'[11]PTRM input'!K187 -> 64.74462789 | H17: =SUM(C17:G17) -> 311.3806375
B18: ="AER "&'Input|General'!$G$8&" decision" -> AER draft decision | C18: =LOOKUP(C16,'Calc|Opex forecast'!J75:S75,'Calc|Opex forecast'!J83:S83) -> 57.69683018 | D18: =LOOKUP(D16,'Calc|Opex forecast'!K75:T75,'Calc|Opex forecast'!K83:T83) -> 58.45786996 | E18: =LOOKUP(E16,'Calc|Opex forecast'!L75:U75,'Calc|Opex forecast'!L83:U83) -> 59.37412352 | F18: =LOOKUP(F16,'Calc|Opex forecast'!M75:V75,'Calc|Opex forecast'!M83:V83) -> 60.31123682 | G18: =LOOKUP(G16,'Calc|Opex forecast'!N75:W75,'Calc|Opex forecast'!N83:W83) -> 61.23696351 | H18: =SUM(C18:G18) -> 297.077024
B19: Difference | C19: =IF(C15="","",C18-C17) -> -2.068256804 | D19: =IF(D15="","",D18-D17) -> -2.513641233 | E19: =IF(E15="","",E18-E17) -> -2.936303434 | F19: =IF(F15="","",F18-F17) -> -3.277747691 | G19: =IF(G15="","",G18-G17) -> -3.507664379 | H19: -14.30361354 | J19: =H19/H17 -> -0.04593610462
B21: Table X.6 | C21: Driver comparison
C23: ='Input|General'!G7 -> Evoenergy | D23: ="Our "&'Input|General'!$G$8&" decision" -> Our draft decision | E23: Difference | J23: Includes debt raising costs
B24: ='Output|Decomposition'!B23 -> Based on reported opex in 2017-18 | C24: =[10]Decomp!$I$27 -> 282.2430672 | D24: ='Output|Decomposition'!N23 -> 283.0425664 | E24: =D24-C24 -> 0.7994991875
B25: ='Output|Decomposition'!B24 -> Base year adjustments | C25: =[10]Decomp!$I$34 -> -17.35285067 | D25: ='Output|Decomposition'!N24 -> -17.63504482 | E25: =D25-C25 -> -0.2821941414
B26: ='Output|Decomposition'!B25 -> Output growth | C26: =[10]Decomp!$I$32 -> 16.48710485 | D26: ='Output|Decomposition'!N25 -> 12.00120178 | E26: -4.48590307
B27: ='Output|Decomposition'!B26 -> Price growth | C27: =[10]Decomp!$I$31 -> 6.842571211 | D27: ='Output|Decomposition'!N26 -> 3.46072467 | E27: -3.38184654
B28: ='Output|Decomposition'!B27 -> Productivity growth | C28: =[10]Decomp!$I$30 -> 0 | D28: ='Output|Decomposition'!N27 -> 0 | E28: 0
B29: ='Output|Decomposition'!B28 -> Step changes | C29: =[10]Decomp!$I$35 -> 20.63301991 | D29: ='Output|Decomposition'!N28 -> 13.78860295 | E29: -6.844416955
B30: ='Output|Decomposition'!B29 -> Category specific forecasts | C30: =[10]Decomp!$I$36 -> 0 | D30: ='Output|Decomposition'!N29 -> 0 | E30: 0
B31: Debt raising costs | C31: =[10]Decomp!$I$29 -> 2.527724996 | D31: ='Output|Decomposition'!N19 -> 2.418972976 | E31: -0.108752021
B32: Total opex | C32: =SUM(C24:C31) -> 311.3806375 | D32: =SUM(D24:D31) -> 297.077024 | E32: =SUM(E24:E31) -> -14.30361354
B35: End

Sheet Output|Decomposition
B1: =Index!$B$1 -> AER opex model | O1: Back to Index | Q1: Key: | R1: Input | S1: External Link | T1: Internal Link | W1: Worksheet check: | X1: n/a | Z1: Overall Check: | AA1: ='Check|List'!$S$1 -> Check
B2: =Index!#REF! -> 
B7: Decomposition
C8: Including debt raising costs
C9: ='Calc|Opex forecast'!J75 ->  | D9: ='Calc|Opex forecast'!K75 ->  | E9: ='Calc|Opex forecast'!L75 ->  | F9: ='Calc|Opex forecast'!M75 ->  | G9: ='Calc|Opex forecast'!N75 ->  | H9: ='Calc|Opex forecast'!O75 -> 2020-06-01 | I9: ='Calc|Opex forecast'!P75 -> 2021-06-01 | J9: ='Calc|Opex forecast'!Q75 -> 2022-06-01 | K9: ='Calc|Opex forecast'!R75 -> 2023-06-01 | L9: ='Calc|Opex forecast'!S75 -> 2024-06-01 | N9: TOTAL
B10: AER alternative estimate | C10: ='Calc|Opex forecast'!J83 ->  | D10: ='Calc|Opex forecast'!K83 ->  | E10: ='Calc|Opex forecast'!L83 ->  | F10: ='Calc|Opex forecast'!M83 ->  | G10: ='Calc|Opex forecast'!N83 ->  | H10: ='Calc|Opex forecast'!O83 -> 57.69683018 | I10: ='Calc|Opex forecast'!P83 -> 58.45786996 | J10: ='Calc|Opex forecast'!Q83 -> 59.37412352 | K10: ='Calc|Opex forecast'!R83 -> 60.31123682 | L10: ='Calc|Opex forecast'!S83 -> 61.23696351 | N10: =SUM(C10:L10) -> 297.077024
B11: ="Based on reported opex in "&IF(MONTH('Input|General'!$G$9)=12,BaseYear,BaseYear-1&"-"&RIGHT(BaseYear,2)) -> Based on reported opex in 2017-18 | C11: =IF('Calc|Opex forecast'!J75='Calc|Opex forecast'!J4,SUM('Calc|Opex forecast'!$J$18:$S$18),"") ->  | D11: =IF('Calc|Opex forecast'!K75='Calc|Opex forecast'!K4,SUM('Calc|Opex forecast'!$J$18:$S$18),"") ->  | E11: =IF('Calc|Opex forecast'!L75='Calc|Opex forecast'!L4,SUM('Calc|Opex forecast'!$J$18:$S$18),"") ->  | F11: =IF('Calc|Opex forecast'!M75='Calc|Opex forecast'!M4,SUM('Calc|Opex forecast'!$J$18:$S$18),"") ->  | G11: =IF('Calc|Opex forecast'!N75='Calc|Opex forecast'!N4,SUM('Calc|Opex forecast'!$J$18:$S$18),"") ->  | H11: =IF('Calc|Opex forecast'!O75='Calc|Opex forecast'!O4,SUM('Calc|Opex forecast'!$J$18:$S$18),"") -> 56.60851328 | I11: =IF('Calc|Opex forecast'!P75='Calc|Opex forecast'!P4,SUM('Calc|Opex forecast'!$J$18:$S$18),"") -> 56.60851328 | J11: =IF('Calc|Opex forecast'!Q75='Calc|Opex forecast'!Q4,SUM('Calc|Opex forecast'!$J$18:$S$18),"") -> 56.60851328 | K11: =IF('Calc|Opex forecast'!R75='Calc|Opex forecast'!R4,SUM('Calc|Opex forecast'!$J$18:$S$18),"") -> 56.60851328 | L11: =IF('Calc|Opex forecast'!S75='Calc|Opex forecast'!S4,SUM('Calc|Opex forecast'!$J$18:$S$18),"") -> 56.60851328 | N11: =SUM(C11:L11) -> 283.0425664
B13: Impact of…
B14: Output growth | C14: =IF('Calc|Opex forecast'!J75='Calc|Opex forecast'!J4,(PRODUCT(1+'Calc|Opex forecast'!$J38:J38)-1)*PRODUCT(1+'Calc|Opex forecast'!$J40:J40)*PRODUCT(1-'Calc|Opex forecast'!$J42:J42)*SUM('Calc|Opex forecast'!$J31:$S31),"") ->  | D14: =IF('Calc|Opex forecast'!K75='Calc|Opex forecast'!K4,(PRODUCT(1+'Calc|Opex forecast'!$J38:K38)-1)*PRODUCT(1+'Calc|Opex forecast'!$J40:K40)*PRODUCT(1-'Calc|Opex forecast'!$J42:K42)*SUM('Calc|Opex forecast'!$J31:$S31),"") ->  | E14: =IF('Calc|Opex forecast'!L75='Calc|Opex forecast'!L4,(PRODUCT(1+'Calc|Opex forecast'!$J38:L38)-1)*PRODUCT(1+'Calc|Opex forecast'!$J40:L40)*PRODUCT(1-'Calc|Opex forecast'!$J42:L42)*SUM('Calc|Opex forecast'!$J31:$S31),"") ->  | F14: =IF('Calc|Opex forecast'!M75='Calc|Opex forecast'!M4,(PRODUCT(1+'Calc|Opex forecast'!$J38:M38)-1)*PRODUCT(1+'Calc|Opex forecast'!$J40:M40)*PRODUCT(1-'Calc|Opex forecast'!$J42:M42)*SUM('Calc|Opex forecast'!$J31:$S31),"") ->  | G14: =IF('Calc|Opex forecast'!N75='Calc|Opex forecast'!N4,(PRODUCT(1+'Calc|Opex forecast'!$J38:N38)-1)*PRODUCT(1+'Calc|Opex forecast'!$J40:N40)*PRODUCT(1-'Calc|Opex forecast'!$J42:N42)*SUM('Calc|Opex forecast'!$J31:$S31),"") ->  | H14: =IF('Calc|Opex forecast'!O75='Calc|Opex forecast'!O4,(PRODUCT(1+'Calc|Opex forecast'!$J38:O38)-1)*PRODUCT(1+'Calc|Opex forecast'!$J40:O40)*PRODUCT(1-'Calc|Opex forecast'!$J42:O42)*SUM('Calc|Opex forecast'!$J31:$S31),"") -> 1.167509985 | I14: =IF('Calc|Opex forecast'!P75='Calc|Opex forecast'!P4,(PRODUCT(1+'Calc|Opex forecast'!$J38:P38)-1)*PRODUCT(1+'Calc|Opex forecast'!$J40:P40)*PRODUCT(1-'Calc|Opex forecast'!$J42:P42)*SUM('Calc|Opex forecast'!$J31:$S31),"") -> 1.767549722 | J14: =IF('Calc|Opex forecast'!Q75='Calc|Opex forecast'!Q4,(PRODUCT(1+'Calc|Opex forecast'!$J38:Q38)-1)*PRODUCT(1+'Calc|Opex forecast'!$J40:Q40)*PRODUCT(1-'Calc|Opex forecast'!$J42:Q42)*SUM('Calc|Opex forecast'!$J31:$S31),"") -> 2.394327031 | K14: =IF('Calc|Opex forecast'!R75='Calc|Opex forecast'!R4,(PRODUCT(1+'Calc|Opex forecast'!$J38:R38)-1)*PRODUCT(1+'Calc|Opex forecast'!$J40:R40)*PRODUCT(1-'Calc|Opex forecast'!$J42:R42)*SUM('Calc|Opex forecast'!$J31:$S31),"") -> 3.023649782 | L14: =IF('Calc|Opex forecast'!S75='Calc|Opex forecast'!S4,(PRODUCT(1+'Calc|Opex forecast'!$J38:S38)-1)*PRODUCT(1+'Calc|Opex forecast'!$J40:S40)*PRODUCT(1-'Calc|Opex forecast'!$J42:S42)*SUM('Calc|Opex forecast'!$J31:$S31),"") -> 3.648165263 | N14: =SUM(C14:L14) -> 12.00120178 | O14: =N14/($N$10-N14) -> 0.04209828
B15: Price growth | C15: =IF('Calc|Opex forecast'!J75='Calc|Opex forecast'!J4,(PRODUCT(1+'Calc|Opex forecast'!$J40:J40)-1)*PRODUCT(1-'Calc|Opex forecast'!$J42:J42)*SUM('Calc|Opex forecast'!$J31:$S31),"") ->  | D15: =IF('Calc|Opex forecast'!K75='Calc|Opex forecast'!K4,(PRODUCT(1+'Calc|Opex forecast'!$J40:K40)-1)*PRODUCT(1-'Calc|Opex forecast'!$J42:K42)*SUM('Calc|Opex forecast'!$J31:$S31),"") ->  | E15: =IF('Calc|Opex forecast'!L75='Calc|Opex forecast'!L4,(PRODUCT(1+'Calc|Opex forecast'!$J40:L40)-1)*PRODUCT(1-'Calc|Opex forecast'!$J42:L42)*SUM('Calc|Opex forecast'!$J31:$S31),"") ->  | F15: =IF('Calc|Opex forecast'!M75='Calc|Opex forecast'!M4,(PRODUCT(1+'Calc|Opex forecast'!$J40:M40)-1)*PRODUCT(1-'Calc|Opex forecast'!$J42:M42)*SUM('Calc|Opex forecast'!$J31:$S31),"") ->  | G15: =IF('Calc|Opex forecast'!N75='Calc|Opex forecast'!N4,(PRODUCT(1+'Calc|Opex forecast'!$J40:N40)-1)*PRODUCT(1-'Calc|Opex forecast'!$J42:N42)*SUM('Calc|Opex forecast'!$J31:$S31),"") ->  | H15: =IF('Calc|Opex forecast'!O75='Calc|Opex forecast'!O4,(PRODUCT(1+'Calc|Opex forecast'!$J40:O40)-1)*PRODUCT(1-'Calc|Opex forecast'!$J42:O42)*SUM('Calc|Opex forecast'!$J31:$S31),"") -> 0.1913963819 | I15: =IF('Calc|Opex forecast'!P75='Calc|Opex forecast'!P4,(PRODUCT(1+'Calc|Opex forecast'!$J40:P40)-1)*PRODUCT(1-'Calc|Opex forecast'!$J42:P42)*SUM('Calc|Opex forecast'!$J31:$S31),"") -> 0.3588540398 | J15: =IF('Calc|Opex forecast'!Q75='Calc|Opex forecast'!Q4,(PRODUCT(1+'Calc|Opex forecast'!$J40:Q40)-1)*PRODUCT(1-'Calc|Opex forecast'!$J42:Q42)*SUM('Calc|Opex forecast'!$J31:$S31),"") -> 0.6552757193 | K15: =IF('Calc|Opex forecast'!R75='Calc|Opex forecast'!R4,(PRODUCT(1+'Calc|Opex forecast'!$J40:R40)-1)*PRODUCT(1-'Calc|Opex forecast'!$J42:R42)*SUM('Calc|Opex forecast'!$J31:$S31),"") -> 0.9743666327 | L15: =IF('Calc|Opex forecast'!S75='Calc|Opex forecast'!S4,(PRODUCT(1+'Calc|Opex forecast'!$J40:S40)-1)*PRODUCT(1-'Calc|Opex forecast'!$J42:S42)*SUM('Calc|Opex forecast'!$J31:$S31),"") -> 1.280831897 | N15: =SUM(C15:L15) -> 3.46072467 | O15: 0.01178655503
B16: Productivity growth | C16: =IF('Calc|Opex forecast'!J75='Calc|Opex forecast'!J4,(PRODUCT(1-'Calc|Opex forecast'!$J42:J42)-1)*SUM('Calc|Opex forecast'!$J31:$S31),"") ->  | D16: =IF('Calc|Opex forecast'!K75='Calc|Opex forecast'!K4,(PRODUCT(1-'Calc|Opex forecast'!$J42:K42)-1)*SUM('Calc|Opex forecast'!$J31:$S31),"") ->  | E16: =IF('Calc|Opex forecast'!L75='Calc|Opex forecast'!L4,(PRODUCT(1-'Calc|Opex forecast'!$J42:L42)-1)*SUM('Calc|Opex forecast'!$J31:$S31),"") ->  | F16: =IF('Calc|Opex forecast'!M75='Calc|Opex forecast'!M4,(PRODUCT(1-'Calc|Opex forecast'!$J42:M42)-1)*SUM('Calc|Opex forecast'!$J31:$S31),"") ->  | G16: =IF('Calc|Opex forecast'!N75='Calc|Opex forecast'!N4,(PRODUCT(1-'Calc|Opex forecast'!$J42:N42)-1)*SUM('Calc|Opex forecast'!$J31:$S31),"") ->  | H16: =IF('Calc|Opex forecast'!O75='Calc|Opex forecast'!O4,(PRODUCT(1-'Calc|Opex forecast'!$J42:O42)-1)*SUM('Calc|Opex forecast'!$J31:$S31),"") -> 0 | I16: =IF('Calc|Opex forecast'!P75='Calc|Opex forecast'!P4,(PRODUCT(1-'Calc|Opex forecast'!$J42:P42)-1)*SUM('Calc|Opex forecast'!$J31:$S31),"") -> 0 | J16: =IF('Calc|Opex forecast'!Q75='Calc|Opex forecast'!Q4,(PRODUCT(1-'Calc|Opex forecast'!$J42:Q42)-1)*SUM('Calc|Opex forecast'!$J31:$S31),"") -> 0 | K16: =IF('Calc|Opex forecast'!R75='Calc|Opex forecast'!R4,(PRODUCT(1-'Calc|Opex forecast'!$J42:R42)-1)*SUM('Calc|Opex forecast'!$J31:$S31),"") -> 0 | L16: =IF('Calc|Opex forecast'!S75='Calc|Opex forecast'!S4,(PRODUCT(1-'Calc|Opex forecast'!$J42:S42)-1)*SUM('Calc|Opex forecast'!$J31:$S31),"") -> 0 | N16: 0 | O16: 0
B17: Step changes | C17: =IF('Calc|Opex forecast'!J75='Calc|Opex forecast'!J4,'Calc|Opex forecast'!J61,"") ->  | D17: =IF('Calc|Opex forecast'!K75='Calc|Opex forecast'!K4,'Calc|Opex forecast'!K61,"") ->  | E17: =IF('Calc|Opex forecast'!L75='Calc|Opex forecast'!L4,'Calc|Opex forecast'!L61,"") ->  | F17: =IF('Calc|Opex forecast'!M75='Calc|Opex forecast'!M4,'Calc|Opex forecast'!M61,"") ->  | G17: =IF('Calc|Opex forecast'!N75='Calc|Opex forecast'!N4,'Calc|Opex forecast'!N61,"") ->  | H17: =IF('Calc|Opex forecast'!O75='Calc|Opex forecast'!O4,'Calc|Opex forecast'!O61,"") -> 2.756340166 | I17: =IF('Calc|Opex forecast'!P75='Calc|Opex forecast'!P4,'Calc|Opex forecast'!P61,"") -> 2.757504368 | J17: =IF('Calc|Opex forecast'!Q75='Calc|Opex forecast'!Q4,'Calc|Opex forecast'!Q61,"") -> 2.758462262 | K17: =IF('Calc|Opex forecast'!R75='Calc|Opex forecast'!R4,'Calc|Opex forecast'!R61,"") -> 2.758392512 | L17: =IF('Calc|Opex forecast'!S75='Calc|Opex forecast'!S4,'Calc|Opex forecast'!S61,"") -> 2.757903645 | N17: 13.78860295 | O17: 0.0486733729
B18: Category specific forecasts | C18: =IF('Calc|Opex forecast'!J75='Calc|Opex forecast'!J4,'Calc|Opex forecast'!J71+SUM('Calc|Opex forecast'!$J$20:$S$20),"") ->  | D18: =IF('Calc|Opex forecast'!K75='Calc|Opex forecast'!K4,'Calc|Opex forecast'!K71+SUM('Calc|Opex forecast'!$J$20:$S$20),"") ->  | E18: =IF('Calc|Opex forecast'!L75='Calc|Opex forecast'!L4,'Calc|Opex forecast'!L71+SUM('Calc|Opex forecast'!$J$20:$S$20),"") ->  | F18: =IF('Calc|Opex forecast'!M75='Calc|Opex forecast'!M4,'Calc|Opex forecast'!M71+SUM('Calc|Opex forecast'!$J$20:$S$20),"") ->  | G18: =IF('Calc|Opex forecast'!N75='Calc|Opex forecast'!N4,'Calc|Opex forecast'!N71+SUM('Calc|Opex forecast'!$J$20:$S$20),"") ->  | H18: =IF('Calc|Opex forecast'!O75='Calc|Opex forecast'!O4,'Calc|Opex forecast'!O71+SUM('Calc|Opex forecast'!$J$20:$S$20),"") -> 0 | I18: =IF('Calc|Opex forecast'!P75='Calc|Opex forecast'!P4,'Calc|Opex forecast'!P71+SUM('Calc|Opex forecast'!$J$20:$S$20),"") -> 0 | J18: =IF('Calc|Opex forecast'!Q75='Calc|Opex forecast'!Q4,'Calc|Opex forecast'!Q71+SUM('Calc|Opex forecast'!$J$20:$S$20),"") -> 0 | K18: =IF('Calc|Opex forecast'!R75='Calc|Opex forecast'!R4,'Calc|Opex forecast'!R71+SUM('Calc|Opex forecast'!$J$20:$S$20),"") -> 0 | L18: =IF('Calc|Opex forecast'!S75='Calc|Opex forecast'!S4,'Calc|Opex forecast'!S71+SUM('Calc|Opex forecast'!$J$20:$S$20),"") -> 0 | N18: 0 | O18: =N18/($N$10-N18) -> 0
B19: Debt raising costs | C19: =IF('Calc|Opex forecast'!J75='Calc|Opex forecast'!J4,'Input|Step changes'!J38+'Input|Step changes'!J39,"") ->  | D19: =IF('Calc|Opex forecast'!K75='Calc|Opex forecast'!K4,'Input|Step changes'!K38+'Input|Step changes'!K39,"") ->  | E19: =IF('Calc|Opex forecast'!L75='Calc|Opex forecast'!L4,'Input|Step changes'!L38+'Input|Step changes'!L39,"") ->  | F19: =IF('Calc|Opex forecast'!M75='Calc|Opex forecast'!M4,'Input|Step changes'!M38+'Input|Step changes'!M39,"") ->  | G19: =IF('Calc|Opex forecast'!N75='Calc|Opex forecast'!N4,'Input|Step changes'!N38+'Input|Step changes'!N39,"") ->  | H19: =IF('Calc|Opex forecast'!O75='Calc|Opex forecast'!O4,'Input|Step changes'!O38+'Input|Step changes'!O39,"") -> 0.5000793246 | I19: =IF('Calc|Opex forecast'!P75='Calc|Opex forecast'!P4,'Input|Step changes'!P38+'Input|Step changes'!P39,"") -> 0.4924575066 | J19: =IF('Calc|Opex forecast'!Q75='Calc|Opex forecast'!Q4,'Input|Step changes'!Q38+'Input|Step changes'!Q39,"") -> 0.4845541889 | K19: =IF('Calc|Opex forecast'!R75='Calc|Opex forecast'!R4,'Input|Step changes'!R38+'Input|Step changes'!R39,"") -> 0.4733235719 | L19: =IF('Calc|Opex forecast'!S75='Calc|Opex forecast'!S4,'Input|Step changes'!S38+'Input|Step changes'!S39,"") -> 0.4685583834 | N19: 2.418972976 | O19: 0.008209424339
B20: Base year adjustments | C20: =IF('Calc|Opex forecast'!J75='Calc|Opex forecast'!J4,SUM('Calc|Opex forecast'!$J$23:$S$23,'Calc|Opex forecast'!$J$26:$S$26,'Calc|Opex forecast'!$J$29:$S$29,'Calc|Opex forecast'!#REF!,'Calc|Opex forecast'!#REF!),"") ->  | D20: =IF('Calc|Opex forecast'!K75='Calc|Opex forecast'!K4,SUM('Calc|Opex forecast'!$J$23:$S$23,'Calc|Opex forecast'!$J$26:$S$26,'Calc|Opex forecast'!$J$29:$S$29,'Calc|Opex forecast'!#REF!,'Calc|Opex forecast'!#REF!),"") ->  | E20: =IF('Calc|Opex forecast'!L75='Calc|Opex forecast'!L4,SUM('Calc|Opex forecast'!$J$23:$S$23,'Calc|Opex forecast'!$J$26:$S$26,'Calc|Opex forecast'!$J$29:$S$29,'Calc|Opex forecast'!#REF!,'Calc|Opex forecast'!#REF!),"") ->  | F20: =IF('Calc|Opex forecast'!M75='Calc|Opex forecast'!M4,SUM('Calc|Opex forecast'!$J$23:$S$23,'Calc|Opex forecast'!$J$26:$S$26,'Calc|Opex forecast'!$J$29:$S$29,'Calc|Opex forecast'!#REF!,'Calc|Opex forecast'!#REF!),"") ->  | G20: =IF('Calc|Opex forecast'!N75='Calc|Opex forecast'!N4,SUM('Calc|Opex forecast'!$J$23:$S$23,'Calc|Opex forecast'!$J$26:$S$26,'Calc|Opex forecast'!$J$29:$S$29,'Calc|Opex forecast'!#REF!,'Calc|Opex forecast'!#REF!),"") ->  | H20: =IF('Calc|Opex forecast'!O75='Calc|Opex forecast'!O4,SUM('Calc|Opex forecast'!$J$23:$S$23,'Calc|Opex forecast'!$J$26:$S$26,'Calc|Opex forecast'!$J$29:$S$29),"") -> -3.527008963 | I20: =IF('Calc|Opex forecast'!P75='Calc|Opex forecast'!P4,SUM('Calc|Opex forecast'!$J$23:$S$23,'Calc|Opex forecast'!$J$26:$S$26,'Calc|Opex forecast'!$J$29:$S$29),"") -> -3.527008963 | J20: =IF('Calc|Opex forecast'!Q75='Calc|Opex forecast'!Q4,SUM('Calc|Opex forecast'!$J$23:$S$23,'Calc|Opex forecast'!$J$26:$S$26,'Calc|Opex forecast'!$J$29:$S$29),"") -> -3.527008963 | K20: =IF('Calc|Opex forecast'!R75='Calc|Opex forecast'!R4,SUM('Calc|Opex forecast'!$J$23:$S$23,'Calc|Opex forecast'!$J$26:$S$26,'Calc|Opex forecast'!$J$29:$S$29),"") -> -3.527008963 | L20: =IF('Calc|Opex forecast'!S75='Calc|Opex forecast'!S4,SUM('Calc|Opex forecast'!$J$23:$S$23,'Calc|Opex forecast'!$J$26:$S$26,'Calc|Opex forecast'!$J$29:$S$29),"") -> -3.527008963 | N20: -17.63504482 | O20: =N20/($N$10-N20) -> -0.05603548946
B22: Item | H22: Padding | I22: Base | J22: Up | K22: Down | L22: EBSS | M22: Datum | N22: Value
B23: =B11 -> Based on reported opex in 2017-18 | I23: =M23 -> 283.0425664 | M23: =N23 -> 283.0425664 | N23: =N11 -> 283.0425664
B24: =B20 -> Base year adjustments | H24: =IF(N24<0,M23+N24,M23) -> 265.4075216 | K24: =IF(N24>0,N24,-N24) -> 17.63504482 | M24: =N24+M23 -> 265.4075216 | N24: =N20 -> -17.63504482
B25: =B14 -> Output growth | H25: 265.4075216 | J25: =IF(N25>0,N25,-N25) -> 12.00120178 | M25: 277.4087234 | N25: =N14 -> 12.00120178
B26: =B15 -> Price growth | H26: 277.4087234 | J26: 3.46072467 | M26: 280.869448 | N26: 3.46072467
B27: Productivity growth | H27: 280.869448 | J27: 0 | M27: 280.869448 | N27: 0
B28: =B17 -> Step changes | H28: 280.869448 | J28: 13.78860295 | M28: 294.658051 | N28: 13.78860295
B29: =B18 -> Category specific forecasts | H29: 294.658051 | J29: 0 | M29: 294.658051 | N29: 0
B30: =B19 -> Debt raising costs | H30: 294.658051 | J30: 2.418972976 | M30: 297.077024 | N30: 2.418972976
B31: =B10 -> AER alternative estimate | I31: =M31 -> 297.077024 | M31: 297.077024

Sheet Lookup|Tables
B1: =Index!$B$1 -> AER opex model | J1: Back to Index | L1: Key: | M1: Input | N1: External Link | O1: Internal Link | U1: Overall Check: | V1: ='Check|List'!$S$1 -> Check
B2: =Index!$C$17 -> Lookup | Tables
B7: Unit Denominations
C9: =B7 -> Unit Denominations | D9: Source | G9: Ref
C10: Dollars | D10: AER | G10: $dollars
C11: Thousands | D11: AER | G11: $000
C12: Millions | D12: AER | G12: $millions
C14: Percent | D14: AER | G14: Per cent
C15: Unit | D15: AER | G15: unit
C16: Number | D16: AER | G16: number
C17: Factor | D17: AER | G17: factor
C19: Actual | D19: AER | G19: Actual
C20: Estimate | D20: AER | G20: Estimate
B22: Months
C24: =B22 -> Months | D24: Source | G24: Ref
C25: month 1 | D25: AER | G25: 2000-01-01
C26: month 2 | D26: AER | G26: 2000-02-01
C27: month 3 | D27: AER | G27: 2000-03-01
C28: month 4 | D28: AER | G28: 2000-04-01
C29: month 5 | D29: AER | G29: 2000-05-01
C30: month 6 | D30: AER | G30: 2000-06-01
C31: month 7 | D31: AER | G31: 2000-07-01
C32: month 8 | D32: AER | G32: 2000-08-01
C33: month 9 | D33: AER | G33: 2000-09-01
C34: month 10 | D34: AER | G34: 2000-10-01
C35: month 11 | D35: AER | G35: 2000-11-01
C36: month 12 | D36: AER | G36: 2000-12-01
B38: Years
C40: =B38 -> Years | D40: Source | G40: Calendar Year | H40: Year Ending | I40: Financial Year
C41: 2011-06-01 | D41: AER | G41: 2011 | H41: =DATE(G41,MONTH('Input|General'!$G$9),1) -> 2011-06-01 | I41: =G41-1&"–"&RIGHT(G41,2) -> 2010–11
C42: 2012-06-01 | D42: AER | G42: 2012 | H42: =DATE(G42,MONTH('Input|General'!$G$9),1) -> 2012-06-01 | I42: =G42-1&"–"&RIGHT(G42,2) -> 2011–12
C43: 2013-06-01 | D43: AER | G43: 2013 | H43: =DATE(G43,MONTH('Input|General'!$G$9),1) -> 2013-06-01 | I43: 2012–13
C44: 2014-06-01 | D44: AER | G44: 2014 | H44: =DATE(G44,MONTH('Input|General'!$G$9),1) -> 2014-06-01 | I44: 2013–14
C45: 2015-06-01 | D45: AER | G45: 2015 | H45: =DATE(G45,MONTH('Input|General'!$G$9),1) -> 2015-06-01 | I45: 2014–15
C46: 2016-06-01 | D46: AER | G46: 2016 | H46: =DATE(G46,MONTH('Input|General'!$G$9),1) -> 2016-06-01 | I46: 2015–16
C47: 2017-06-01 | D47: AER | G47: 2017 | H47: =DATE(G47,MONTH('Input|General'!$G$9),1) -> 2017-06-01 | I47: 2016–17
C48: 2018-06-01 | D48: AER | G48: 2018 | H48: =DATE(G48,MONTH('Input|General'!$G$9),1) -> 2018-06-01 | I48: 2017–18
C49: 2019-06-01 | D49: AER | G49: 2019 | H49: =DATE(G49,MONTH('Input|General'!$G$9),1) -> 2019-06-01 | I49: 2018–19
C50: 2020-06-01 | D50: AER | G50: 2020 | H50: =DATE(G50,MONTH('Input|General'!$G$9),1) -> 2020-06-01 | I50: 2019–20
C51: 2021-06-01 | D51: AER | G51: 2021 | H51: =DATE(G51,MONTH('Input|General'!$G$9),1) -> 2021-06-01 | I51: 2020–21
C52: 2022-06-01 | D52: AER | G52: 2022 | H52: =DATE(G52,MONTH('Input|General'!$G$9),1) -> 2022-06-01 | I52: 2021–22
C53: 2023-06-01 | D53: AER | G53: 2023 | H53: =DATE(G53,MONTH('Input|General'!$G$9),1) -> 2023-06-01 | I53: 2022–23
C54: 2024-06-01 | D54: AER | G54: 2024 | H54: =DATE(G54,MONTH('Input|General'!$G$9),1) -> 2024-06-01 | I54: 2023–24
C55: 2025-06-01 | D55: AER | G55: 2025 | H55: =DATE(G55,MONTH('Input|General'!$G$9),1) -> 2025-06-01 | I55: 2024–25
C56: 2026-06-01 | D56: AER | G56: 2026 | H56: =DATE(G56,MONTH('Input|General'!$G$9),1) -> 2026-06-01 | I56: 2025–26
C57: 2027-06-01 | D57: AER | G57: 2027 | H57: =DATE(G57,MONTH('Input|General'!$G$9),1) -> 2027-06-01 | I57: 2026–27
C58: 2028-06-01 | D58: AER | G58: 2028 | H58: =DATE(G58,MONTH('Input|General'!$G$9),1) -> 2028-06-01 | I58: 2027–28
C59: 2029-06-01 | D59: AER | G59: 2029 | H59: =DATE(G59,MONTH('Input|General'!$G$9),1) -> 2029-06-01 | I59: 2028–29
C60: 2030-06-01 | D60: AER | G60: 2030 | H60: =DATE(G60,MONTH('Input|General'!$G$9),1) -> 2030-06-01 | I60: 2029–30
B62: Regulatory years
C64: =B62 -> Regulatory years | D64: Source | G64: Year | H64: Year ending
C65: Previous period year 1 | D65: calculated | G65: =IF(MONTH('Input|General'!$G$9)=12,PPFirstYear,PPFirstYear-1&"–"&RIGHT(PPFirstYear,2)) -> 2014–15 | H65: =DATE(PPFirstYear,MONTH('Input|General'!$G$9),1) -> 2015-06-01
C66: Previous period year 2 | D66: calculated | G66: =IF(PPLastYear-PPFirstYear<1,"",LEFT(G65,4)+1&"–"&RIGHT(G65,2)+1) -> 2015–16 | H66: =IF(PPLastYear-PPFirstYear<1,"",DATE(PPFirstYear+1,MONTH('Input|General'!$G$9),1)) -> 2016-06-01
C67: Previous period year 3 | D67: calculated | G67: =IF(PPLastYear-PPFirstYear<2,"",LEFT(G66,4)+1&"–"&RIGHT(G66,2)+1) -> 2016–17 | H67: =IF(PPLastYear-PPFirstYear<2,"",DATE(PPFirstYear+2,MONTH('Input|General'!$G$9),1)) -> 2017-06-01
C68: Previous period year 4 | D68: calculated | G68: =IF(PPLastYear-PPFirstYear<3,"",LEFT(G67,4)+1&"–"&RIGHT(G67,2)+1) -> 2017–18 | H68: =IF(PPLastYear-PPFirstYear<3,"",DATE(PPFirstYear+3,MONTH('Input|General'!$G$9),1)) -> 2018-06-01
C69: Previous period year 5 | D69: calculated | G69: =IF(PPLastYear-PPFirstYear<4,"",LEFT(G68,4)+1&"–"&RIGHT(G68,2)+1) -> 2018–19 | H69: =IF(PPLastYear-PPFirstYear<4,"",DATE(PPFirstYear+4,MONTH('Input|General'!$G$9),1)) -> 2019-06-01
C70: Forecast period year 1 | D70: calculated | G70: =IF(MONTH('Input|General'!$G$9)=12,FPFirstYear,FPFirstYear-1&"–"&RIGHT(FPFirstYear,2)) -> 2019–20 | H70: =DATE(FPFirstYear,MONTH('Input|General'!$G$9),1) -> 2020-06-01
C71: Forecast period year 2 | D71: calculated | G71: =IF(FPLastYear-FPFirstYear<1,"",LEFT(G70,4)+1&"–"&RIGHT(G70,2)+1) -> 2020–21 | H71: =IF(FPLastYear-FPFirstYear<1,"",DATE(FPFirstYear+1,MONTH('Input|General'!$G$9),1)) -> 2021-06-01
C72: Forecast period year 3 | D72: calculated | G72: =IF(FPLastYear-FPFirstYear<2,"",LEFT(G71,4)+1&"–"&RIGHT(G71,2)+1) -> 2021–22 | H72: =IF(FPLastYear-FPFirstYear<2,"",DATE(FPFirstYear+2,MONTH('Input|General'!$G$9),1)) -> 2022-06-01
C73: Forecast period year 4 | D73: calculated | G73: =IF(FPLastYear-FPFirstYear<3,"",LEFT(G72,4)+1&"–"&RIGHT(G72,2)+1) -> 2022–23 | H73: =IF(FPLastYear-FPFirstYear<3,"",DATE(FPFirstYear+3,MONTH('Input|General'!$G$9),1)) -> 2023-06-01
C74: Forecast period year 5 | D74: calculated | G74: =IF(FPLastYear-FPFirstYear<4,"",LEFT(G73,4)+1&"–"&RIGHT(G73,2)+1) -> 2023–24 | H74: =IF(FPLastYear-FPFirstYear<4,"",DATE(FPFirstYear+4,MONTH('Input|General'!$G$9),1)) -> 2024-06-01
B76: End

Sheet Check|List
B1: =Index!$B$1 -> AER opex model | J1: Back to Index | L1: Key: | M1: Input | N1: External Link | O1: Internal Link | R1: Overall Check: | S1: =IF(COUNTIF(G10:G18,"Check")=0,"Ok","Check") -> Check
B2: =Index!$C$18 -> Check | List
B7: Check List
C9: Sheet | D9: Source | E9: Unit | G9: Status
C10: =Index!C7 -> Input | General | D10: =C10 -> Input | General | E10: Ok/Check | G10: ='Input|General'!S1 -> OK
C11: =Index!C8 -> Input | Inflation | D11: =C11 -> Input | Inflation | E11: Ok/Check | G11: ='Input|Inflation'!T1 -> OK
C12: =Index!C9 -> Input | Reported opex | D12: =C12 -> Input | Reported opex | E12: Ok/Check | G12: ='Input|Reported opex'!S1 -> OK
C13: =Index!C10 -> Input | Rate of change | D13: Input | Rate of change | E13: Ok/Check | G13: ='Input|Rate of change'!T1 -> Check
C14: =Index!C11 -> Input | Step changes | D14: Input | Step changes | E14: Ok/Check | G14: ='Input|Step changes'!S1 -> OK
C15: =Index!C12 -> Input | Dx Tx split | D15: =C15 -> Input | Dx Tx split | E15: Ok/Check | G15: ='Input|Dx Tx split'!S1 -> OK
C16: =Index!C13 -> Calc | Opex Forecast | D16: Calc | Opex Forecast | E16: Ok/Check | G16: ='Calc|Opex forecast'!S1 -> Check
C17: =Index!C14 -> Output | Models | D17: Output | Models | E17: Ok/Check | G17: ='Output|Models'!S1 -> n/a
C18: =Index!C15 -> Output | Decision tables | D18: Output | Decision tables | E18: Ok/Check | G18: ='Output|Decision tables'!S1 -> n/a
B20: End

Sheet Movements in provisions
B2: 2015-06-01 | C2: 2016-06-01 | D2: 2017-06-01 | E2: 2018-06-01 | F2: 2019-06-01
B3: =SUM('[13]3.2.3 Provisions'!$E$18,'[13]3.2.3 Provisions'!$E$22,'[13]3.2.3 Provisions'!$E$26,'[13]3.2.3 Provisions'!$E$38,'[13]3.2.3 Provisions'!$E$42,'[13]3.2.3 Provisions'!$E$46,'[13]3.2.3 Provisions'!$E$58,'[13]3.2.3 Provisions'!$E$62,'[13]3.2.3 Provisions'!$E$66,'[13]3.2.3 Provisions'!$E$78,'[13]3.2.3 Provisions'!$E$82,'[13]3.2.3 Provisions'!$E$86,'[13]3.2.3 Provisions'!$E$90) -> 6681341 | C3: =SUM('[14]3.2.3 Provisions'!$C$18,'[14]3.2.3 Provisions'!$C$22,'[14]3.2.3 Provisions'!$C$26,'[14]3.2.3 Provisions'!$C$38,'[14]3.2.3 Provisions'!$C$42,'[14]3.2.3 Provisions'!$C$46,'[14]3.2.3 Provisions'!$C$58,'[14]3.2.3 Provisions'!$C$62,'[14]3.2.3 Provisions'!$C$66,'[14]3.2.3 Provisions'!$C$78,'[14]3.2.3 Provisions'!$C$82,'[14]3.2.3 Provisions'!$C$86) -> -15206772.31 | D3: =SUM('[15]3.2.3 Provisions'!$C$18,'[15]3.2.3 Provisions'!$C$22,'[15]3.2.3 Provisions'!$C$26,'[15]3.2.3 Provisions'!$C$38,'[15]3.2.3 Provisions'!$C$42,'[15]3.2.3 Provisions'!$C$46,'[15]3.2.3 Provisions'!$C$58,'[15]3.2.3 Provisions'!$C$62,'[15]3.2.3 Provisions'!$C$66,'[15]3.2.3 Provisions'!$C$78,'[15]3.2.3 Provisions'!$C$82,'[15]3.2.3 Provisions'!$C$86) -> -980022
